{"text_format":"1","workbook":"xlsx","n_sheets":16,"sheets":["Guide","Table of Contents","1.0 Introduction","2.0 Minimum Requirements","3.0 General Water Licence App.","4.0 Project Description","5.0 Baseline Information ","6.0 Water Use ","7.0 Waste Disposal ","8.0 Monitoring","Package","Annex","Lists","9.0 Project Specifics","Appendix A","Appendix B"],"not_rendered":{"charts":0,"images":2,"macros":1,"external_links":2,"defined_names":112,"comments":0,"pivot_tables":0},"unopened":[],"bounds":{"document_bytes":16777216,"sheet_cells":100000,"rows_first":2000,"rows_last":500,"rows_between":2000,"halvings":0,"cell_chars":16384,"cell_head_chars":4096},"cells_cut":0,"cells_raw":0,"read":"whole","date_system":"1900"}

{"sheet":"Guide","index":0,"n_rows":48,"n_cols":5,"rows_kept":48,"cut":false,"hidden":true,"merged":[[47,1,47,2],[0,0,3,0],[15,0,15,6],[16,0,16,6],[17,0,17,6],[18,0,18,6]]}
[]
[]
[null,"P.O. Box 119",null,null,"NUNAVUT WATER BOARD"]
[null,"Gjoa Haven, NU  X0B 1J0"]
[null,"Tel: (867) 360-6338",null,null,"NUNAVUT IMALIRIYIN KATIMAYINGI"]
[null,"Fax: (867) 360-6369",null,null,"OFFICE DES EAUX DU NUNAVUT"]
[]
[]
[]
[]
[]
[]
[]
[]
[]
["Mining and Milling "]
["Supplemental Information Guideline (SIG)"]
["for"]
["Mine Development (MM3)"]
[]
[]
[]
[]
[]
[]
[]
[]
[]
[]
[]
[]
[]
[]
[]
[]
[]
[]
[]
[]
[]
[]
[]
[]
[]
[]
[]
[]
["Date of Issuance: ","February 2010"]

{"sheet":"Table of Contents","index":1,"n_rows":24,"n_cols":1,"rows_kept":24,"cut":false,"hidden":true,"merged":[[17,0,17,8],[7,0,7,8],[9,0,9,8],[23,0,23,8],[3,0,3,6],[5,0,5,8],[19,0,19,8],[21,0,21,8],[11,0,11,8],[13,0,13,8],[15,0,15,8]]}
["TABLE OF CONTENTS"]
[]
[]
["1.0  INTRODUCTION"]
[]
["2.0 MINIMUM APPLICATION REQUIREMENTS (Application Checklist)"]
[]
["3.0 GENERAL WATER LICENCE APPLICATION"]
[]
["4.0 PROJECT DESCRIPTION"]
[]
["5.0 BASELINE INFORMATION"]
[]
["6.0 WATER USE"]
[]
["7.0 WASTE DISPOSAL"]
[]
["8.0 MONITORING"]
[]
["9.0 PROJECT SPECIFICS"]
[]
["APPENDIX A: ADDITIONAL SOURCE DOCUMENTS"]
[]
["APPENDIX A: COMMONLY USED ACRONYMS"]

{"sheet":"1.0 Introduction","index":2,"n_rows":41,"n_cols":2,"rows_kept":41,"cut":false,"hidden":true,"merged":[[2,0,2,8],[32,0,32,8],[4,0,4,8],[6,1,6,8],[16,0,16,8],[18,0,18,8],[8,0,8,8],[10,0,10,8],[12,0,12,8],[14,0,14,8],[20,0,20,8],[40,0,40,8],[22,0,22,8],[24,0,24,8],[26,0,26,8],[28,0,28,8],[34,0,34,8],[38,0,38,8],[36,0,36,8],[30,0,30,8]]}
["1.0  Introduction "]
[]
["This Supplemental Information Guideline (SIG) is for applicants seeking a water licence for water use, waste disposal, works and associated activities for Mine Development which is an undertaking classified as Mining and Milling in accordance with the Northwest Territories Water Regulations (NTWR or Regulations). "]
[]
["Supplemental information is required as part of the water licence application in accordance with section 48(2) of the Nunavut Waters Nunavut Surface Rights Tribunal Act (NWNSRTA or Act) which states:"]
[]
[null,"“An application, except in relation to a cancellation, shall be accompanied by the information and studies concerning the use of waters or the deposit of waste that are required for the Board to evaluate the qualitative and quantitative effects of the use or the deposit on waters.”"]
[]
["Also, in accordance with section 48(3) of the Act, on the filing of an application, the Board may provide guidelines to the applicant respecting the information to be provided by the applicant in respect of any matter that the Board considers relevant, including the following:"]
[]
["a) the description of the use of waters, deposit of waste or appurtenant undertaking, as the case may be;"]
[]
["b) the qualitative and quantitative effects of the use of waters or the deposit of waste on the drainage basin where the use is to be undertaken or the deposit is to be made, and the anticipated impact of the use or deposit on other users;"]
[]
["c) the measures the applicant proposes to take to avoid or mitigate any adverse impact of the use of waters or the deposit of waste;"]
[]
["d) the measures the applicant proposes to take to compensate persons, including the designated Inuit organization, who are adversely affected by the use of waters or the deposit of waste;"]
[]
["e) the program the applicant proposes to undertake to monitor the impact of the use of waters or the deposit of waste;"]
[]
["f) The interests in and rights to lands and waters that the applicant has obtained or seeks to obtain; and"]
[]
["g) the options available for the use of waters or the deposit of waste."]
[]
["To provide further guidance for these requirements, as well as the requirements of section 6(2) of the Regulations which outlines more specific information requirements for proposed undertakings, the NWB has developed Supplemental Information Guidelines (SIGs or Guidelines)."]
[]
["The SIGs are designed in spreadsheet format to facilitate the development of a concordance table that cross references the requirements of the SIG with the documents that make up the water licence application. The tables in the following nine (9) worksheets include columns for the applicant to enter information regarding the applicability of the requirement to the proposed undertaking; the title, author, and date of the document where information to address the requirement can be found; the electronic file name of the document; as well as the section of the document where the information can be found.  Specific information about the proposed undertaking should not be inserted into these spreadsheets."]
[]
["The applicant must complete the yellow sections of the SIG and submit the completed SIG along with the documents that address the requirements of the SIG to the NWB."]
[]
["Further to this SIG, the applicant is referred to the NWB's Guide 4 - Completing and Submitting a Water Licence Application for a New Licence. This Guide provides more details regarding completion of the NWB's minimum information requirements,  information required to complete plans including designs and reports, executive summaries and translations, as well as how, when and who to contact when submitting a water licence application."]
[]
["Following submission of a water licence application, the NWB will determine whether the application is complete.  If the NWB determines that an application is materially incomplete, meaning that items included in Section 2: Minimum Application Requirements are missing, the applicant will be informed by the NWB that their application has been rejected. In other cases, NWB staff will correspond with the applicant to resolve deficiencies before proceeding."]
[]
["The NWB cannot issue, amend, or renew a licence where there is an applicable, approved land use plan until the NPC's requirements under the NLCA have been addressed regarding land use planning (Article 11).  In addition, the NWB cannot issue, amend, or renew a licence where the appurtenant undertaking requires screening by NIRB in accordance with Part 4 of Article 12 of the NLCA until NIRB has completed its screening. Furthermore, notwithstanding sections 13.5.5 or 12.10.2 of the NLCA, where the appurtenant undertaking requires a review under Part 5 or Part 6 of Article 12 of the NLCA, the Board may not issue, amend, or renew a licence until NIRB has issued a project certificate. For this reason, the applicant must provide the NWB with written confirmation that both NPC's and NIRB's requirements under the NLCA have been addressed."]
[]
["Following completion of development impact assessment in accordance with Article 12 of the NLCA, the NWB may issue additional Project Specific Information Requirements (PSIR) to the applicant. See Section 9 of the SIG."]
[]
["The applicant is referred to Appendix A of these Guidelines for a list of additional documents, guidelines, legislation and standards that may be of use to the applicant in preparing the information to address this SIG."]
[]
["Submission of the information required by this SIG does not relieve the applicant from confirming and following up on other information requirements which may be required during the regulatory process."]

{"sheet":"2.0 Minimum Requirements","index":3,"n_rows":9,"n_cols":9,"rows_kept":9,"cut":false,"hidden":false,"merged":[]}
["2.0  Minimum Application Requirements (Application Checklist)"]
["Section Title","Section No."," Information Requirement","Indicate whether Information Requirement is applicable by inserting ' Y ' or ' NA '","If 'NA' provide justification","Insert Title, Author and Date of Document where information is provided","Insert electronic file name of document where information is provided","Insert Section of document where information is provided","NWB Concordance Assessment"]
["Minimum Application Requirements",1,"General Water Licence Application Form (see the NWB's Guide 4: Completing and Submitting a Water Licence Application for a New Licence) or Application for Water Licence Amendment Form, if appropriate (see NWB's Guide 7: Licensee Requirements Following the Issuance of a Water Licence).","Y","-","Madrid-Boston Final Environmental Impact Statement TMAC Resources Inc, Dec 2017","Volume_1, Annex V1-7, Package_3, P3-2 \n","Volume_1, Annex V1-7, Package_3, P3-2 NWB  Type A Application Form Boston\n"]
[null,2,"Information required to satisfy the requirements of the SIG including plans, reports and designs.","Y","-","Madrid-Boston Final Environmental Impact Statement TMAC Resources Inc, Dec 2017","Volume 1 through 8 and associated appendices","Volume 1 through 8 and associated appendices"]
[null,3,"Executive summary in English.","Y","-","Madrid-Boston Final Environmental Impact Statement TMAC Resources Inc, Dec 2017","Volume_1, Annex V1-7, Package_1, P1-2 \n","Volume_1, Annex V1-7, Package_1, P1-2 Executive Summary Boston\n"]
[null,4,"Translated executive summary in appropriate language and dialect.","Y","-","Madrid-Boston Final Environmental Impact Statement TMAC Resources Inc, Dec 2017","Volume_1, Annex V1-7, Package_1, P1-2 \n","Volume_1, Annex V1-7, Package_1, P1-2 Executive Summary Boston\n"]
[null,5,"Application fee.","Y","Y","Madrid-Boston Final Environmental Impact Statement TMAC Resources Inc, Dec 2017","Volume_1, Annex V1-7, Package_3, P3-2 \n","Volume_1, Annex V1-7, Package_3, P3-2 NWB  Type A Application Form Boston Appendix A\n"]
[null,6,"Water use fee.","Y","Y","Madrid-Boston Final Environmental Impact Statement TMAC Resources Inc, Dec 2017","Volume_1, Annex V1-7, Package_3, P3-2 \n","Volume_1, Annex V1-7, Package_3, P3-2 NWB  Type A Application Form Boston\n"]
[null,7,"A table indicating concordance of the application and supporting documents to the Guidelines. These generic Guidelines are provided in excel as a tool for applicants to provide the necessary concordance table.","Y","-","Madrid-Boston Final Environmental Impact Statement TMAC Resources Inc, Dec 2017","Volume_1, Annex V1-7, Package_3, P3-4 \n","Volume_1, Annex V1-7, Package_3, P3-3 NWB Supplemental Information Guidelines Type A Water Licence Boston \n"]

{"sheet":"3.0 General Water Licence App.","index":4,"n_rows":125,"n_cols":11,"rows_kept":125,"cut":false,"hidden":false,"merged":[[123,0,124,0],[94,0,97,0],[98,0,102,0],[103,0,105,0],[85,0,88,0],[117,0,122,0],[92,0,93,0],[52,0,54,0],[69,0,72,0],[0,0,0,2],[3,0,4,0],[12,0,16,0],[6,0,10,0],[27,0,31,0]]}
["3.0  General Water Licence Application "]
["Section Title","Section No."," Information Requirement","Indicate whether Information Requirement is applicable by inserting ' Y ' or ' NA '","If 'NA' provide justification","Insert Title, Author and Date of Document where information is provided","Insert electronic file name of document where information is provided","Insert Section of document where information is provided","If information is not available at the time of application, indicate when the information will be made available","NWB Concordance Assessment","NIRB Guideline Section No."]
["Applicant",1,"Provide the full name of the applicant and contact person including contact information (position, phone number, address, fax number and email address). ","Y","-","Madrid-Boston Final Environmental Impact Statement TMAC Resources Inc, Dec 2017","Volume_1, Annex V1-7, Package_3, P3-2 \n","Volume_1, Annex V1-7, Package_3, P3-2 NWB Type A Application Form Boston \n","-"]
["Applicant Representative",2,"Provide the name and contact information of any party submitting the application on behalf of the applicant (including position, phone number, address, fax number and email address).","N/A","No third party.","-","Volume_1, Annex V1-7, Package_3, P3-2 \n","Volume_1, Annex V1-7, Package_3, P3-2 NWB Type A Application Form Boston \n","-"]
[null,3,"Provide a signed letter authorizing a party to be the applicant's representative in the licensing process.","N/A","No third party.","-","Volume_1, Annex V1-7, Package_3, P3-2 \n","Volume_1, Annex V1-7, Package_3, P3-2 NWB Type A Application Form Boston \n","-"]
["Name of Project",4,"Provide the name of the project.","Y","-","Madrid-Boston Final Environmental Impact Statement TMAC Resources Inc, Dec 2017","Volume_1, Annex V1-7, Package_3, P3-2 \n","Volume_1, Annex V1-7, Package_3, P3-2 NWB Type A Application Form Boston \n","-"]
["Location of Undertaking",5,"Provide coordinates of the project extents taking into account the Local Project Area (LPA) and the Regional Project Area (RPA), where applicable. ","Y","-","Madrid-Boston Final Environmental Impact Statement TMAC Resources Inc, Dec 2017","Volume_1, Annex V1-7, Package_3, P3-2 \n","Volume_1, Annex V1-7, Package_3, P3-2 NWB Type A Application Form Boston \n","-"]
[null,"a","Provide location by Latitude and Longitude. ","Y","-","Madrid-Boston Final Environmental Impact Statement TMAC Resources Inc, Dec 2017","Volume_1, Annex V1-7, Package_3, P3-2 \n","Volume_1, Annex V1-7, Package_3, P3-2 NWB Type A Application Form Boston \n","-"]
[null,"b","Provide location by UTM coordinates, if available.","Y","-","Madrid-Boston Final Environmental Impact Statement TMAC Resources Inc, Dec 2017","Volume_1, Annex V1-7, Package_3, P3-2 \n","Volume_1, Annex V1-7, Package_3, P3-2 NWB Type A Application Form Boston \n","-"]
[null,"c","Provide the distances to the nearest communities.","Y","-","Madrid-Boston Final Environmental Impact Statement TMAC Resources Inc, Dec 2017","Volume_2, \n","Volume_2, Section 1.4.1\n","-"]
[null,6,"Indicate whether the drainage basin, in which the project is located, is shared with any other jurisdiction.  If applicable, indicate which jurisdiction.","Y","-","Madrid-Boston Final Environmental Impact Statement TMAC Resources Inc, Dec 2017","Volume 5","Volume_5, Section 1.7\n","-"]
["Map",7,"Provide a map at a 1:50,000 scale based on the National Topographic Series indicating the location of the undertaking, watercourses and the location of waste deposits. Additional maps at various scales may be provided if those maps will provide additional information or clarification.  All additional maps must indicate the scale, map sheet number, and location of north.","Y","-","Madrid-Boston Final Environmental Impact Statement TMAC Resources Inc, Dec 2017","Volume_1, Annex V1-7, Package_1, P1-4 \n","Volume_1, Annex V1-7, Package_1, P1-4 Maps - Boston \n","-"]
["Nature of Interest in the Land",8,"Provide the nature of the interest in the land associated with the proposed undertaking, including: ","Y","-","See below","Volume_1, Annex V1-7, Package_2, P2-2 \n","Volume_1, Annex V1-7, Package_2, P2-2 Project Description Type A Water Licence Boston \n","-"]
[null,"a","Sub-surface leases from Nunavut Tunngavik Incorporated (NTI) and/or Indian and Northern Affairs Canada (INAC) as well as surface authorizations from INAC for crown land use, a Designated Inuit Organization (DIO) for Inuit Owned Land (IOL) use, or the Government of Nunavut for Commissioner’s land use. Provide the permit or licence numbers.","Y","-","Madrid-Boston Final Environmental Impact Statement TMAC Resources Inc, Dec 2017","Volume_1, Annex V1-1, Package_3, P3-2 \n","Volume_1, Annex V1-1, Package_3, P3-2 NWB Type A Application Form Boston \n","-"]
[null,null,null,null,null,null,0,0,"-"]
[null,"b","The date or expected date of issuance of any authorization and the date of expiry.  ","Y","-","Madrid-Boston Final Environmental Impact Statement TMAC Resources Inc, Dec 2017","Volume_2 \n","Volume_2, Section 1.3\n","-"]
[null,9,"Indicate whether the applicant is the name of the entity holding the authorization for the interest in the land and if not, provide the name of the entity holding the authorization.","Y","-","Madrid-Boston Final Environmental Impact Statement TMAC Resources Inc, Dec 2017","Volume_2\n","Volume_2, Section 1.3\n","-"]
["NPC Determination",10,"Provide written confirmation from the NPC confirming that NPC’s requirements under the NLCA regarding land use plan conformity (Article 11 of the NLCA) have been addressed.","N/A","As set out on page 4 of the NIRB 12.10.2 Determination Report issued June 24, 2016, “On December 8, 2011 the NIRB received the Phase 2 Hope Bay Belt project proposal from then Proponent Hope Bay Mining Limited (HBML), and subsequently on January 12, 2012 the NIRB received a referral for screening from the Kitikmeot Inuit Association (KIA). The proposed Phase 2 Hope Bay Belt project proposal is located in the Kitikmeot Region, an area that does not currently have an approved land use plan in place; therefore, a conformity determination from the Nunavut Planning Commission was not required at that time for this file. The NIRB assigned the Phase 2 Hope Bay Belt project proposal file number 12MN001 and commenced screening pursuant to Article 12, Part 4 of the NLCA.”","-","Volume_1, Annex V1-7, Package_3, P3-2 \n","Volume_1, Annex V1-7, Package_3, P3-2 NWB Type A Application Form Boston   \n","-"]
["NIRB Determination",11,"Provide written confirmation from the NIRB confirming that NIRB’s requirements under the NLCA regarding development impact assessment (Article 12 of the NLCA) have been or are in the process of being addressed. Documentation may include:","Y","-","Guidelines for Preparation of an Environmental Impact Statement for\nHope Bay Mining Ltd.' Phase 2 Hope Bay belt Project (NIRB File no. 12MN001) December 2012","Volume_1, Annex V1-7, Package_3, P3-2 \n","Volume_1, Annex V1-7, Package_3, P3-2 NWB Type A Application Form Boston   \n","-"]
[null,"a","Written confirmation from NIRB that the project proposal does not require screening;","N/A","See below. ","-","Volume_1, Annex V1-7, Package_3, P3-2 \n","Volume_1, Annex V1-7, Package_3, P3-2 NWB Type A Application Form Boston  \n","-"]
[null,"b","NIRB's screening determination;","Y","-","NIRB Screening Decision Report, February 2012, NIRB","Volume_1, Annex V1-7, Package_3, P3-2 \n","Volume_1, Annex V1-7, Package_3, P3-2 NWB Type A Application Form Boston   \n","-"]
[null,"c","If a review is required, NIRB's recommendation to the Minister regarding the type of review;","Y","-","NIRB Screening Decision Report, February 2012, NIRB","Volume_1, Annex V1-7, Package_3, P3-2 \n","Volume_1, Annex V1-7, Package_3, P3-2  \nNWB Type A Application Form Boston ","-"]
[null,"d","If a review is required, the Minister's written decision regarding the review of the development proposal;","Y","-","NIRB Screening Decision Report, February 2012, NIRB","Volume_1, Annex V1-7, Package_3, P3-2 \n","Volume_1, Annex V1-7, Package_3, P3-2  \nNWB Type A Application Form Boston ","-"]
[null,"e","If a review is required, NIRB's project certificate;","N/A",null,"-","Volume_1, Annex V1-7, Package_3, P3-2 \n","Volume_1, Annex V1-7, Package_3, P3-2 NWB Type A Application Form Boston \n","-"]
[null,12,"List of activities requested for exception in accordance with NLCA s. 12.10.2;","N/A","No activities requested for exception at this time. ","-","-","-","-"]
[null,13,"Indicate whether any Type B water licence application is for an activity to be considered for interim, short term approval in accordance with NLCA s. 13.5.5.","Y",null,"-","Volume_1, Annex V1-7, Package_3, P3-2 \n","Volume_1, Annex V1-7, Package_3, P3-2  \nNWB Type A Application Form Boston ","-"]
["Description of Undertaking",14,"See section 4 of this SIG for specific requirements.",null,null,null,null,null,"-"]
["Other Applicable Supplemental Information Guidelines",15,"Indicate whether any other Supplemental Information Guidelines apply to the undertaking including the following:",null,null,null,null,null,"-"]
[null,"a","Hydrostatic testing","N/A","-","-","-","-","-"]
[null,"b","Tannery","N/A","-","-","-","-","-"]
[null,"c","Tourist / remote camp","N/A","-","-","-","-","-"]
[null,"d","Landfarm and on-site storage of hydrocarbon contaminated soil","N/A","-","-","-","-","-"]
[null,"e","Onshore oil and gas exploration drilling","N/A","-","-","-","-","-"]
[null,"f","Mineral exploration/ remote camp","N/A","-","-","-","-","-"]
[null,"g","Advanced exploration","N/A","-","-","-","-","-"]
[null,"h","Mine development","Y","-","Madrid-Boston Final Environmental Impact Statement TMAC Resources Inc, Dec 2017","Volume_1, Annex V1-7, Package_3, P3-4 \n","Volume_1, Annex V1-7, Package_3, P3-4  NWB Supplemental Information Guidelines Type A Water Licence Boston \n","-"]
[null,"i","Municipal","N/A","-","-","-","-","-"]
[null,"j","General Water Works","N/A","-","-","-","-","-"]
[null,"l","Power","N/A","-","-","-","-","-"]
["Options (Alternatives)",16,"Provide a brief explanation of the alternative methods or locations that were considered to carry out the project.","Y","-","Madrid-Boston Final Environmental Impact Statement TMAC Resources Inc, Dec 2017","Volume_1, Annex V1-7, Package_5, P5-27 \n","Volume_1, Annex V1-7, Package_5, P5-27  Section 3\n","-"]
[null,null,null,null,null,null,{"$f":"#REF!","v":{"$error":"#REF!"}},{"$f":"#REF!","v":{"$error":"#REF!"}}]
[null,null,null,null,null,null,{"$f":"#REF!","v":{"$error":"#REF!"}},{"$f":"#REF!","v":{"$error":"#REF!"}}]
[null,null,null,null,null,null,{"$f":"#REF!","v":{"$error":"#REF!"}},{"$f":"#REF!","v":{"$error":"#REF!"}}]
["Water Use",17,"See section 6 of this SIG for specific requirements","-","-","-","-","-","-","-","-"]
["Water Use: Quality and Quantity ",18,"See section 6 of this SIG for specific requirements","-","-","-","-","-","-","-","-"]
["Waste Disposal",19,"See section 7 of this SIG for specific requirements","-","-","-","-","-","-","-","-"]
["Waste Disposal: Quality and Quantity",20,"See section 7 of this SIG for specific requirements","-","-","-","-","-","-","-","-"]
["Other Authorizations",21,"Provide a list of any authorizations required in relation to the project in addition to the water licence. For each additional authorization required for the project, provide the name of the authorization, the administering agency, the project activity requiring the authorization, the date or expected date of issuance and the date of expiry. Provide a description of how those authorizations may affect the NWB's water licensing process.","Y","-","Madrid-Boston Final Environmental Impact Statement TMAC Resources Inc, Dec 2017","Volume_2, \n","Volume_2, Section 1.3\n","This section provides a list of anticipated approvals and authorizations that may be required. The timelines for approvals will be determined by the authorizing agency post NIRB and NWB Licencing Phase."]
[null,22,"Indicate whether an authorization has been obtained or sought from the Department of Fisheries and Oceans for dewatering or using any waterbodies for containment of waste","Y","-","Madrid-Boston Final Environmental Impact Statement TMAC Resources Inc, Dec 2017","Volume_2, \n","Volume_2, Section 1.3\n","-"]
[null,23,"Provide formal applications to the Navigable Waters Protection Program (NWPP) for any works.","N/A","No Navigable Waters within Project Area.","-","-","-","-"]
[null,24,"Provide a timetable for filing the appropriate plans and procedures required by government parties.","Y","-","Madrid-Boston Final Environmental Impact Statement TMAC Resources Inc, Dec 2017","Volume_1, Annex V1-7, Package_4, P4 \n","Volume_1, Annex V1-7, Package_4, P4  Table 1.1-1\n","-"]
[null,25,"Indicate whether the applicant/ licensee holds any existing water licences. If applicable, provide the licence number and expiry date of any existing water licences.","Y","-","Madrid-Boston Final Environmental Impact Statement TMAC Resources Inc, Dec 2017","Volume_2, \n","Volume_2, Section 1.3\n","-"]
["Predicted Environmental Effect and Proposed Mitigation Measures",26,"Identify the potential effect of water use and waste disposal on the following components: ","Y","-","See below","See below","See below","-"]
[null,"a","Groundwater and Surface Water including: ",null,null,"Madrid-Boston Final Environmental Impact Statement TMAC Resources Inc, Dec 2017","Volume 5, Volume 1, Annex V1-7, Package 5","Volume 5, Section 2, Volume 1, Annex V1-7, P5-4 Madrid Boston Project – Water and Load Balance","-"]
[null,null,"changes in flow (including seasonal rate of flow)","Y","-","Madrid-Boston Final Environmental Impact Statement TMAC Resources Inc, Dec 2017","Volume 5, Volume 1, Annex V1-7, Package 5","Volume 5, Section 1.5, Volume 5 Section 2.1.1.2, Volume 1, Annex V1-7, P5-4 Madrid Boston Project – Water and Load Balance","-"]
[null,null,null,null,null,null,0,0,"-"]
[null,null,null,null,null,null,0,0,"-"]
[null,null,"quantity","Y","-","Madrid-Boston Final Environmental Impact Statement TMAC Resources Inc, Dec 2017","Volume 5, Volume 1, Annex V1-7, Package 5","Volume 5, Section 1, 2 and Volume 1, Annex V1-7, P5-4 Madrid Boston Project – Water and Load Balance","-"]
[null,null,null,null,null,null,"Volume 5, List of Appendices","Volume 5, Section 1.5, 1.5.3, Volume 5 Section 2.1.1.3, 2.1.2.5,   Appendix V3-2D Hope Bay Project – Water and Load Balance","-"]
[null,null,null,null,null,null,"Volume 5, List of Appendices","Volume 5, Section 1.5, 1.5.3  and Section 2, Appendix V3-2D Hope Bay Project – Water and Load Balance","-"]
[null,null,"quality","Y","-","Madrid-Boston Final Environmental Impact Statement TMAC Resources Inc, Dec 2017","Volume 5, Volume 1, Annex V1-7, Package 5","Volume 5, Section 1, 2 and Volume 1, Annex V1-7, P5-4 Madrid Boston Project – Water and Load Balance","-"]
[null,null,null,null,null,null,0,0,"-"]
[null,null,null,null,null,null,0,0,"-"]
[null,"b","Land including: ","Y","See below. ","Madrid-Boston Final Environmental Impact Statement TMAC Resources Inc, Dec 2017","See below","See below","-"]
[null,null,"geologic structure change","Y","-","Madrid-Boston Final Environmental Impact Statement TMAC Resources Inc, Dec 2017","Volume 4","Volume 4, Section 4","-"]
[null,null,"soil contamination","Y","-","Madrid-Boston Final Environmental Impact Statement TMAC Resources Inc, Dec 2017","Volume 4","Volume 4, Section 7.4","-"]
[null,null,"compaction, settling and erosion","Y","-","Madrid-Boston Final Environmental Impact Statement TMAC Resources Inc, Dec 2017","Volume 4","Volume 4, Section 7.4","-"]
[null,null,"alteration of the permafrost regime","Y","-","Madrid-Boston Final Environmental Impact Statement TMAC Resources Inc, Dec 2017","Volume 4","Volume 4, Section 6 ","-"]
[null,null,"riparian zone loss","Y","-","Madrid-Boston Final Environmental Impact Statement TMAC Resources Inc, Dec 2017","Volume 4"," Volume 4 Section 8.5.2 and 8.5.3 ","-"]
[null,"c","Vegetation including:","Y","-","Madrid-Boston Final Environmental Impact Statement TMAC Resources Inc, Dec 2017","Volume 4"," Volume 4 Section 8 ","-"]
[null,null,"species composition and abundance","Y","-","Madrid-Boston Final Environmental Impact Statement TMAC Resources Inc, Dec 2017","Volume 4","Volume 4, Section 8.5  ","-"]
[null,null,"non-native species introduction","Y","-","Madrid-Boston Final Environmental Impact Statement TMAC Resources Inc, Dec 2017","Volume 4","Volume 4, Section 8.5","-"]
[null,null,"accumulation of toxins and heavy metals (in relation to remediation objectives for closure)","Y","-","Madrid-Boston Final Environmental Impact Statement TMAC Resources Inc, Dec 2017","Volume 4","Volume 4, Section 8.5","-"]
[null,"d","Aquatic Ecosystems including:","Y","-","Madrid-Boston Final Environmental Impact Statement TMAC Resources Inc, Dec 2017","Volume 5","Volume 5 ","-"]
[null,null,"fish","Y","-","Madrid-Boston Final Environmental Impact Statement TMAC Resources Inc, Dec 2017","Volume 5","Volume 5 Sections 6.5","-"]
[null,null,"benthic invertebrates","Y","-","Madrid-Boston Final Environmental Impact Statement TMAC Resources Inc, Dec 2017","Volume 5","Volume 5 Sections 6.5, 6.6, 6.7 and 6.8","-"]
[null,null,"plankton","Y","-","Madrid-Boston Final Environmental Impact Statement TMAC Resources Inc, Dec 2017","Volume 5","Volume 5 Sections 6.5, 6.6, 6.7 and 6.8","-"]
[null,27,"Identify effects separately for each project phase.","Y","-","Madrid-Boston Final Environmental Impact Statement TMAC Resources Inc, Dec 2017","Volume 4, Volume 5, ","Volume 4 Sections 1.6, 2.5, 7.4, 8.5, 9.5, Volume 5 Sections 1.5, 4.5,  5.5, 6.5","-"]
[null,28,"Provide a description of the methods used to predict effects.","Y","-","Madrid-Boston Final Environmental Impact Statement TMAC Resources Inc, Dec 2017","Volume 2, Volume 5","Volume 2 Section 4, Volume 4 Sections 1.6.1, 2.2.3, 3.2.2, 7.2.3, 8.2.3, 9.5,\n  Volume 5 Section 1.2.3,  4.2.3, 5.2.3, 6.5.1","-"]
[null,29,"Provide a cumulative effects assessment of the project's water use and waste disposal activities in relation to other activities in the same drainage basin. ","Y","-","Madrid-Boston Final Environmental Impact Statement TMAC Resources Inc, Dec 2017","Volume 5","Volume 5, Section 1.6 Section 4.6, Section 5.6, Section 6.6","-"]
[null,30,"Identify effects arising from accidental events or malfunctions.","Y","-","Madrid-Boston Final Environmental Impact Statement TMAC Resources Inc, Dec 2017","Volume 1, Volume 7","Volume 1 Section 8\nVolume 7 Section 1","-"]
[null,31,"Provide a description of all proposed mitigation, management and monitoring programs to mitigate adverse impacts.","Y","-","Madrid-Boston Final Environmental Impact Statement TMAC Resources Inc, Dec 2017","Volume_1, Annex V1-7, Package_4, P4 \n","Volume_1, Annex V1-7, Package_4, P4  through P4-24\n","-"]
[null,32,"Provide a description of the measures to be taken to mitigate impacts on historical resources or traditional uses of water and procedures to be followed should artifacts be discovered.","Y","-","Madrid-Boston Final Environmental Impact Statement TMAC Resources Inc, Dec 2017","Volume 6","Volume 6, Sections 2.5.4, 2.6.3 ","-"]
[null,33,"If applicable, provide a description of any potential transboundary effects.","Y","-","Madrid-Boston Final Environmental Impact Statement TMAC Resources Inc, Dec 2017","Volume 4, Volume 5"," Volume 4, Section 1.8, 2.7, 3.7, 8.7, 9.9.6\nVolume 5 Section 1.7, 4.7, 5.7, 6.7","-"]
[null,34,"See sections 5, 6, 7, and 8 of this SIG for additional information requirements"]
["Existing and Other User Water Rights",35,"Provide the names, addresses, and nature of use for any known persons or properties that may be adversely affected by the proposed undertaking, including those that that hold licences for water use in precedent to the application, domestic users, in-stream users, authorized waste depositors, owners of property, occupiers of property, and/or holders of outfitting concessions, registered trap line holders, and holders of other rights of a similar nature.","N/A","There are none known to be affected.","Madrid-Boston Final Environmental Impact Statement TMAC Resources Inc, Dec 2017","-","-","-"]
[null,36,"Provide a description of any potential effects of the project on the persons or properties identified in item 35 of this section.","N/A","There are none known to be affected.","Madrid-Boston Final Environmental Impact Statement TMAC Resources Inc, Dec 2017","-","-","-"]
[null,37,"Provide a description of the measures incorporated into the project design to mitigate effects of the project on the persons or properties identified in item 35 of this section.","N/A","There are none known to be affected.","Madrid-Boston Final Environmental Impact Statement TMAC Resources Inc, Dec 2017","-","-","-"]
[null,38,"Indicate whether compensation has been paid and/or agreement(s) for compensation have been reached with any existing or other users.","Y","-","Madrid-Boston Final Environmental Impact Statement TMAC Resources Inc, Dec 2017","-","-","TMAC has an existing Framework Agreement with the KIA. The Framework Agreement provides comprehensive land tenure governing the issuance of surface exploration licences, advanced exploration leases, commercial leases, and compensation associated with tenure. Framework Agreement includes a belt wide Land Use Licence, an Inuit Impact and Benefits Agreement (IIBA) and a Water and Wildlife Agreement. Framework Agreement was signed in March 2015 for belt wide land tenure."]
["Inuit Water Rights",39,"Provide a description of any potential effects of the project on the quality, quantity, or flow of waters flowing through Inuit Owned Land (IOL).","Y","-","Madrid-Boston Final Environmental Impact Statement TMAC Resources Inc, Dec 2017","Volume 5","Volume 5, Section 1, 2 and 4","-"]
[null,40,"Provide a description of the measures incorporated into the project design to mitigate effects of the project on the quality, quantity, or flow of waters flowing through IOL.","Y","-","Madrid-Boston Final Environmental Impact Statement TMAC Resources Inc, Dec 2017","Volume 1, Annex V1-7, Package P5","Volume_1, Annex V1-7, Package_2, P2-2 Project Description Type A Water Licence Boston Section 5\nVolume_1, Annex V1-7, Package_5, P5-24 Hope Bay Project: Boston Water Management Design, Volume_1, Annex V1-7, Package_4,\n P4-4 Hope Bay Project Domestic Wastewater Treatment Management Plan Volume_1, Annex V1-7, Package_4, P4-5 Hope Bay Project: Boston Sewage Treatment Operations and Maintenance Management Plan \n","-"]
[null,41,"Indicate whiter an agreement to pay compensation for any loss or damage has been reached with one or more Designated Inuit Organization (DIO); or if the parties have been unable to reach an agreement on compensation","Y","-","Madrid-Boston Final Environmental Impact Statement TMAC Resources Inc, Dec 2017","Volume 1, Annex V1-7, Package P3-2","Volume 1, Annex V1-7, Package P3-2 NWB Type A Application Form Boston","TMAC have an existing Framework Agreement with the KIA. The Framework Agreement provides comprehensive land tenure governing the issuance of surface exploration licences, advanced exploration leases, commercial leases, and compensation associated with tenure. Framework Agreement includes a belt wide Land Use Licence, an Inuit Impact and Benefits Agreement (IIBA) and a Water and Wildlife Agreement. Framework Agreement was signed in March 2015 for belt wide land tenure."]
["Consultation",42,"Provide a summary of any consultation meetings including when the meetings were held, where and with whom.","Y","-","Madrid-Boston Final Environmental Impact Statement TMAC Resources Inc, Dec 2017","Volume 2","Volume 2 Section 3","-"]
[null,43,"Provide a summary of the results of consultation meetings including a list of concerns expressed and measures proposed to address concerns.","Y","-","Madrid-Boston Final Environmental Impact Statement TMAC Resources Inc, Dec 2017","Volume 2","Volume 2 Section 3","-"]
["Security",44,"Provide a financial security assessment that is prepared in a manner consistent with principals respecting mine site reclamation and implementation found in the Mine Site Reclamation Policy for Nunavut, Indian and Northern Affairs Canada, 2002. The financial security assessment must include: ","Y","-","Madrid-Boston Final Environmental Impact Statement TMAC Resources Inc, Dec 2017","Volume_1, Annex V1-7, Package_4, P4-19 \n","Volume_1, Annex V1-7, Package_4, P4-19 Hope Bay Project Boston Conceptual Closure and Reclamation Plan  \n","-"]
[null,"a","An estimate of the total financial security for final reclamation equal to the total outstanding reclamation liability for land and water combined sufficient to cover the highest liability over the life of the undertaking;","Y","-","Madrid-Boston Final Environmental Impact Statement TMAC Resources Inc, Dec 2017","Volume_1, Annex V1-7, Package_4, P4-20 \n","Volume_1, Annex V1-7, Package_4, P4-20  \n","-"]
[null,"b","The cost of having the necessary reclamation work done by a third-party contractor if the operator defaults;","Y","-","Madrid-Boston Final Environmental Impact Statement TMAC Resources Inc, Dec 2017","Volume_1, Annex V1-7, Package_4, P4-20 \n","Volume_1, Annex V1-7, Package_4, P4-20 Hope Bay Project Boston Conceptual Closure and Reclamation Plan Detailed Cost Estimate \n","-"]
[null,"c","Contingency factors appropriate to the particular work to be undertaken.","Y","-","Madrid-Boston Final Environmental Impact Statement TMAC Resources Inc, Dec 2017","Volume_1, Annex V1-7, Package_4, P4-20 \n","Volume_1, Annex V1-7, Package_4, P4-20 Hope Bay Project Boston Conceptual Closure and Reclamation Plan Detailed Cost Estimate \n","-"]
["Abandonment and Restoration",45,"Provide plans for the abandonment and restoration of the project.  Plans must address all phases of the project including construction, operation, care & maintenance, final closure and post closure.  Detail the costs to carry out the plan, and a proposal for financial assistance which covers the costs to carry out the plan.","Y","-","Madrid-Boston Final Environmental Impact Statement TMAC Resources Inc, Dec 2017","Volume_1, Annex V1-7, Package_4, P4-19 \n","Volume_1, Annex V1-7, Package_4, P4-19 Hope Bay Project Boston Conceptual Closure and Reclamation Plan   \n","-"]
[null,46,"Provide a description of all remediation plans and remediation objectives. Discuss the results of any human health and ecological risk assessment used to establish remediation objectives.","Y","-","Madrid-Boston Final Environmental Impact Statement TMAC Resources Inc, Dec 2017","Volume_1, Annex V1-7, Package_4, P4-19 \n","Volume_1, Annex V1-7, Package_4, P4-19 Hope Bay Project Boston Conceptual Closure and Reclamation Plan  \n","-"]
[null,47,"Provide a list and description of any existing abandoned or restored site facilities.","Y","-","Madrid-Boston Final Environmental Impact Statement TMAC Resources Inc, Dec 2017","Volume_1, Annex V1-7, Package_4, P4-19 \n","Volume_1, Annex V1-7, Package_4, P4-19 Hope Bay Project Boston Conceptual Closure and Reclamation Plan \n","-"]
[null,48,"Provide details regarding the timing of the removal of any dewatering dikes (if applicable) and the implications of this action on water quality.","N/A","None onsite.","-","-","-","-"]
[null,49,"Provide detailed information regarding the method used to remove/breach any dewatering dykes (if applicable), including details of any mitigation measures for any adverse impacts.","N/A","None onsite.","-","-","-","-"]
["Financial Information",50,"Provide a statement of financial responsibility.  ","N/A","TMAC  does not  produces Statements of Financial Responsibility ","-","-","-","TMAC  does not  produces Statements of Financial Responsibility "]
[null,51,"If the applicant is an entity for which audited financial statements are issued, a copy of the most recent audited financial statements must be attached to the statement of financial responsibility.","Y","-","Madrid-Boston Final Environmental Impact Statement TMAC Resources Inc, Dec 2017","Volume_1, Annex V1-7, Package_6, P6-1 \n","Volume_1, Annex V1-7, Package_6, P6-1  \n","-"]
[null,52,"Provide the name of the corporation, limited company or other business entity, with a list of the officers of the company and a copy of the Certificate of Incorporation or evidence of registration of the company name. ","Y","-","Madrid-Boston Final Environmental Impact Statement TMAC Resources Inc, Dec 2017","Volume_1, Annex V1-7, Package_6, P6-1 \n","Volume_1, Annex V1-7, Package_6, P6-1  \n","-"]
["Studies and Designs",53,"Provide a list of studies, reports and plans relevant to the application that have been undertaken to date including:","Y ","See below. ","-","-","-","-"]
[null,"a","Design rational, design requirements, design criteria, design parameters, design standards/analysis/method;","Y","-","Madrid-Boston Final Environmental Impact Statement TMAC Resources Inc, Dec 2017","Volume 1, Annex V1-7 Package 5, P5-3, P5-5, P5-5, P5-8, P5-12, P5-24, P5-26, P5-28 ,P5-29","Volume 1, Annex V1-7, Package 5, \n\nP5-3 Hope Bay Project: Contact Water Pond Berm Design\nP5-4 Madrid-Boston Project Water and Load Balance, Hope Bay Project\nP5-5 Geotechnical Design Parameters and Overburden Summary Report, Hope\nBay Project\nP5-8 Hope Bay Project: Wind Energy Project Preliminary Design\nP5-12 Hope Bay Project: Crown Pillar Recovery Trench Preliminary Design\nP5-24 Hope Bay Project: Boston Water Management Design\nP5-26 Boston Tailings Management Area Preliminary Design, Hope Bay Project\nP5-27 Boston Tailings Disposal Alternatives Assessment, Hope Bay Project, Nunavut\nP5-28 Hope Bay Project: Boston Surface Infrastructure Preliminary Design\nP5-29 Hope Bay Project: Boston Airstrip Preliminary Design\n","-"]
[null,"b","Design assumptions and the limitations associated with such design assumptions;","Y","-","Madrid-Boston Final Environmental Impact Statement TMAC Resources Inc, Dec 2017","Volume 1, Annex V1-7 Package 5, P5-3, P5-5, P5-5, P5-8, P5-12, P5-24, P5-26, P5-28 ,P5-29","Volume 1, Annex V1-7, Package 5, \n\nP5-3 Hope Bay Project: Contact Water Pond Berm Design\nP5-4 Madrid-Boston Project Water and Load Balance, Hope Bay Project\nP5-5 Geotechnical Design Parameters and Overburden Summary Report, Hope\nBay Project\nP5-8 Hope Bay Project: Wind Energy Project Preliminary Design\nP5-12 Hope Bay Project: Crown Pillar Recovery Trench Preliminary Design\nP5-24 Hope Bay Project: Boston Water Management Design\nP5-26 Boston Tailings Management Area Preliminary Design, Hope Bay Project\nP5-27 Boston Tailings Disposal Alternatives Assessment, Hope Bay Project, Nunavut\nP5-28 Hope Bay Project: Boston Surface Infrastructure Preliminary Design\nP5-29 Hope Bay Project: Boston Airstrip Preliminary Design\n","-"]
[null,"c","The inclusion of clear, definable engineering qualifiers with all design drawings and reports;","Y","-","Madrid-Boston Final Environmental Impact Statement TMAC Resources Inc, Dec 2017","Volume 1, Annex V1-7 Package 5, P5-3, P5-5, P5-5, P5-8, P5-12, P5-24, P5-26, P5-28 ,P5-29","Volume 1, Annex V1-7, Package 5, \n\nP5-3 Hope Bay Project: Contact Water Pond Berm Design\nP5-4 Madrid-Boston Project Water and Load Balance, Hope Bay Project\nP5-5 Geotechnical Design Parameters and Overburden Summary Report, Hope\nBay Project\nP5-8 Hope Bay Project: Wind Energy Project Preliminary Design\nP5-12 Hope Bay Project: Crown Pillar Recovery Trench Preliminary Design\nP5-24 Hope Bay Project: Boston Water Management Design\nP5-26 Boston Tailings Management Area Preliminary Design, Hope Bay Project\nP5-27 Boston Tailings Disposal Alternatives Assessment, Hope Bay Project, Nunavut\nP5-28 Hope Bay Project: Boston Surface Infrastructure Preliminary Design\nP5-29 Hope Bay Project: Boston Airstrip Preliminary Design\n","-"]
[null,"d","Site specific data and analysis to support the design and management decisions made;","Y","-","Madrid-Boston Final Environmental Impact Statement TMAC Resources Inc, Dec 2017","Volume 1, Annex V1-7 Package 5, P5-3, P5-5, P5-5, P5-8, P5-12, P5-24, P5-26, P5-27 ","Volume 1, Annex V1-7 Package 5,\nP5-1 Climate Change Analysis Approach Report, Hope Bay Project\nP5-2 Climate and Hydrological Parameters Summary Report, Hope Bay Project\nP5-3 Hope Bay Project: Contact Water Pond Berm Design\nP5-4 Madrid-Boston Project Water and Load Balance, Hope Bay Project\nP5-5 Geotechnical Design Parameters and Overburden Summary Report, Hope Bay Project\nP5-8 Hope Bay Project: Wind Energy Project Preliminary Design\nP5-9 Source Term Predictions for the Proposed Madrid North, Madrid South and\nBoston Mines, Hope Bay Project\nP5-12 Hope Bay Project: Crown Pillar Recovery Trench Preliminary Design\nP5-13 Hydrogeological Characterization and Modeling of the Proposed Boston,\nMadrid South and Madrid North Mines, Hope Bay Project\nP5-24 Hope Bay Project: Boston Water Management Design\nP5-26 Boston Tailings Management Area Preliminary Design, Hope Bay Project\nP5-27 Boston Tailings Disposal Alternatives Assessment, Hope Bay Project,\nNunavut\nP5-28 Hope Bay Project: Boston Surface Infrastructure Preliminary Design\nP5-29 Hope Bay Project: Boston Airstrip Preliminary Design\n","-"]
[null,"e","Materials that appropriately delineate the particulars of a design or plan.","Y","-","Madrid-Boston Final Environmental Impact Statement TMAC Resources Inc, Dec 2017","Volume 1, Annex V1-7 Package 5, P5-3, P5-5, P5-5, P5-8, P5-12, P5-24, P5-26, P5-27, P5-28, P5-29","Volume 1, Annex V1-7, Package 5, \n\nP5-3 Hope Bay Project: Contact Water Pond Berm Design\nP5-4 Madrid-Boston Project Water and Load Balance, Hope Bay Project\nP5-5 Geotechnical Design Parameters and Overburden Summary Report, Hope\nBay Project\nP5-8 Hope Bay Project: Wind Energy Project Preliminary Design\nP5-12 Hope Bay Project: Crown Pillar Recovery Trench Preliminary Design\nP5-24 Hope Bay Project: Boston Water Management Design\nP5-26 Boston Tailings Management Area Preliminary Design, Hope Bay Project\nP5-27 Boston Tailings Disposal Alternatives Assessment, Hope Bay Project, Nunavut\nP5-28 Hope Bay Project: Boston Surface Infrastructure Preliminary Design\nP5-29 Hope Bay Project: Boston Airstrip Preliminary Design\n"]
[null,54,"Provide construction methods and procedures regarding how infrastructure will be put in place on-site.","Y","-","Madrid-Boston Final Environmental Impact Statement TMAC Resources Inc, Dec 2017","Volume 1, Annex V1-7 Package 5, P5-3 P5-8, P5-24, P5-26, P5-28, P5-29","Volume 1, Annex V1-7, Package 5, \n\nP5-3 Hope Bay Project: Contact Water Pond Berm Design Section 6 \nP5-8 Hope Bay Project: Wind Energy Project Preliminary Design Section 5\nP5-24 Hope Bay Project: Boston Water Management Design\nP5-26 Boston Tailings Management Area Preliminary Design, Hope Bay Project Section 5\nP5-28 Hope Bay Project: Boston Surface Infrastructure Preliminary Design Section 5\nP5-29 Hope Bay Project: Boston Airstrip Preliminary Design Section 5\n"]
[null,55,"Provide a timetable for submission of preliminary and final-for-construction engineered designs (note: for construction designs are required for NWB approvals).","N/A","Preliminary and final for construction engineered designs to be provided  3 months prior to construction.","-","-","-","Preliminary and final for construction engineered designs to be provided  3 months prior to construction."]
[null,56,"See sections 5, 6 and 7 of this SIG for additional information requirements"]
["Proposed Time Schedule",57,"Provide the proposed start and completion dates for each phase of development (construction, operation, closure and post closure) and any anticipated periods of seasonal shut down.","Y","-","Madrid-Boston Final Environmental Impact Statement TMAC Resources Inc, Dec 2017"," Volume 1, Annex V1-7, Package 4, P4"," Volume 1, Annex V1-7, Package P2-2 Section 1.2","-"]
["Proposed Term of Licence",58,"Provide a proposed term of licence including the expected date of licence issuance and the expected date of licence expiry.","Y","-","Madrid-Boston Final Environmental Impact Statement TMAC Resources Inc, Dec 2017"," Volume 1, Annex V1-7, Package 4, P4"," Volume 1, Annex V1-7, Package P3-2","-"]
["Annual Reporting",59,"Provide detailed information regarding the content of annual reports and a proposed outline or template of the annual report. The annual report should include the following:","N/A","For items 59 a through e the following  applies: Annual Reporting Requirements are to be determined during the Water Licencing Stage. Currently Annual reporting to the NWB, the NIRB and KIA for the existing and approved project Doris Project is up to date and ongoing, with annual reports summarizing studies undertaken over the preceding calendar year.","-","-","-","Annual Reporting Requirements are to be determined during the Water Licencing Stage. Currently Annual reporting to the NWB, the NIRB and KIA for the existing and approved Doris Project is up to date and ongoing, with annual reports summarizing studies undertaken over the preceding calendar year."]
[null,"a","Water related monitoring results;","N/A","see above","-","-","-","-"]
[null,"b","Comparison of water quality and quantity monitoring data with the water quality and quantity predictions presented in the application;","N/A","see above","-","-","-","-"]
[null,"c","A description of how the conditions in the NIRB project certificate related to the NWB mandate have been implemented;","N/A","see above","-","-","-","-"]
[null,"d","Project changes under adaptive management;","Y","-","Madrid-Boston Final Environmental Impact Statement TMAC Resources Inc, Dec 2017"," Volume 1, Annex V1-7, Package 4, P4"," Volume 1, Annex V1-7, Package 4, P4 Section 1.4","-"]
[null,"e","Any actions taken in response to direction provided by the Inspector.","N/A","see above","-","-","-","-"]
["Renewals and Amendments",60,"If the application is for a renewal or amendment of an existing licence provide the water licence number and the date of water licence expiry.","N/A","Not a renewal or amendment","-","-","-","-"]
[null,61,"If the application is for a renewal or amendment of an existing licence, provide a compliance assessment/status report.  This report must document the status of compliance for each condition of the existing water licence taking into consideration inspector dialogues and inspector directions, responses to inspector dialogues and inspector directions, spills that may have occurred, and any reporting requirements.  The report must indicate when facilities were inspected by regulatory agencies and list any spills that may have occurred including a description, location shown on a map, and the action taken to address the affected area.","N/A","Not a renewal or amendment","-","-","-","-"]

{"sheet":"4.0 Project Description","index":5,"n_rows":36,"n_cols":11,"rows_kept":36,"cut":false,"hidden":false,"merged":[[0,0,0,2]]}
["4.0  Project Description"]
["Section Title","Section No."," Information Requirement","Indicate whether Information Requirement is applicable by inserting ' Y ' or ' NA '","If 'NA' provide justification","Insert Title, Author and Date of Document where information is provided","Insert electronic file name of document where information is provided","Insert Section of document where information is provided","If information is not available at the time of application, indicate when the information will be made available","NWB Concordance Assessment","NIRB Guideline Section No."]
["Description of Undertaking",1,"Provide a complete description of the undertaking with detailed site plan(s) of all project infrastructure for the Local Project Area (LPA) and/or the Regional Project Area (RPA), where applicable. Include maps and/or aerial photos with scales that allow the determination of distances between the objects depicted. Differentiate any temporary components from permanent components. Consider the following in providing the description: ","Y","-","Madrid-Boston Final Environmental Impact Statement TMAC Resources Inc, Dec 2017","Volume_1, Annex V1-7, Package_2, P2-2 \n","Volume_1, Annex V1-7, Package_2, P2-2 Project Description Type A Water Licence Boston ","-"]
[null,"a","Raw water intake;","Y","-","Madrid-Boston Final Environmental Impact Statement TMAC Resources Inc, Dec 2017","Volume_1, Annex V1-7, Package_2, P2-2 \nVolume_1, Annex V1-7, Package_5, P5-24 \n","Volume_1, Annex V1-7, Package_2, P2-2 Project Description Type A Water Licence Boston Section 5 and Figure 3.1-1\nVolume_1, Annex V1-7, Package_5, P5-24 Hope Bay Project: Boston Water Management Design Windy Water Intake Memo \nWater intake location at Doris will remain as per existing Type A Water Licence 2AM-DOH1323","-"]
[null,"b","Water storage and treatment facilities including distribution systems;","Y","-","Madrid-Boston Final Environmental Impact Statement TMAC Resources Inc, Dec 2017","Volume_1, Annex V1-7, Package_2, P2-2 \nVolume_1, Annex V1-7, Package_5, P5-24 \n","Volume_1, Annex V1-7, Package_2, P2-2 Project Description Type A Water Licence Boston Section 5\nVolume_1, Annex V1-7, Package_5, P5-24 Hope Bay Project: Boston Water Management Design ","-"]
[null,"c","Existing water bodies/courses and any changes to these water bodies/courses that may have or may occur as a result of water use or waste disposal facilities. Provide an outline of the drainage basin and drainage patterns within the RPA;","Y","-","Madrid-Boston Final Environmental Impact Statement TMAC Resources Inc, Dec 2017","Volume_1, Annex V1-7, Package_5, P5-4 \n","Volume_1, Annex V1-7, Package_5, P5-4 Madrid-Boston Project Water and Load Balance, Hope Bay Project ","-"]
[null,"d","Location of receiving water bodies and drainage pathways;","Y","-","Madrid-Boston Final Environmental Impact Statement TMAC Resources Inc, Dec 2017","Volume_1, Annex V1-7, Package_2, P2-2 \nVolume_1, Annex V1-7, Package_5, P5-4 Volume_1, Annex V1-7, Package_5, P5-24 \n","Volume_1, Annex V1-7, Package_2, P2-2 Project Description Type A Water Licence Boston Figure 3.1-1\nVolume_1, Annex V1-7, Package_5, P5-4 Madrid-Boston Project Water and Load Balance, Hope Bay Project Volume_1, Annex V1-7, Package_5, P5-24 Hope Bay Project: Boston Water Management Design ","-"]
[null,"e","Transportation access routes and details of water course crossings;","Y","-","Madrid-Boston Final Environmental Impact Statement TMAC Resources Inc, Dec 2017","Volume_1, Annex V1-7, Package_2, P2-2 \n","Volume_1, Annex V1-7, Package_2, P2-2 Project Description Type A Water Licence Boston ","-"]
[null,"f","Locations of environmental monitoring sites;","N/A","All locations of environmental monitoring sites related to Phase 2 Project are to be developed in consultation with the inspector during the Water Licencing Phase.\nExisting and approved environmental monitoring sites for the Doris Project are detailed in the Type A Water Licence 2AM-DOH1323.","Madrid-Boston Final Environmental Impact Statement TMAC Resources Inc, Dec 2017","\n","\n","-"]
[null,"g","Traditional water use and land use areas that may be impacted by the project;","Y","-","Madrid-Boston Final Environmental Impact Statement TMAC Resources Inc, Dec 2017","Volume_6, \n","Volume_6, Section 4.2 and 4.3\n","-"]
[null,"h","Sewage treatment facilities;","Y","-","Madrid-Boston Final Environmental Impact Statement TMAC Resources Inc, Dec 2017","Volume_1, Annex V1-7, Package_2, P2-2 \nVolume_1, Annex V1-7, Package_5, P5-24 Volume_1, Annex V1-7, Package_4, P4-4 Volume_1, Annex V1-7, Package_4, P4-5 \n","Volume_1, Annex V1-7, Package_2, P2-2 Project Description Type A Water Licence Boston Section 5\nVolume_1, Annex V1-7, Package_5, P5-24 Hope Bay Project: Boston Water Management Design Volume_1, Annex V1-7, Package_4, P4-4 Hope Bay Project Domestic Wastewater Treatment Management Plan Volume_1, Annex V1-7, Package_4, P4-5 Hope Bay Project: Boston Sewage Treatment Operations and Maintenance Management Plan \n","-"]
[null,"i","Wastewater treatment area and discharge outlet locations;","Y","-","Madrid-Boston Final Environmental Impact Statement TMAC Resources Inc, Dec 2017","Volume_1, Annex V1-7, Package_2, P2-2 \nVolume_1, Annex V1-7, Package_5, P5-24 Volume_1, Annex V1-7, Package_4, P4-4 Volume_1, Annex V1-7, Package_4, P4-5 \n","Volume_1, Annex V1-7, Package_2, P2-2 Project Description Type A Water Licence Boston Section 5\nVolume_1, Annex V1-7, Package_5, P5-24 Hope Bay Project: Boston Water Management Design Volume_1, Annex V1-7, Package_4, P4-4 Hope Bay Project Domestic Wastewater Treatment Management Plan Volume_1, Annex V1-7, Package_4, P4-5 Hope Bay Project: Boston Sewage Treatment Operations and Maintenance Management Plan \n","-"]
[null,"j","Solid waste disposal areas and drainage patterns;","Y","-","Madrid-Boston Final Environmental Impact Statement TMAC Resources Inc, Dec 2017","Volume_1, Annex V1-7, Package_2, P2-2 \nVolume_1, Annex V1-7, Package_5, P5-26 Volume_1, Annex V1-7, Package_5, P5-28 Volume_1, Annex V1-7, Package_4, P4-16 Volume_1, Annex V1-7, Package_4, P4-15 Volume_1, Annex V1-7, Package_4, P4-10 Volume_1, Annex V1-7, Package_4, P4-11 Volume_1, Annex V1-7, Package_4, P4-14 Volume_1, Annex V1-7, Package_4, P4-13 \n","Volume_1, Annex V1-7, Package_2, P2-2 Project Description Type A Water Licence Boston Section 4, 5 and 6\nVolume_1, Annex V1-7, Package_5, P5-26 Boston Tailings Management Area Preliminary Design, Hope Bay Project  Volume_1, Annex V1-7, Package_5, P5-28 Hope Bay Project: Boston Surface Infrastructure Preliminary Design Volume_1, Annex V1-7, Package_4, P4-16 Hope Bay Project Incinerator Management Plan Volume_1, Annex V1-7, Package_4, P4-15 Hope Bay Project Hazardous Waste Management Plan Volume_1, Annex V1-7, Package_4, P4-10 Hope Bay Project Boston Tailings Management Area - Operations, Maintenance, and Surveillance Manual Volume_1, Annex V1-7, Package_4, P4-11 Hope Bay Project Waste Rock, Ore and Mine Backfill Management Plan Volume_1, Annex V1-7, Package_4, P4-14 Hope Bay Project Hydrocarbon Contaminated Material Management Plan Volume_1, Annex V1-7, Package_4, P4-13 Hope Bay Project Non-hazardous Waste Management Plan \n","-"]
[null,"k","Incinerators","Y","-","Madrid-Boston Final Environmental Impact Statement TMAC Resources Inc, Dec 2017","Volume_1, Annex V1-7, Package_2, P2-2 \nVolume_1, Annex V1-7, Package_4, P4-16 \n","Volume_1, Annex V1-7, Package_2, P2-2 Project Description Type A Water Licence Boston Section 6\nVolume_1, Annex V1-7, Package_4, P4-16 Hope Bay Project Incinerator Management Plan \n","-"]
[null,"l","Landfarm (see the NWB's SIG for Landfarm and on-site storage of hydrocarbon contaminated soil (I3));","Y","-","Madrid-Boston Final Environmental Impact Statement TMAC Resources Inc, Dec 2017","Volume_1, Annex V1-7, Package_2, P2-2 \nVolume_1, Annex V1-7, Package_4, P4-14 \n","Volume_1, Annex V1-7, Package_2, P2-2 Project Description Type A Water Licence Boston Section 6\nVolume_1, Annex V1-7, Package_4, P4-14 Hope Bay Project Hydrocarbon Contaminated Material Management Plan ","-"]
[null,"m","Waste rock piles (PAG and non-PAG);","Y","-","Madrid-Boston Final Environmental Impact Statement TMAC Resources Inc, Dec 2017","Volume_1, Annex V1-7, Package_2, P2-2 \nVolume_1, Annex V1-7, Package_4, P4-11 Volume_1, Annex V1-7, Package_5, P5-28 \n","Volume_1, Annex V1-7, Package_2, P2-2 Project Description Type A Water Licence Boston Section 4\nVolume_1, Annex V1-7, Package_4, P4-11 Hope Bay Project Waste Rock, Ore and Mine Backfill Management Plan Volume_1, Annex V1-7, Package_5, P5-28 Hope Bay Project: Boston Surface Infrastructure Preliminary Design ","-"]
[null,"n","Stockpiles;","Y","-","Madrid-Boston Final Environmental Impact Statement TMAC Resources Inc, Dec 2017","Volume_1, Annex V1-7, Package_2, P2-2 \nVolume_1, Annex V1-7, Package_5, P5-28 \n","Volume_1, Annex V1-7, Package_2, P2-2 Project Description Type A Water Licence Boston Section 4\nVolume_1, Annex V1-7, Package_5, P5-28 Hope Bay Project: Boston Surface Infrastructure Preliminary Design ","-"]
[null,"o","Mill or processing plant;","Y","-","Madrid-Boston Final Environmental Impact Statement TMAC Resources Inc, Dec 2017","Volume_1, Annex V1-7, Package_2, P2-2 \nVolume_1, Annex V1-7, Package_5, P5-28 \n","Volume_1, Annex V1-7, Package_2, P2-2 Project Description Type A Water Licence Boston Section 4.3 and Figure 4.3-1\nVolume_1, Annex V1-7, Package_5, P5-28 Hope Bay Project: Boston Surface Infrastructure Preliminary Design","-"]
[null,"p","Tailings containment areas;","Y","-","Madrid-Boston Final Environmental Impact Statement TMAC Resources Inc, Dec 2017","Volume_1, Annex V1-7, Package_2, P2-2 \nVolume_1, Annex V1-7, Package_5, P5-26 Volume_1, Annex V1-7, Package_4, P4-10 \n","Volume_1, Annex V1-7, Package_2, P2-2 Project Description Type A Water Licence Boston Section 6\nVolume_1, Annex V1-7, Package_5, P5-26 Boston Tailings Management Area Preliminary Design, Hope Bay Project  Volume_1, Annex V1-7, Package_4, P4-10 Hope Bay Project Boston Tailings Management Area - Operations, Maintenance, and Surveillance Manual ","-"]
[null,"q","Laydown areas;","Y","-","Madrid-Boston Final Environmental Impact Statement TMAC Resources Inc, Dec 2017","Volume_1, Annex V1-7, Package_2, P2-2 \nVolume_1, Annex V1-7, Package_5, P5-28 \n","Volume_1, Annex V1-7, Package_2, P2-2 Project Description Type A Water Licence Boston \nVolume_1, Annex V1-7, Package_5, P5-28 Hope Bay Project: Boston Surface Infrastructure Preliminary Design ","-"]
[null,"r","Quarries;","Y","-","Madrid-Boston Final Environmental Impact Statement TMAC Resources Inc, Dec 2017","Volume_1, Annex V1-7, Package_2, P2-2 \nVolume_1, Annex V1-7, Package_5, P5-6 Volume_1, Annex V1-7, Package_4, P4-17 \n","Volume_1, Annex V1-7, Package_2, P2-2 Project Description Type A Water Licence Boston \nVolume_1, Annex V1-7, Package_5, P5-6 Geochemical Characterization of Madrid-Boston Project Quarries, Hope Bay Project Volume_1, Annex V1-7, Package_4, P4-17 Hope Bay Project Quarry Management and Monitoring Plan ","-"]
[null,"s","Hazardous waste disposal area;","Y","-","Madrid-Boston Final Environmental Impact Statement TMAC Resources Inc, Dec 2017","Volume_1, Annex V1-7, Package_2, P2-2 \nVolume_1, Annex V1-7, Package_4, P4-15 \n","Volume_1, Annex V1-7, Package_2, P2-2 Project Description Type A Water Licence Boston Section 6\nVolume_1, Annex V1-7, Package_4, P4-15 Hope Bay Project Hazardous Waste Management Plan ","-"]
[null,"t","Waste discharge distribution lines;","Y","-","Madrid-Boston Final Environmental Impact Statement TMAC Resources Inc, Dec 2017","Volume_1, Annex V1-7, Package_2, P2-2 \nVolume_1, Annex V1-7, Package_5, P5-24 \n","Volume_1, Annex V1-7, Package_2, P2-2 Project Description Type A Water Licence Boston \nVolume_1, Annex V1-7, Package_5, P5-24 Hope Bay Project: Boston Water Management Design ","-"]
[null,"u","Fuel and chemical storage;","Y","-","Madrid-Boston Final Environmental Impact Statement TMAC Resources Inc, Dec 2017","Volume_1, Annex V1-7, Package_2, P2-2 \nVolume_1, Annex V1-7, Package_5, P5-28 \n","Volume_1, Annex V1-7, Package_2, P2-2 Project Description Type A Water Licence Boston Section 7\nVolume_1, Annex V1-7, Package_5, P5-28 Hope Bay Project: Boston Surface Infrastructure Preliminary Design ","-"]
[null,"v","Explosives manufacturing and storage;","Y","-","Madrid-Boston Final Environmental Impact Statement TMAC Resources Inc, Dec 2017","Volume_1, Annex V1-7, Package_2, P2-2 , P4-23\n","Volume_1, Annex V1-7, Package_2, P2-2 Project Description Type A Water Licence Boston, P4-23 Explosives Management Plan","-"]
[null,"w","Abandoned and/or restored facilities;","Y","-","Madrid-Boston Final Environmental Impact Statement TMAC Resources Inc, Dec 2017","Volume_1, Annex V1-7, Package_2, P2-2 \nVolume_1, Annex V1-7, Package_4, P4-19 \n","Volume_1, Annex V1-7, Package_2, P2-2 Project Description Type A Water Licence Boston Section 8\nVolume_1, Annex V1-7, Package_4, P4-19 Hope Bay Project Boston Conceptual Closure and Reclamation Plan ","-"]
[null,"x","Existing on site infrastructure;","Y","-","Madrid-Boston Final Environmental Impact Statement TMAC Resources Inc, Dec 2017","Volume_1, Annex V1-7, Package_2, P2-2 \n","Volume_1, Annex V1-7, Package_2, P2-2 Project Description Type A Water Licence Boston ","-"]
[null,"y","Others:","N/A","-","-","-","-","-"]
["Mine Plan",2,"Provide a Mine Plan Overview including:",null,null,"Madrid-Boston Final Environmental Impact Statement TMAC Resources Inc, Dec 2017","Volume_1, Annex V1-7, Package_2, P2-2 \n","Volume_1, Annex V1-7, Package_2, P2-2 Project Description Type A Water Licence Boston Section 2","-"]
[null,"a","Description of the location, physical nature, geology and minerology of the ore deposit and host rock. (See section 5 items 19-23)","Y","-","Madrid-Boston Final Environmental Impact Statement TMAC Resources Inc, Dec 2017","Volume_4, \n","Volume_4, Section 4\n","-"]
[null,"b","Mine development plan and methods","Y","-","Madrid-Boston Final Environmental Impact Statement TMAC Resources Inc, Dec 2017","Volume_1, Annex V1-7, Package_2, P2-2 Project Description Type A Water Licence Boston, Volume_3 ","Volume_1, Annex V1-7, Package_2, P2-2, Section 4,  Project Description Type A Water Licence Boston Section, Volume_3, Section 4","-"]
[null,"c","Exploration operations","Y","-","Madrid-Boston Final Environmental Impact Statement TMAC Resources Inc, Dec 2017","Volume_3, \n","Volume_3, Section 4","-"]
[null,"d","Description of earthworks for mine development","Y","-","Madrid-Boston Final Environmental Impact Statement TMAC Resources Inc, Dec 2017","Volume_3, \n","Volume_3, Section 4","-"]
[null,"e","Milling or processing plant operations including:","Y","-","Madrid-Boston Final Environmental Impact Statement TMAC Resources Inc, Dec 2017","Volume_1, Annex V1-7, Package_2, P2-2 \nVolume_1, Annex V1-7, Package_2, P2-1 Volume_1, Annex V1-7, Package_2, P2-1 Volume_1, Annex V1-7, Package_2, P2-2 Volume_1, Annex V1-7, Package_2, P2-2 \n","Volume_1, Annex V1-7, Package_2, P2-2 Project Description Type A Water Licence Boston Section 4\nVolume_1, Annex V1-7, Package_2, P2-1 Project Description Amendment No. 2 Type A Water Licence 2AM-DOH1323 (Doris & Madrid) Volume_1, Annex V1-7, Package_2, P2-1 Project Description Amendment No. 2 Type A Water Licence 2AM-DOH1323 (Doris & Madrid) Volume_1, Annex V1-7, Package_2, P2-2 Project Description Type A Water Licence Boston Volume_1, Annex V1-7, Package_2, P2-2 Project Description Type A Water Licence Boston Section 2","-"]
[null,"f","Expected life of the mine.","Y","-","Madrid-Boston Final Environmental Impact Statement TMAC Resources Inc, Dec 2017","Volume_1, Annex V1-7, Package_2, P2-2 \n","Volume_1, Annex V1-7, Package_2, P2-2 Project Description Type A Water Licence Boston Section 2","-"]
[null,"g","Camp and mine site population projections for each phase of the project.","Y","-","Madrid-Boston Final Environmental Impact Statement TMAC Resources Inc, Dec 2017","Volume_1, Annex V1-7, Package_2, P2-2 ","Volume_1, Annex V1-7, Package_2, P2-2, Section 1.2 ","-"]

{"sheet":"5.0 Baseline Information ","index":6,"n_rows":78,"n_cols":11,"rows_kept":78,"cut":false,"hidden":false,"merged":[[0,0,0,10],[61,0,62,0]]}
["5.0 Baseline Information"]
["Section Title","Section No."," Information Requirement","Indicate whether Information Requirement is applicable by inserting ' Y ' or ' NA '","If 'NA' provide justification","Insert Title, Author and Date of Document where information is provided","Insert electronic file name of document where information is provided","Insert Section of document where information is provided","If information is not available at the time of application, indicate when the information will be made available","NWB Concordance Assessment","NIRB Guideline Section No."]
["Environmental Setting",1,"Provide a description of the regional and local setting using maps and/or aerial photos with scales that allow the determination of distances between the objects depicted.","Y","-","Madrid-Boston Final Environmental Impact Statement, TMAC Resources Inc, December 2017 ","Volume 1, Volume 2, Project Description P2-1 ","Volume 1 Section 1.2, Volume 2 Section 1.4, Project Description P2-1 (Figure 3.1-1, Figure 3.2-1, Figure 3.3-1, and Figure 3.4-1); Volume 4 Sections 1.2, 1.4, 2.2, 2.4, 3.2, 3.4, 4.2, 6.2, 6.3, 7.2, 8.2, 8.4, 9,2, 9.4,; Volume 5 Sections 1.2, 1.4, 2.1, 3.2, 4.2, 4.4, 5.2, 5.4, 6.2, 6.4 Volume 6 Sections 2.2, 2.4","-"]
[null,2,"Provide a brief history of the property development which took place before the present company gained control of the site.  Include shafts, adits, mills, waste dumps, chemical storage areas, tailings disposal areas, and effluent discharge locations.  Make references to a detailed map.","Y","-","Madrid-Boston Final Environmental Impact Statement, TMAC Resources Inc, December 2017 ","Volume 2","Volume 2 Section 1.2","-"]
[null,3,"Provide a description of the site conditions, including:",null,null,null,null,null,"-"]
[null,"a","location","Y","-","Madrid-Boston Final Environmental Impact Statement, TMAC Resources Inc, December 2017 ","Volume 1, Volume 2","Volume 1, Section 1, Volume 2 Section 1","-"]
[null,"b","topography","Y","-","Madrid-Boston Final Environmental Impact Statement, TMAC Resources Inc, December 2017 ","Volume 5","Volume 5, Section 7.2","-"]
[null,"c","geologic conditions","Y","-","Madrid-Boston Final Environmental Impact Statement, TMAC Resources Inc, December 2017 ","Volume 4","Volume 4, Section 4.2","-"]
[null,"d","hydrologic characteristics","Y","-","Madrid-Boston Final Environmental Impact Statement, TMAC Resources Inc, December 2017 ","Volume 5","Volume 5, Section 1.2","-"]
[null,"e","climate conditions and predicted future climate trends","Y","-","Madrid-Boston Final Environmental Impact Statement, TMAC Resources Inc, December 2017 ","Volume 4","Volume 4, Section 1.2","-"]
[null,"f","seismicity","N/A","The Hope Bay Project is in area which is not subject to seismic activity.","-","-","-","-"]
[null,"g","permafrost conditions","Y","-","Madrid-Boston Final Environmental Impact Statement, TMAC Resources Inc, December 2017 ","Volume 4, ","Volume 4  Section 6.3","-"]
[null,4,"Provide a description of the regional and local surface water regime and drainage area and outline the drainage basin on an attached map.","Y","-","Madrid-Boston Final Environmental Impact Statement, TMAC Resources Inc, December 2017 ","Volume 5, List of Appendices and Volume 1, Annex V1-7, Package 5"," Volume 1, Annex V1-7, Package 5, P5-4 Madrid-Boston Project – Water and Load Balance Volume 5 Section 1.2.","-"]
[null,5,"Provide a description of the groundwater regime.","Y","-","Madrid-Boston Final Environmental Impact Statement, TMAC Resources Inc, December 2017 ","Volume 5","Volume 5 Section 2.1","-"]
[null,6,"Provide baseline data and an evaluation of baseline data describing surface and groundwater quality in the project area (physical, chemical, and biological characteristics).","Y","-","Madrid-Boston Final Environmental Impact Statement, TMAC Resources Inc, December 2017 ","Volume 5, List of Appendices","Volume 5 Section 1.2 and 2.1\nAppendices\nV5-3J 2009 Freshwater Baseline Report, Hope Bay Belt Project\nV5-3K Hope Bay Belt Project: 2010 Freshwater Baseline Report","-"]
[null,7,"Provide a description of the usual break-up and freeze-up periods.","Y","-","Madrid-Boston Final Environmental Impact Statement, TMAC Resources Inc, December 2017 ","Volume 5","Volume 5 Sections 1.2.4 and 2.1.1.2","-"]
[null,8,"Provide a description of streambed material, streambank material, and streambank vegetation,","Y","-","Madrid-Boston Final Environmental Impact Statement, TMAC Resources Inc, December 2017 ","Volume 5","Volume 5, Sections 5.2 and 6.2\n","-"]
[null,9,"Indicate the slope of the banks of any water course affected by the application","N//A","No anticipated impacts as a result of the Project ","-","-","-","-"]
[null,10,"Provide a description of the meander pattern for any channel affected by the application","N/A","No anticipated effects on meander channels - details on Bassline Conditions are provided in the following appendices.","Madrid-Boston Final Environmental Impact Statement, TMAC Resources Inc, December 2017 ","List of Appendices","Appendices\nV5-3B Boston Property N.W.T.: Environmental Data Report \nV5-3CBoston Property N.W.T.: Environmental Data Report \n V5-3E Boston Property N.W.T.: Environmental Data Report 1995 \n V5-3F Hope Bay Belt Project: Environmental Baseline Studies Report 1996\n V5-3G Hope Bay Belt Project: 1997 Environmental Data Report  V5-3H Hope Bay Belt Project: 1998 Environmental Data Report  \nV5-3I 2000 Supplemental Environmental Baseline Data Report, Hope Bay Belt Project \n V5-3K Doris North Project: Aquatic Studies 2003 \n V5-3P Boston and Madrid Project Areas: 2006-2007 Aquatic Studies, \n V5-3R Hope Bay Project: Aquatic Studies 2008,\n V5-3D Doris Lake Project, Northwest Territories 1995 Environmental Study,\n V5-5A Doris North Project Aquatic Studies 2002,\n V5-3L Doris North Project Aquatic Studies 2004,\n V5-3M Doris North Project Aquatic Studies 2005,\n V5-3O Doris North Project Aquatic Studies 2006,\nV5-3Q Doris North Project Aquatic Studies 2007,\nV5-6D 2009 Freshwater Fish and Fish Habitat Baseline Report, Hope Bay Belt Project,\n V5-6E Hope Bay Belt Project: 2010 Freshwater Fish and Fish Habitat Baseline Report, \nV5-6P Imniagut Lake Fisheries Assessment, Doris North Project, 2014 , \nV5-6Q Proposed Access Road Fisheries Assessments, Doris North Project 2015,  \nV5-6R Doris Lake, Doris Creek, and Little Roberts Outflow Fisheries Assessment","-"]
[null,11,"Provide the following streamflow data in cubic metres per second for each watercourse included in the application:","Y","-","Madrid-Boston Final Environmental Impact Statement, TMAC Resources Inc, December 2017 ","Volume 5","Volume 5, Section 1 ","-"]
[null,"a","mean annual flow;","Y","-","Madrid-Boston Final Environmental Impact Statement, TMAC Resources Inc, December 2017 ","Volume 5","Volume 5, Section 1.2  ","-"]
[null,"b","mean summer flow;","Y","-","Madrid-Boston Final Environmental Impact Statement, TMAC Resources Inc, December 2017 ","Volume 5, List of Appendices","Monthly flows are provided in Volume 5, Section 1.2 (and in baseline appendices detailed in Section 1.2.2). These monthly flows could be averaged over summer (if summer was clearly defined).\nAppendices\n V5-1A Hope Bay Belt Project: 1993-2002 Data Compilation Report for Meteorology and Hydrology; \nV5-1B Meteorology and Hydrology Baseline Report Doris North Project; \nV5-1C Doris Project Area 2008 Hydrology Baseline Update\nV5-1D Hope Bay Belt Project: 2009 Hydrology Baseline Report;  V5-1E Hope Bay Project: 2010 Hydrology Baseline Report\nV5-1F Doris North Gold Mine Project: Hydrology Compliance Report, 2010\nV5-1G Hope Bay Belt Project: 2011 Hydrology Baseline Report\nV5-1H Doris North Gold Mine Project: Hydrology Compliance Report 2011\nV5-1I Doris North Gold Mine Project: Hydrology Compliance Report 2012\nV5-1J Doris North Project: 2013 Hydrology Compliance Monitoring Report\nV5-1K Doris North Project 2014 Hydrology Compliance Monitoring Program\nV5-1L Doris North Project: 2015 Hydrology Compliance Monitoring Program","-"]
[null,"c","minimum summer flow;","Y","-","Madrid-Boston Final Environmental Impact Statement, TMAC Resources Inc, December 2017 ","Volume 5, List of Appendices","Volume 5, Section 1.2  \nAppendices\nV5-1A Hope Bay Belt Project: 1993-2002 Data Compilation Report for Meteorology and Hydrology; \nV5-1B Meteorology and Hydrology Baseline Report Doris North Project; \nV5-1C Doris Project Area 2008 Hydrology Baseline Update\nV5-1D Hope Bay Belt Project: 2009 Hydrology Baseline Report;  V5-1E Hope Bay Project: 2010 Hydrology Baseline Report\nV5-1F Doris North Gold Mine Project: Hydrology Compliance Report, 2010;\nV5-1G Hope Bay Belt Project: 2011 Hydrology Baseline Report;\nV5-1H Doris North Gold Mine Project: Hydrology Compliance Report 2011;\nV5-1I Doris North Gold Mine Project: Hydrology Compliance Report 2012;\nV5-1J Doris North Project: 2013 Hydrology Compliance Monitoring Report;\nV5-1K Doris North Project 2014 Hydrology Compliance Monitoring Program;\nV5-1L Doris North Project: 2015 Hydrology Compliance Monitoring Program","-"]
[null,"d","minimum annual flow;","Y","-","Madrid-Boston Final Environmental Impact Statement, TMAC Resources Inc, December 2017 ","Volume 5","Volume 5, Section 1.2  \n","-"]
[null,"e","mean annual flood;","Y","-","Madrid-Boston Final Environmental Impact Statement, TMAC Resources Inc, December 2017 ","List of Appendices","Appendices\nV5-1D Hope Bay Belt Project: 2009 Hydrology Baseline Report;\nV5-1E Hope Bay Project: 2010 Hydrology Baseline Report;\nV5-1F Doris North Gold Mine Project: Hydrology Compliance Report, 2010;\nV5-1G Hope Bay Belt Project: 2011 Hydrology Baseline Report;\nV5-1H Doris North Gold Mine Project: Hydrology Compliance Report 2011;\nV5-1I  Doris North Gold Mine Project: Hydrology Compliance Report 2012\n","-"]
[null,"f","maximum summer flood;","Y","-","Madrid-Boston Final Environmental Impact Statement, TMAC Resources Inc, December 2017 ","List of Appendices","Appendices\nV5-1D Hope Bay Belt Project: 2009 Hydrology Baseline Report;\nV5-1E Hope Bay Project: 2010 Hydrology Baseline Report;\nV5-1F Doris North Gold Mine Project: Hydrology Compliance Report, 2010;\nV5-1G Hope Bay Belt Project: 2011 Hydrology Baseline Report;\nV5-1H Doris North Gold Mine Project: Hydrology Compliance Report 2011;\nV5-1I  Doris North Gold Mine Project: Hydrology Compliance Report 2012","-"]
[null,"g","mean summer flood;","Y","-","Madrid-Boston Final Environmental Impact Statement, TMAC Resources Inc, December 2017 ","List of Appendices","Appendices\nV5-1D Hope Bay Belt Project: 2009 Hydrology Baseline Report;\nV5-1E Hope Bay Project: 2010 Hydrology Baseline Report;\nV5-1F Doris North Gold Mine Project: Hydrology Compliance Report, 2010;\nV5-1G Hope Bay Belt Project: 2011 Hydrology Baseline Report;\nV5-1H Doris North Gold Mine Project: Hydrology Compliance Report 2011;\nV5-1I  Doris North Gold Mine Project: Hydrology Compliance Report 2012\n","-"]
[null,12,"Provide bathymetric information for water bodies affected by the application.","Y","-","Madrid-Boston Final Environmental Impact Statement, TMAC Resources Inc, December 2017 ","Volume 5","Volume 5 Section 3.2","-"]
[null,13,"Provide a description of the ground condition for design and engineering of earthwork infrastructure, including (if applicable, provide test pit/ drill hole logs and laboratory test results): ","Y","See below","Madrid-Boston Final Environmental Impact Statement, TMAC Resources Inc, December 2017 ","See below","See below","-"]
[null,"a","Interim and permanent waste rock facilities","Y","-","Madrid-Boston Final Environmental Impact Statement, TMAC Resources Inc, December 2017 ","Volume 1, Annex V1-7 Package P2-2, P5-5, P5-28,  Volume 4","Volume 1, Annex V1-7 Package  P2-2, Section1.2, 4\nVolume 4, Section 4.2, Section 7.2\n Packages\nP5-5 Geotechnical Design Parameters and Overburden Summary Report; \nP5-28 Hope Bay Project: Boston Surface Infrastructure Preliminary Design Section 2.3","-"]
[null,"b","Tailings containment area","Y","-","Madrid-Boston Final Environmental Impact Statement, TMAC Resources Inc, December 2017 ","Volume 1, Annex V1-7 Package P2-2, P5-5, P5-28 Volume 4","Volume 1, Annex V1-7 Package, P2-2 Section 1.2, 4.4\nP5-5 Geotechnical Design Parameters and Overburden Summary Report; \nP5-28 Hope Bay Project: Boston Surface Infrastructure Preliminary Design Section 2.3\nVolume 4, Section 4.2, Section 7.2 ","-"]
[null,"c","Landfills","Y","-","Phase 2 Draft Environmental Impact Statement, TMAC Resources Inc, January 2017","Volume 1, Annex V1-7 Package P2-2, P5-5, P5-28 Volume 4","Volume 1, Annex V1-7 Package P2-2 Section 6.1\nP5-5 Geotechnical Design Parameters and Overburden Summary Report; \nP5-28 Hope Bay Project: Boston Surface Infrastructure Preliminary Design Section 2.3\nVolume 4, Section 4.2, Section 7.2","-"]
[null,"d","Landfarms","Y","-","Phase 2 Draft Environmental Impact Statement, TMAC Resources Inc, January 2017","Volume 1, Annex V1-7 Package P2-2, P5-5, P5-28 Volume 4","Volume 1, Annex V1-7 Package P2-2 Section 1.2, 6.3\nP5-5 Geotechnical Design Parameters and Overburden Summary Report; \nP5-28 Hope Bay Project: Boston Surface Infrastructure Preliminary Design Section 2.3\nVolume 4, Section 4.2, Section 7.2","-"]
[null,"e","Fuel and chemical storage facilities","Y","-","Phase 2 Draft Environmental Impact Statement, TMAC Resources Inc, January 2017","Volume 1, Annex V1-7 Package P2-2, P5-5, P5-28 Volume 4","Volume 1, Annex V1-7 Package P2-2 Section 1.2, 7\n\nP5-5 Geotechnical Design Parameters and Overburden Summary Report;\nP5-15 Hope Bay Project: Roberts Bay 10 ML Fuel Storage Facility Preliminary Design;\nP5-28 Hope Bay Project: Boston Surface Infrastructure Preliminary Design Section 2.3\nVolume 4, Section 4.2, Section 7.2","-"]
[null,"f","Explosives management areas and facilities","Y","-","Madrid-Boston Final Environmental Impact Statement, TMAC Resources Inc, December 2017 ","Volume 1, Annex 1V-7, P2-2, P5-5, P5-28 Volume 4","Volume 1, Annex 1V-7, P2-2 Section 1.2,\nP5-5 Geotechnical Design Parameters and Overburden Summary Report; \nP5-28 Hope Bay Project: Boston Surface Infrastructure Preliminary Design Section 2.3\nVolume 4, Section 4.2, Section 7.2","-"]
[null,"g","Roads","Y","-","Madrid-Boston Final Environmental Impact Statement, TMAC Resources Inc, December 2017 ","Volume 1, Annex 1V-7, P2-2, P5-5, P5-11Volume 4","Volume 1, Annex 1V-7,P2-2 Section 1.2, 3,\nP5-5 Geotechnical Design Parameters and Overburden Summary Report; \nP5-11 Hope Bay Project: Madrid-Boston All-Weather Road Preliminary Design; \nVolume 4, Section 4.2, Section 7.2","-"]
[null,"h","Quarries or borrow pits","Y","-","Madrid-Boston Final Environmental Impact Statement, TMAC Resources Inc, December 2017 ","Volume 1, Annex 1V-7, Package P2-2, P5-5, P5-6 Volume 4","Volume 1, Annex 1V-7, Package P2-2 Section 1.2, 5.7\nP5-5 Geotechnical Design Parameters and Overburden Summary Report; \nP5-6 Geochemical Characterization of Madrid-Boston Project Quarries, Hope Bay Project\nVolume 4, Section 4.2, Section 7.2","-"]
[null,"i","Hazardous waste facilities","Y","-","Madrid-Boston Final Environmental Impact Statement, TMAC Resources Inc, December 2017 ","Volume 1, Annex 1V-7, Package P2-2, P5-5, P5-28","Volume 1, Annex 1V-7, Package P2-2 Section 1.2, 6.2\nP5-5 Geotechnical Design Parameters and Overburden Summary Report; \nP5-28 Hope Bay Project: Boston Surface Infrastructure Preliminary Design Section 2.3","-"]
[null,"j","Wastewater treatment facilities","Y","-","Madrid-Boston Final Environmental Impact Statement, TMAC Resources Inc, December 2017 ","Volume 1, Annex 1V-7, Package P2-2, P5-5, P5-28, Volume 4","Volume 1, Annex 1V-7, Package P2-2 Section 1.2, 5.2, 5.5, 5.6\nP5-5 Geotechnical Design Parameters and Overburden Summary Report; \nP5-28 Hope Bay Project: Boston Surface Infrastructure Preliminary Design Section 2.3\nVolume 4, Section 4.2, Section 7.2","-"]
[null,"k","Ore stockpiles","Y","-","Madrid-Boston Final Environmental Impact Statement, TMAC Resources Inc, December 2017 ","Volume 1, Annex 1V-7, Package P2-2, P5-5, P5-28, Volume 4","Volume 1, Annex 1V-7, Package P2-2 Section 1.2, 4.1,\nP5-5 Geotechnical Design Parameters and Overburden Summary Report; \nP5-28 Hope Bay Project: Boston Surface Infrastructure Preliminary Design Section 2.3\nVolume 4, Section 4.2, Section 7.2","-"]
[null,"l","Overburden piles","Y","-","Madrid-Boston Final Environmental Impact Statement, TMAC Resources Inc, December 2017 ","Volume 1, Annex 1V-7, Package P2-2, P5-5, P5-28, Volume 4, ","P2-2 Section 1.2\nVolume 4, Section 4.2, Section 7.2\nPackages\nP5-5 Geotechnical Design Parameters and Overburden Summary Report; \nP5-28 Hope Bay Project: Boston Surface Infrastructure Preliminary Design Section 2.3","-"]
[null,"m","Dewatering dikes","N/A","none onsite","-","-","-","-"]
[null,14,"Provide results of any assessment of the permeability of any faults and taliks beneath water bodies.","Y","-","Madrid-Boston Final Environmental Impact Statement, TMAC Resources Inc, December 2017 ","Volume 1, Annex V1-7, Package P5-4 and P5-13 , Volume 4","Volume 1, Annex V1-7, Package:\nP5-4 Madrid-Boston Project Water and Load Balance, Hope Bay Project;  \nP5-13 Hydrogeological Characterization and Modeling of the Proposed Boston, Madrid South and Madrid North Mines, Hope Bay Project\nVolume 4 Section 6","-"]
[null,15,"Provide a description of the historical uses of the waters affected by the project.","N/A","-","Madrid-Boston Final Environmental Impact Statement, TMAC Resources Inc, December 2017 ","Volume 6"," Volume 6 Section 2.2","-"]
[null,16,"Provide a description of any traditional uses of water in the project area.","N/A","-","Madrid-Boston Final Environmental Impact Statement, TMAC Resources Inc, December 2017 ","Volume 2, Volume 6","Volume 2, Section 2.5, Table 2-5.1\nVolume 6, Section 4.2","-"]
[null,17,"Indicate whether fish, shellfish, or other wildlife are present and harvested in or near discharge areas and, if applicable, indicate the species harvested and the level of harvest.","Y","-","Madrid-Boston Final Environmental Impact Statement, TMAC Resources Inc, December 2017 ","Volume 5,  List of Appendices","Volume 5 Chapter 6.1\nAppendix V6-3A ","-"]
[null,18,"Provide a description of the results of any consultation with Elders regarding the collection of baseline data.","Y","-","Madrid-Boston Final Environmental Impact Statement, TMAC Resources Inc, December 2017 ","Volume 2","Volume 2 Section 2.5, Table 2-5.1, Section 3","-"]
["Geology and Mineralogy",19,"Provide a description of the physical nature of the mineralization, including known dimensions and approximate shape","Y","-","Madrid-Boston Final Environmental Impact Statement, TMAC Resources Inc, December 2017 ","Volume 4","Volume 4, Section 4.2","-"]
[null,20,"Provide a description of the host rock in the general vicinity of the mineralization (from the surface to the mineralized zone)","Y","-","Madrid-Boston Final Environmental Impact Statement, TMAC Resources Inc, December 2017 ","Volume 4","Volume 4, Section 4.2","-"]
[null,21,"Provide a geological description of the mineralized zone. (If possible, include the percentage of metals)","Y","-","Madrid-Boston Final Environmental Impact Statement, TMAC Resources Inc, December 2017 ","Volume 4","Volume 4, Section 4.2","-"]
[null,22,"Provide a description of the geochemical tests which have been (or will be) performed on the ore, host rock, and waste rock to determine their relative acid generation and contaminant leaching potential. Outline methods used (or to be used) and provide test results in an attached report (i.e.. static test, kinetic tests). ","Y","-","Madrid-Boston Final Environmental Impact Statement, TMAC Resources Inc, December 2017 ","Volume 1, Annex V1-7, Package P5-6, P5-7 and P5-25","Volume 1, Annex V1-7,Packages:\nP5-6 Geochemical Characterization of Madrid-Boston Project Quarries, Hope Bay Project;\nP5-7 Geochemical Characterization of Tailings from the Madrid North, Madrid South and Boston Deposits, Hope Bay Project;\nP5-25 Geochemical Characterization of Waste Rock and Ore from the Boston Deposit, Hope Bay Project\n\n\n","-"]
[null,23,"Provide an estimate of the percentage of sulphide in the mineralization including:","Y","-","Madrid-Boston Final Environmental Impact Statement, TMAC Resources Inc, December 2017 ","Volume 1, Annex V1-7, Package P5-7, P5-25","Volume 1, Annex V1-7, Package:\nP5-7 Geochemical Characterization of Tailings from the Madrid North, Madrid South and Boston Deposits, Hope Bay Project \n P5-25 Geochemical Characterization of Waste Rock and Ore from the Boston Deposit, Hope Bay Project","-"]
[null,"a","Pyrite","Y","-","Madrid-Boston Final Environmental Impact Statement, TMAC Resources Inc, December 2017 ","Volume 1, Annex V1-7, Package P5-7, P5-25","Volume 1, Annex V1-7, Package:\nP5-7 Geochemical Characterization of Tailings from the Madrid North, Madrid South and Boston Deposits, Hope Bay Project \n P5-25 Geochemical Characterization of Waste Rock and Ore from the Boston Deposit, Hope Bay Project","-"]
[null,"b","Pyrrhotite","Y","-","Madrid-Boston Final Environmental Impact Statement, TMAC Resources Inc, December 2017 ","Volume 1, Annex V1-7, Package P5-7, P5-25","Volume 1, Annex V1-7, Package:\nP5-7 Geochemical Characterization of Tailings from the Madrid North, Madrid South and Boston Deposits, Hope Bay Project \n P5-25 Geochemical Characterization of Waste Rock and Ore from the Boston Deposit, Hope Bay Project","-"]
[null,"c","Pyrite / Pyrrhotite mixture","Y","-","Madrid-Boston Final Environmental Impact Statement, TMAC Resources Inc, December 2017 ","Volume 1, Annex V1-7, Package P5-7, P5-25","Volume 1, Annex V1-7, Package:\nP5-7 Geochemical Characterization of Tailings from the Madrid North, Madrid South and Boston Deposits, Hope Bay Project \n P5-25 Geochemical Characterization of Waste Rock and Ore from the Boston Deposit, Hope Bay Project","-"]
[null,"d","Arsenopyrite","Y","-","Madrid-Boston Final Environmental Impact Statement, TMAC Resources Inc, December 2017 ","Volume 1, Annex V1-7, Package P5-7, P5-25","Volume 1, Annex V1-7, Package:\nP5-7 Geochemical Characterization of Tailings from the Madrid North, Madrid South and Boston Deposits, Hope Bay Project \n P5-25 Geochemical Characterization of Waste Rock and Ore from the Boston Deposit, Hope Bay Project","-"]
[null,24,"Provide a description of the geochemical tests which have been (or will be) performed on quarry or borrow material to determine the relative acid generation and contaminant leaching potential. Outline methods used (or to be used) and provide test results in an attached report (i.e.. static test, kinetic tests). ","Y","-","Madrid-Boston Final Environmental Impact Statement, TMAC Resources Inc, December 2017 ","Volume 1, Annex V1-7, Package P5-6","P5-6 Geochemical Characterization of Madrid-Boston Project Quarries, Hope Bay Project","-"]
["Fisheries",25,"The applicant is advised to consult with DFO regarding fish and fish habitat related issues and to visit DFO's website at http://www.dfo-mpo.gc.ca/habitat/habitat-eng.htm.  Indicate whether the applicant has consulted with DFO and provide the results of any consultation.","Y"," TMAC has committed to consulting with DFO in future for designing water crossings and offsetting.","Madrid-Boston Final Environmental Impact Statement, TMAC Resources Inc, December 2017 ","Volume 5 ","Volume 5, Section 6.5.3\n\n","-"]
[null,26,"If applicable, provide baseline data and an evaluation of baseline data describing fish and fish habitat in the project area.","Y","-","Madrid-Boston Final Environmental Impact Statement, TMAC Resources Inc, December 2017 ","Volume 5,  List of Appendices","Volume 5, Section 3, 4 and  6.2.4\nAppendices\nV5-6A Hope Bay Belt Project, Metal Concentrations in Fish Tissues from Five Lakes in the Hope Bay Belt, Nunavut;\nV5-6B Doris North Project “No Net Loss” Plan;\nV5-6C Aquatic Baseline Studies Boston Project Data Compilation Report 1992-2000; \nV5-6D 2009 Freshwater Fish and Fish Habitat Baseline Report, Hope Bay Belt Project; \nV5-6E Hope Bay Belt Project: 2010 Freshwater Fish and Fish Habitat Baseline Report;\nV5-6F Doris North Gold Mine Project: Doris Mine Site Fisheries Authorization Monitoring Report 2010;\nV5-6G Doris North Gold Mine Project: Doris Mine Site Fisheries Authorization Monitoring Report 2011; \nV5-6H Doris North Gold Mine Project: 2011 Tail Lake Fish-out Report; \nV5-6I Doris North Gold Mine Project: Windy Lake Shoal Monitoring, 2012; \nV5-6J Doris North Gold Mine Project: Roberts Outflow and E09 Fish Habitat Enhancement Report; \nV5-6K Doris North Gold Mine: 2012 Roberts Lake and Outflow Fish Monitoring Report;\nV5-6L Doris North Project: 2013 Windy Lake Shoal Compliance Monitoring Report; \nV5-6M Doris North Project: 2013 Roberts Lake and Outflow Fish Compliance Monitoring Program Report; \nV5-6N Doris North Project: 2014 Windy Lake Shoal Compliance Monitoring Report; \nV5-6O Doris North Project: 2014 Roberts Lake and Outflow Fish Compliance Monitoring Program Report; \nV5-6P Imniagut Lake Fisheries Assessment, Doris North Project, 2014;\nV5-6Q Proposed Access Road Fisheries Assessments, Doris North Project 2015; \nV5-6R Doris Lake, Doris Creek, and Little Roberts Out\u0081flow Fisheries Assessment - Hydraulic Modelling Results; \nV5-6S Doris Lake, Doris Creek, and Little Roberts Outflow Fisheries Assessment;\nV5-6T Doris North Project: 2015 Roberts Lake Fish Enhancement Monitoring Program;\nV5-6U Doris, Roberts, and Little Roberts Outflows Fisheries Assessment;\nV5-6V 2017 Patch Outflow, Ogama Inflow, and Ogama Outflow Fisheries Assessment - Hydraulic Modelling Results;\nV5-6W Hope Bay Project: 2017 Freshwater Fish and Fish Habitat Baseline Report;\nV5-6X Fish Bearing Status of Four Ponds in Proximity to Boston, 2017;\nV5-6Y Freshwater Fish Community and Habitat Survey Sites, 1993-2017;\nV5-10D 2009 Marine Fish and Fish Habitat Baseline Report, Hope Bay Belt Project; \nV5-10E Hope Bay Belt Project: 2010 Marine Fish and Fish Habitat Baseline","-"]
[null,27,"If applicable, provide a fisheries assessment including:","Y","-","-","-","-","-"]
[null,"a","Detailed area description (including photographic record);","Y","-","Madrid-Boston Final Environmental Impact Statement, TMAC Resources Inc, December 2017 ","Volume 5,  List of Appendices","Volume 5 Sections 6.2, 10.2\nPhotos included in appended baseline reports found in Appendices\nV5-6A Hope Bay Belt Project, Metal Concentrations in Fish Tissues from Five Lakes in the Hope Bay Belt, Nunavut;\nV5-6B Doris North Project “No Net Loss” Plan;\nV5-6C Aquatic Baseline Studies Boston Project Data Compilation Report 1992-2000; \nV5-6D 2009 Freshwater Fish and Fish Habitat Baseline Report, Hope Bay Belt Project; \nV5-6E Hope Bay Belt Project: 2010 Freshwater Fish and Fish Habitat Baseline Report;\nV5-6F Doris North Gold Mine Project: Doris Mine Site Fisheries Authorization Monitoring Report 2010;\nV5-6G Doris North Gold Mine Project: Doris Mine Site Fisheries Authorization Monitoring Report 2011; \nV5-6H Doris North Gold Mine Project: 2011 Tail Lake Fish-out Report; \nV5-6I Doris North Gold Mine Project: Windy Lake Shoal Monitoring, 2012; \nV5-6J Doris North Gold Mine Project: Roberts Outflow and E09 Fish Habitat Enhancement Report; \nV5-6K Doris North Gold Mine: 2012 Roberts Lake and Outflow Fish Monitoring Report;\nV5-6L Doris North Project: 2013 Windy Lake Shoal Compliance Monitoring Report; \nV5-6M Doris North Project: 2013 Roberts Lake and Outflow Fish Compliance Monitoring Program Report; \nV5-6N Doris North Project: 2014 Windy Lake Shoal Compliance Monitoring Report; \nV5-6O Doris North Project: 2014 Roberts Lake and Outflow Fish Compliance Monitoring Program Report; \nV5-6P Imniagut Lake Fisheries Assessment, Doris North Project, 2014;\nV5-6Q Proposed Access Road Fisheries Assessments, Doris North Project 2015; \nV5-6R Doris Lake, Doris Creek, and Little Roberts Out\u0081flow Fisheries Assessment - Hydraulic Modelling Results; \nV5-6S Doris Lake, Doris Creek, and Little Roberts Outflow Fisheries Assessment;\nV5-6T Doris North Project: 2015 Roberts Lake Fish Enhancement Monitoring Program;\nV5-6U Doris, Roberts, and Little Roberts Outflows Fisheries Assessment;\nV5-6V 2017 Patch Outflow, Ogama Inflow, and Ogama Outflow Fisheries Assessment - Hydraulic Modelling Results;\nV5-6W Hope Bay Project: 2017 Freshwater Fish and Fish Habitat Baseline Report;\nV5-6X Fish Bearing Status of Four Ponds in Proximity to Boston, 2017;\nV5-6Y Freshwater Fish Community and Habitat Survey Sites, 1993-2017;\nV5-10D 2009 Marine Fish and Fish Habitat Baseline Report, Hope Bay Belt Project; \nV5-10E Hope Bay Belt Project: 2010 Marine Fish and Fish Habitat Baseline","-"]
[null,"b","Description of fish habitat (including river or lake bottom substrates such as silt, sand, or cobble);","Y","-","Madrid-Boston Final Environmental Impact Statement, TMAC Resources Inc, December 2017 ","Volume 5,  List of Appendices","Volume 5 Section 6.2.5.2, 6.2.6.2\nDetailed description in appended baseline reports\nAppendices\nV5-3B Boston Property N.W.T.: Environmental Data Report \nV5-3CBoston Property N.W.T.: Environmental Data Report \nV5-4B Boston Property N.W.T.: Environmental Data Report 1995 \nV5-4C Hope Bay Belt Project: Environmental Baseline Studies Report 1996\n V5-4D Hope Bay Belt Project: 1997 Environmental Data Report \nV5-4E Hope Bay Belt Project: 1998 Environmental Data Report  \nV5-3D 2000 Supplemental Environmental Baseline Data Report, Hope Bay Belt Project , V5-3F Doris North Project: Aquatic Studies 2003 ","-"]
[null,null,null,null,null,null,null," V5-3H Boston and Madrid Project Areas: 2006-2007 Aquatic Studies \n V5-3I Hope Bay Project: Aquatic Studies 2008\n V5-4A Doris Lake Project, Northwest Territories 1995 Environmental Study\n V5-5A Doris North Project Aquatic Studies 2002,\n V5-4G Doris North Project Aquatic Studies 2004,\n V5-4H Doris North Project Aquatic Studies 2005,\n V5-4I Doris North Project Aquatic Studies 2006,\n V5-4J Doris North Project Aquatic Studies 2007,\n V5-6D 2009 Freshwater Fish and Fish Habitat Baseline Report, Hope Bay Belt Project,  V5-6E Hope Bay Belt Project: 2010 Freshwater Fish and Fish, V5-6P Imniagut Lake Fisheries Assessment, Doris North Project, 2014 \n V5-6Q Proposed Access Road Fisheries Assessments, Doris North Project 2015 , V5-6R Doris Lake, Doris Creek, and Little Roberts Outflow Fisheries Assessment","-"]
[null,"c","Presence of sensitive habitats (spawning, migration corridors etc.);","Y","-","Madrid-Boston Final Environmental Impact Statement, TMAC Resources Inc, December 2017 ","Volume 5,  List of Appendices","Volume 5 Section 6.2.5.2, 6.2.6.2\nDetailed description in appended baseline reports\nAppendices\nV5-6A Hope Bay Belt Project, Metal Concentrations in Fish Tissues from Five Lakes in the Hope Bay Belt, Nunavut;\nV5-6B Doris North Project “No Net Loss” Plan;\nV5-6C Aquatic Baseline Studies Boston Project Data Compilation Report 1992-2000; \nV5-6D 2009 Freshwater Fish and Fish Habitat Baseline Report, Hope Bay Belt Project; \nV5-6E Hope Bay Belt Project: 2010 Freshwater Fish and Fish Habitat Baseline Report;\nV5-6F Doris North Gold Mine Project: Doris Mine Site Fisheries Authorization Monitoring Report 2010;\nV5-6G Doris North Gold Mine Project: Doris Mine Site Fisheries Authorization Monitoring Report 2011; \nV5-6H Doris North Gold Mine Project: 2011 Tail Lake Fish-out Report; \nV5-6I Doris North Gold Mine Project: Windy Lake Shoal Monitoring, 2012; \nV5-6J Doris North Gold Mine Project: Roberts Outflow and E09 Fish Habitat Enhancement Report; \nV5-6K Doris North Gold Mine: 2012 Roberts Lake and Outflow Fish Monitoring Report;\nV5-6L Doris North Project: 2013 Windy Lake Shoal Compliance Monitoring Report; \nV5-6M Doris North Project: 2013 Roberts Lake and Outflow Fish Compliance Monitoring Program Report; \nV5-6N Doris North Project: 2014 Windy Lake Shoal Compliance Monitoring Report; \nV5-6O Doris North Project: 2014 Roberts Lake and Outflow Fish Compliance Monitoring Program Report; \nV5-6P Imniagut Lake Fisheries Assessment, Doris North Project, 2014;\nV5-6Q Proposed Access Road Fisheries Assessments, Doris North Project 2015; \nV5-6R Doris Lake, Doris Creek, and Little Roberts Outflow Fisheries Assessment - Hydraulic Modelling Results; \nV5-6S Doris Lake, Doris Creek, and Little Roberts Outflow Fisheries Assessment;\nV5-6T Doris North Project: 2015 Roberts Lake Fish Enhancement Monitoring Program;\nV5-6U Doris, Roberts, and Little Roberts Outflows Fisheries Assessment;\nV5-6V 2017 Patch Outflow, Ogama Inflow, and Ogama Outflow Fisheries Assessment - Hydraulic Modelling Results;\nV5-6W Hope Bay Project: 2017 Freshwater Fish and Fish Habitat Baseline Report;\nV5-6X Fish Bearing Status of Four Ponds in Proximity to Boston, 2017;\nV5-6Y Freshwater Fish Community and Habitat Survey Sites, 1993-2017;\nV5-10D 2009 Marine Fish and Fish Habitat Baseline Report, Hope Bay Belt Project; \nV5-10E Hope Bay Belt Project: 2010 Marine Fish and Fish Habitat Baseline","-"]
[null,"d","Description of aquatic and riparian vegetation;","Y","-","Madrid-Boston Final Environmental Impact Statement, TMAC Resources Inc, December 2017 ","Volume 5, List of Appendices","Volume 5 Section 6.2.5.2, 6.2.6.2\nDetailed description in appended baseline reports\nAppendices\nV5-6A Hope Bay Belt Project, Metal Concentrations in Fish Tissues from Five Lakes in the Hope Bay Belt, Nunavut;\nV5-6B Doris North Project “No Net Loss” Plan;\nV5-6C Aquatic Baseline Studies Boston Project Data Compilation Report 1992-2000; \nV5-6D 2009 Freshwater Fish and Fish Habitat Baseline Report, Hope Bay Belt Project; \nV5-6E Hope Bay Belt Project: 2010 Freshwater Fish and Fish Habitat Baseline Report;\nV5-6F Doris North Gold Mine Project: Doris Mine Site Fisheries Authorization Monitoring Report 2010;\nV5-6G Doris North Gold Mine Project: Doris Mine Site Fisheries Authorization Monitoring Report 2011; \nV5-6H Doris North Gold Mine Project: 2011 Tail Lake Fish-out Report; \nV5-6I Doris North Gold Mine Project: Windy Lake Shoal Monitoring, 2012; \nV5-6J Doris North Gold Mine Project: Roberts Outflow and E09 Fish Habitat Enhancement Report; \nV5-6K Doris North Gold Mine: 2012 Roberts Lake and Outflow Fish Monitoring Report;\nV5-6L Doris North Project: 2013 Windy Lake Shoal Compliance Monitoring Report; \nV5-6M Doris North Project: 2013 Roberts Lake and Outflow Fish Compliance Monitoring Program Report; \nV5-6N Doris North Project: 2014 Windy Lake Shoal Compliance Monitoring Report; \nV5-6O Doris North Project: 2014 Roberts Lake and Outflow Fish Compliance Monitoring Program Report; \nV5-6P Imniagut Lake Fisheries Assessment, Doris North Project, 2014;\nV5-6Q Proposed Access Road Fisheries Assessments, Doris North Project 2015; \nV5-6R Doris Lake, Doris Creek, and Little Roberts Outflow Fisheries Assessment - Hydraulic Modelling Results; \nV5-6S Doris Lake, Doris Creek, and Little Roberts Outflow Fisheries Assessment;\nV5-6T Doris North Project: 2015 Roberts Lake Fish Enhancement Monitoring Program;\nV5-6U Doris, Roberts, and Little Roberts Outflows Fisheries Assessment;\nV5-6V 2017 Patch Outflow, Oguma Inflow, and Ogama Outflow Fisheries Assessment - Hydraulic Modelling Results;\nV5-6W Hope Bay Project: 2017 Freshwater Fish and Fish Habitat Baseline Report;\nV5-6X Fish Bearing Status of Four Ponds in Proximity to Boston, 2017;\nV5-6Y Freshwater Fish Community and Habitat Survey Sites, 1993-2017;\nV5-10D 2009 Marine Fish and Fish Habitat Baseline Report, Hope Bay Belt Project; \nV5-10E Hope Bay Belt Project: 2010 Marine Fish and Fish Habitat Baseline","-"]
[null,"e","Fish community and life stage present;","Y","-","Madrid-Boston Final Environmental Impact Statement, TMAC Resources Inc, December 2017 ","Volume 5,  List of Appendices","Volume 5 Section 6.2.5.3, 6.2.6.3\nDetailed description in appended baseline reports\nAppendices\nV5-6A Hope Bay Belt Project, Metal Concentrations in Fish Tissues from Five Lakes in the Hope Bay Belt, Nunavut;\nV5-6B Doris North Project “No Net Loss” Plan;\nV5-6C Aquatic Baseline Studies Boston Project Data Compilation Report 1992-2000; \nV5-6D 2009 Freshwater Fish and Fish Habitat Baseline Report, Hope Bay Belt Project; \nV5-6E Hope Bay Belt Project: 2010 Freshwater Fish and Fish Habitat Baseline Report;\nV5-6F Doris North Gold Mine Project: Doris Mine Site Fisheries Authorization Monitoring Report 2010;\nV5-6G Doris North Gold Mine Project: Doris Mine Site Fisheries Authorization Monitoring Report 2011; \nV5-6H Doris North Gold Mine Project: 2011 Tail Lake Fish-out Report; \nV5-6I Doris North Gold Mine Project: Windy Lake Shoal Monitoring, 2012; \nV5-6J Doris North Gold Mine Project: Roberts Outflow and E09 Fish Habitat Enhancement Report; \nV5-6K Doris North Gold Mine: 2012 Roberts Lake and Outflow Fish Monitoring Report;\nV5-6L Doris North Project: 2013 Windy Lake Shoal Compliance Monitoring Report; \nV5-6M Doris North Project: 2013 Roberts Lake and Outflow Fish Compliance Monitoring Program Report; \nV5-6N Doris North Project: 2014 Windy Lake Shoal Compliance Monitoring Report; \nV5-6O Doris North Project: 2014 Roberts Lake and Outflow Fish Compliance Monitoring Program Report; \nV5-6P Imniagut Lake Fisheries Assessment, Doris North Project, 2014;\nV5-6Q Proposed Access Road Fisheries Assessments, Doris North Project 2015; \nV5-6R Doris Lake, Doris Creek, and Little Roberts Outflow Fisheries Assessment - Hydraulic Modelling Results; \nV5-6S Doris Lake, Doris Creek, and Little Roberts Outflow Fisheries Assessment;\nV5-6T Doris North Project: 2015 Roberts Lake Fish Enhancement Monitoring Program;\nV5-6U Doris, Roberts, and Little Roberts Outflows Fisheries Assessment;\nV5-6V 2017 Patch Outflow, Ogama Inflow, and Ogama Outflow Fisheries Assessment - Hydraulic Modelling Results;\nV5-6W Hope Bay Project: 2017 Freshwater Fish and Fish Habitat Baseline Report;\nV5-6X Fish Bearing Status of Four Ponds in Proximity to Boston, 2017;\nV5-6Y Freshwater Fish Community and Habitat Survey Sites, 1993-2017;\nV5-10D 2009 Marine Fish and Fish Habitat Baseline Report, Hope Bay Belt Project; \nV5-10E Hope Bay Belt Project: 2010 Marine Fish and Fish Habitat Baseline","-"]
[null,"f","Depth and width of watercourse;","Y","-","Madrid-Boston Final Environmental Impact Statement, TMAC Resources Inc, December 2017 ","Volume 5,  List of Appendices","Volume 5 Sections 3.2, 6.2.5.2, 6.2.6.2\nDetailed description in appended baseline reports\nAppendices\nV5-6A Hope Bay Belt Project, Metal Concentrations in Fish Tissues from Five Lakes in the Hope Bay Belt, Nunavut;\nV5-6B Doris North Project “No Net Loss” Plan;\nV5-6C Aquatic Baseline Studies Boston Project Data Compilation Report 1992-2000; \nV5-6D 2009 Freshwater Fish and Fish Habitat Baseline Report, Hope Bay Belt Project; \nV5-6E Hope Bay Belt Project: 2010 Freshwater Fish and Fish Habitat Baseline Report;\nV5-6F Doris North Gold Mine Project: Doris Mine Site Fisheries Authorization Monitoring Report 2010;\nV5-6G Doris North Gold Mine Project: Doris Mine Site Fisheries Authorization Monitoring Report 2011; \nV5-6H Doris North Gold Mine Project: 2011 Tail Lake Fish-out Report; \nV5-6I Doris North Gold Mine Project: Windy Lake Shoal Monitoring, 2012; \nV5-6J Doris North Gold Mine Project: Roberts Outflow and E09 Fish Habitat Enhancement Report; \nV5-6K Doris North Gold Mine: 2012 Roberts Lake and Outflow Fish Monitoring Report;\nV5-6L Doris North Project: 2013 Windy Lake Shoal Compliance Monitoring Report; \nV5-6M Doris North Project: 2013 Roberts Lake and Outflow Fish Compliance Monitoring Program Report; \nV5-6N Doris North Project: 2014 Windy Lake Shoal Compliance Monitoring Report; \nV5-6O Doris North Project: 2014 Roberts Lake and Outflow Fish Compliance Monitoring Program Report; \nV5-6P Imniagut Lake Fisheries Assessment, Doris North Project, 2014;\nV5-6Q Proposed Access Road Fisheries Assessments, Doris North Project 2015; \nV5-6R Doris Lake, Doris Creek, and Little Roberts Outflow Fisheries Assessment - Hydraulic Modelling Results; \nV5-6S Doris Lake, Doris Creek, and Little Roberts Outflow Fisheries Assessment;\nV5-6T Doris North Project: 2015 Roberts Lake Fish Enhancement Monitoring Program;\nV5-6U Doris, Roberts, and Little Roberts Outflows Fisheries Assessment;\nV5-6V 2017 Patch Outflow, Ogama Inflow, and Ogama Outflow Fisheries Assessment - Hydraulic Modelling Results;\nV5-6W Hope Bay Project: 2017 Freshwater Fish and Fish Habitat Baseline Report;\nV5-6X Fish Bearing Status of Four Ponds in Proximity to Boston, 2017;\nV5-6Y Freshwater Fish Community and Habitat Survey Sites, 1993-2017;\nV5-10D 2009 Marine Fish and Fish Habitat Baseline Report, Hope Bay Belt Project; \nV5-10E Hope Bay Belt Project: 2010 Marine Fish and Fish Habitat Baseline","-"]
[null,"g","Max/min water flows, currents, tides;","Y","-","Madrid-Boston Final Environmental Impact Statement, TMAC Resources Inc, December 2017 ","Volume 5 ","Volume 5 Sections 1.2.4, 7.2","-"]
[null,"h","Turbidity and sediment loads (total suspended solids);","Y","-","Madrid-Boston Final Environmental Impact Statement, TMAC Resources Inc, December 2017 ","Volume 5, List of Appendices","Volume 5 Section 4.2.4\nAppendices\nV5-3B Boston Property N.W.T. Environmental Data Report (1993);\nV5-3C Boston Property N.W.T. Environmental Data Report(1994); \n V5-3E Boston Property N.W.T. Environmental Data Report 1995; \nV5-3F Hope Bay Belt Project: Environmental Baseline Studies Report 1996; \nV5-3G Hope Bay Belt Project: 1997 Environmental Data Report;\n V5-3H Hope Bay Belt Project: 1998 Environmental Data Report ;\n V5-3I Hope Bay Project: 2000 Supplemental Environmental Baseline Data Report; \nV5-3K Doris North Project: Aquatic Studies 2003;\nV5-3P Boston and Madrid Project Areas: 2006-2007 Aquatic Studies;\n V5-3R Hope Bay Project: Aquatic Studies 2008;\nV5-3D Doris Lake Project Northwest Territories 1995 Environmental Study; \nV5-5A Doris North Project Aquatic Studies 2002;\n V5-3L Doris North Project Aquatic Studies 2004;\n V5-3K Doris North Project Aquatic Studies 2005; \nV5-3O Doris North Project Aquatic Studies 2006;\n V5-3Q Doris North Project Aquatic Studies 2007; \nV5-6D 2009 Freshwater Fish and Fish Habitat Baseline Report, Hope Bay Belt Project;\nV5-6E Hope Bay Belt Project: 2010 Freshwater Fish and Fish Habitat Baseline Report","-"]
[null,"i","Sport, commercial, subsistence fishery present.","Y","-","Madrid-Boston Final Environmental Impact Statement, TMAC Resources Inc, December 2017 ","Volume 5, Volume 6","Volume 5 Section 6.1, 6.2, 6.3.2, 10.1, 10.2, 10.3\nVolume 6 Section 4.1.1, 4.2.4.4 \n","-"]
["Studies",28,"Provide a list of baseline studies, reports and plans relevant to the application that have been undertaken to date including:","Y","-","Madrid-Boston Final Environmental Impact Statement, TMAC Resources Inc, December 2017 ","See below","See below","-"]
[null,"a","Geotechnical studies;","Y","-","Madrid-Boston Final Environmental Impact Statement, TMAC Resources Inc, December 2017 ","Volume 1, Annex V1-7, Package P5-5","Package P5-5 Geotechnical Design Parameters and Overburden Summary Report, Hope Bay Project","-"]
[null,"b","Geochemical studies;","Y","-","Madrid-Boston Final Environmental Impact Statement, TMAC Resources Inc, December 2017 ","Volume 1, Annex V1-7, Package P5-6, P5-7 and P5-25","Section 4.4\nPackages\nP5-6 Geochemical Characterization of Madrid-Boston Project Quarries, Hope Bay Project;\nP5-7 Geochemical Characterization of Tailings from the Madrid North, Madrid South and Boston Deposits, Hope Bay Project;\nP5-25 Geochemical Characterization of Waste Rock and Ore from the Boston Deposit, Hope Bay Project","-"]
[null,"c","Water quality studies;","Y","-","Madrid-Boston Final Environmental Impact Statement, TMAC Resources Inc, December 2017 ","Volume 1, Annex V1-7, Package p5-4, Volume 5,  List of Appendices","Volume 1, Annex V1-7, Package P5-4 Madrid-Boston Project Water and Load Balance, Hope Bay Project\nVolume 5, Section  4, Section 4.2\nAppendices\nV5-3B Boston Property N.W.T. Environmental Data Report (1993);\nV5-3C Boston Property N.W.T. Environment Data Report (1994);\nV5-3D Doris Lake Project Northwest Territories 1995 Environmental Study;\nV5-3E Boston Property N.W.T. Environmental Data Report 1995;\nV5-3F Hope Bay Belt Project: Environmental Baseline Studies Report 1996;\nV5-3G Hope Bay Belt Project: 1997 Environmental Data Report;\nV5-3H Hope Bay Belt Project: 1998 Environmental Data Report;\nV5-3I Hope Bay Belt Project: 2000 Supplemental Environmental Baseline Data Report;\nV5-3J Aquatic Baseline Studies: Doris Hinge Project Data Compilation Report, 1995-2000;\nV5-3K Doris North Project Aquatic Studies 2003;\nV5-3L Doris North Project Aquatic Studies 2004;\nV5-3M Doris North Project Aquatic Studies 2005;\nV5-3N Bathymetric Surveys: Hope Bay Project, Hope Bay, Nunavut;\nV5-3O Doris North Project Aquatic Studies 2006;\nV5-3P Boston and Madrid Project Areas 2006 - 2007 Aquatic Studies;\nV5-3Q Doris North Project Aquatic Studies 2007\nV5-3R Hope Bay Project Aquatic Studies 2008\nV5-3S 2009 Freshwater Baseline Report, Hope Bay Belt Project\nV5-4A Hope Bay Belt Site Assessment 1999;","-"]
[null,"d","Hydrological and hydrogeological studies;","Y","-","Madrid-Boston Final Environmental Impact Statement, TMAC Resources Inc, December 2017 ","Volume 5,  List of Appendices, List of Packages","Volume 5 Section 1.2, 2.1\nAppendices \nV5-1A Hope Bay Belt Project: 1993-2002 Data Compilation Report for Meteorology and Hydrology;\nV5-1B Meteorology and Hydrology Baseline Report Doris North Project;\nV5-1C Doris Project Area 2008 Hydrology Baseline Update;\nV5-1D Hope Bay Belt Project: 2009 Hydrology Baseline Report;\nV5-1E Hope Bay Project: 2010 Hydrology Baseline Report;\nV5-1F Doris North Gold Mine Project: Hydrology Compliance Report, 2010;\nV5-1G Hope Bay Belt Project: 2011 Hydrology Baseline Report;\nV5-1H Doris North Gold Mine Project: Hydrology Compliance Report 2011;\nV5-1I Doris North Gold Mine Project: Hydrology Compliance Report 2012;\nV5-1J Doris North Project: 2013 Hydrology Compliance Monitoring Report;\nV5-1K Doris North Project 2014 Hydrology Compliance Monitoring Program;\nV5-1L Doris North Project: 2015 Hydrology Compliance Monitoring Program\nPackage\nP5-13 Hydrogeological Characterization and Modelling of the Proposed Boston, Madrid South and Madrid North Mines, Hope Bay Project","-"]
[null,"e","Traditional use studies;","Y","-","Madrid-Boston Final Environmental Impact Statement, TMAC Resources Inc, December 2017 ","Volume 2, Volume 6, List of Appendices","Volume 2 Section 2, Volume 6 Section 4\nAppendix V6-3A 2011 Socio-economic and Land Use Baseline Report","-"]
[null,"f","Aquatic studies;","Y","-","Madrid-Boston Final Environmental Impact Statement, TMAC Resources Inc, December 2017 ","Volume 5,  List of Appendices","Volume 5, Sections 6.2.6, 8.2\nAppendices\nV5-3D Doris Lake Project Northwest Territories 1995 Environmental Study;\nV5-3E Boston Property N.W.T. Environmental Data Report 1995;\nV5-3F Hope Bay Belt Project: Environmental Baseline Studies Report 1996;\nV5-3G Hope Bay Belt Project: 1997 Environmental Data Report;\nV5-3H Hope Bay Belt Project: 1998 Environmental Data Report;\nV5-3J Aquatic Baseline Studies: Doris Hinge Project Data Compilation Report, 1995-2000;\nV5-3K Doris North Project Aquatic Studies 2003;\nV5-3L Doris North Project Aquatic Studies 2004;\nV5-3M Doris North Project Aquatic Studies 2005;\nV5-3O Doris North Project Aquatic Studies 2006;\nV5-3P Boston and Madrid Project Areas 2006 - 2007 Aquatic Studies;\nV5-3Q Doris North Project Aquatic Studies 2007;\nV5-3R Hope Bay Project Aquatic Studies 2008;\nV5-3S 2009 Freshwater Baseline Report, Hope Bay Belt Project;\nV5-5A Doris North Project Aquatic Studies 2002;\nV5-6C Aquatic Baseline Studies Boston Project Data Compilation Report 1992-2000","-"]
[null,"g","Meteorological studies;","Y","-","Madrid-Boston Final Environmental Impact Statement, TMAC Resources Inc, December 2017 ","Volume 4, List of Appendices","Volume 4, Section 1.2\nAppendices \nV5-1A Hope Bay Belt Project: 1993-2002 Data Compilation Report for Meteorology and Hydrology;\nV5-1B Meteorology and Hydrology Baseline Report Doris North Project;\nV4-1A 2009 Meteorology Baseline Report, Hope Bay Belt Project;\nV4-1B Doris North Gold Mine Project: 2010 Meteorology Compliance Report;\nV4-1C Doris North Gold Mine Project: 2011 Meteorology Compliance Report;\nV4-1D Hope Bay Belt Project: 2011 Meteorology Baseline Report;\nV4-1E Doris North Gold Mine Project: 2012 Meteorology Compliance Report;\nV4-1F Doris North Project: 2013 Compliance Monitoring Program - Meteorology;\nV4-1G Doris North Project: 2014 Meteorology Compliance Monitoring Program\n","-"]

{"sheet":"6.0 Water Use ","index":7,"n_rows":105,"n_cols":11,"rows_kept":105,"cut":false,"hidden":false,"merged":[[43,0,45,0],[46,0,47,0],[79,0,84,0],[50,4,55,4],[38,0,39,0],[0,0,0,10],[17,0,21,0],[26,0,27,0],[36,0,37,0]]}
["6.0 Water Use: Quality, Quantity, Predicted Environmental Impact and Proposed Mitigation Measures "]
["Section Title","Section No."," Information Requirement","Indicate whether Information Requirement is applicable by inserting ' Y ' or ' NA '","If 'NA' provide justification","Insert Title, Author and Date of Document where information is provided","Insert electronic file name of document where information is provided","Insert Section of document where information is provided","If information is not available at the time of application, indicate when the information will be made available","NWB Concordance Assessment","NIRB Guideline Section No."]
["Water Use",1,"Provide a detailed description of all types of water uses including: (See the NWB definition of \"use\" in the NWB Guide 2: Terminology and Definitions).  Categorize water consumption use(s) as either mining/industrial use and/or domestic use. ","Y","-","Madrid-Boston Final Environmental Impact Statement TMAC Resources Inc, Dec 2017","Volume_1, Annex V1-7, Package_2, P2-2  \nVolume_1, Annex V1-7, Package_5, P5-4\n Volume_1, Annex V1-7, Package_5, P5-24\n Volume_1, Annex V1-7, Package_4, P4-8 ","Volume_1, Annex V1-7, Package_2, P2-2   Section 5\nVolume_1, Annex V1-7, Package_5, P5-4 Madrid-Boston Project Water and Load Balance, Hope Bay Project Section 3.5\nVolume_1, Annex V1-7, Package_5, P5-24 Hope Bay Project: Boston Water Management Design Section 3.5\nVolume_1, Annex V1-7, Package_4, P4-8 Hope Bay Project Boston Water Management Plan  Section 2","-"]
[null,"a","Obtain water for domestic purposes","Y","-","Madrid-Boston Final Environmental Impact Statement TMAC Resources Inc, Dec 2017","Volume_1, Annex V1-7, Package_2, P2-2  \nVolume_1, Annex V1-7, Package_5, P5-4 \nVolume_1, Annex V1-7, Package_5, P5-24 \nVolume_1, Annex V1-7, Package_4, P4-8 ","Volume_1, Annex V1-7, Package_2, P2-2   Section 5.2\nVolume_1, Annex V1-7, Package_5, P5-4 Madrid-Boston Project Water and Load Balance, Hope Bay Project Section 3.5\nVolume_1, Annex V1-7, Package_5, P5-24 Hope Bay Project: Boston Water Management Design Section 3\nVolume_1, Annex V1-7, Package_4, P4-8 Hope Bay Project Boston Water Management Plan  Section 2.3.4","-"]
[null,"b","Obtain water for industrial purposes","Y","-","Madrid-Boston Final Environmental Impact Statement TMAC Resources Inc, Dec 2017","Volume_1, Annex V1-7, Package_2, P2-2  \nVolume_1, Annex V1-7, Package_5, P5-4 \nVolume_1, Annex V1-7, Package_5, P5-24 ","Volume_1, Annex V1-7, Package_2, P2-2   Section 5.3\nVolume_1, Annex V1-7, Package_5, P5-4 Madrid-Boston Project Water and Load Balance, Hope Bay Project Section 3.5.2\nVolume_1, Annex V1-7, Package_5, P5-24 Hope Bay Project: Boston Water Management Design Section 3","-"]
[null,"b1","drilling","Y","-","Madrid-Boston Final Environmental Impact Statement TMAC Resources Inc, Dec 2017","Volume_1, Annex V1-7, Package_2, P2-2  \nVolume_1, Annex V1-7, Package_5, P5-4 \nVolume_1, Annex V1-7, Package_5, P5-24 ","Volume_1, Annex V1-7, Package_2, P2-2   Section 5.3\nVolume_1, Annex V1-7, Package_5, P5-4 Madrid-Boston Project Water and Load Balance, Hope Bay Project Section 3.5.2\nVolume_1, Annex V1-7, Package_5, P5-24 Hope Bay Project: Boston Water Management Design Section 3","-"]
[null,"b2","mill or processing plant","Y","-","Madrid-Boston Final Environmental Impact Statement TMAC Resources Inc, Dec 2017","Volume_1, Annex V1-7, Package_2, P2-2  \nVolume_1, Annex V1-7, Package_5, P5-4 \nVolume_1, Annex V1-7, Package_4, P4-8 \nVolume_1, Annex V1-7, Package_5, P5-24 ","Volume_1, Annex V1-7, Package_2, P2-2   Section 5.3\nVolume_1, Annex V1-7, Package_5, P5-4 Madrid-Boston Project Water and Load Balance, Hope Bay Project Section 3.5.2\nVolume_1, Annex V1-7, Package_4, P4-8 Hope Bay Project Boston Water Management Plan  Section 2\nVolume_1, Annex V1-7, Package_5, P5-24 Hope Bay Project: Boston Water Management Design Section 3","-"]
[null,"b3","concrete production","Y","-","Madrid-Boston Final Environmental Impact Statement TMAC Resources Inc, Dec 2017","Volume_1, Annex V1-7, Package_2, P2-2  \nVolume_1, Annex V1-7, Package_5, P5-4 ","Volume_1, Annex V1-7, Package_2, P2-2   Section 5.3\nVolume_1, Annex V1-7, Package_5, P5-4 Madrid-Boston Project Water and Load Balance, Hope Bay Project Section 3.5.2","-"]
[null,"b4","explosives manufacture","N/A","No explosives manufacture onsite, The Project will utilize only pre-packaged explosives","-","Volume_1, Annex V1-7, Package_2, P2-2  \nVolume_1, Annex V1-7, Package_5, P5-4 ","Volume_1, Annex V1-7, Package_2, P2-2   Section 5.3\nVolume_1, Annex V1-7, Package_5, P5-4 Madrid-Boston Project Water and Load Balance, Hope Bay Project Section 3.5.2","-"]
[null,"b5","ice road construction","Y","-","Madrid-Boston Final Environmental Impact Statement TMAC Resources Inc, Dec 2017","Volume_1, Annex V1-7, Package_2, P2-2  \nVolume_1, Annex V1-7, Package_5, P5-11 ","Volume_1, Annex V1-7, Package_2, P2-2   Section 3\nVolume_1, Annex V1-7, Package_5, P5-11 Hope Bay Project: Madrid-Boston All-Weather Road Preliminary Design ","-"]
[null,"b6","other: (describe)","-","-","-",null,"NA","-"]
[null,"c","To cross a water course","Y","-","Madrid-Boston Final Environmental Impact Statement TMAC Resources Inc, Dec 2017","Volume_1, Annex V1-7, Package_2, P2-2  \nVolume_1, Annex V1-7, Package_5, P5-8 \nVolume_1, Annex V1-7, Package_5, P5-28 \nVolume_1, Annex V1-7, Package_5, P5-11 ","Volume_1, Annex V1-7, Package_2, P2-2   Section 3, 5\nVolume_1, Annex V1-7, Package_5, P5-8 Hope Bay Project: Wind Energy Project Preliminary Design\nVolume_1, Annex V1-7, Package_5, P5-28 Hope Bay Project: Boston Surface Infrastructure Preliminary Design\nVolume_1, Annex V1-7, Package_5, P5-11 Hope Bay Project: Madrid-Boston All-Weather Road Preliminary Design ","-"]
[null,"d","To alter the flow of water, or store water","Y","-","Madrid-Boston Final Environmental Impact Statement TMAC Resources Inc, Dec 2017","Volume_1, Annex V1-7, Package_2, P2-2  \nVolume_1, Annex V1-7, Package_5, P5-4 \nVolume_1, Annex V1-7, Package_5, P5-24 \nVolume_1, Annex V1-7, Package_5, P5-28 \nVolume_1, Annex V1-7, Package_5, P5-11 \nVolume_1, Annex V1-7, Package_5, P5-3 \nVolume_1, Annex V1-7, Package_5, P5-26 ","Volume_1, Annex V1-7, Package_2, P2-2   Section 5\nVolume_1, Annex V1-7, Package_5, P5-4 Madrid-Boston Project Water and Load Balance, Hope Bay Project Section 3.3\nVolume_1, Annex V1-7, Package_5, P5-24 Hope Bay Project: Boston Water Management Design Section 4\nVolume_1, Annex V1-7, Package_5, P5-28 Hope Bay Project: Boston Surface Infrastructure Preliminary Design \nVolume_1, Annex V1-7, Package_5, P5-11 Hope Bay Project: Madrid-Boston All-Weather Road Preliminary Design \nVolume_1, Annex V1-7, Package_5, P5-3 Hope Bay Project: Contact Water Pond Berm Design \nVolume_1, Annex V1-7, Package_5, P5-26 Boston Tailings Management Area Preliminary Design, Hope Bay Project  ","-"]
[null,"e","Flood control","Y",null,"Madrid-Boston Final Environmental Impact Statement TMAC Resources Inc, Dec 2017","Volume_1, Annex V1-7, Package_5, P5-3 ","Volume_1, Annex V1-7, Package_5, P5-3 Hope Bay Project: Contact Water Pond Berm Design \n","-"]
[null,"f","To divert a watercourse","N/A","Activity not anticipated ","-","-","-","-"]
[null,"g","To modify the bed or bank of a watercourse","Y","-","Madrid-Boston Final Environmental Impact Statement TMAC Resources Inc, Dec 2017","Volume_1, Annex V1-7, Package_2, P2-2  \nVolume_1, Annex V1-7, Package_5, P5-11 \nVolume_1, Annex V1-7, Package_5, P5-28 \nVolume_1, Annex V1-7, Package_5, P5-24 ","Volume_1, Annex V1-7, Package_2, P2-2   \nVolume_1, Annex V1-7, Package_5, P5-11 Hope Bay Project: Madrid-Boston All-Weather Road Preliminary Design \nVolume_1, Annex V1-7, Package_5, P5-28 Hope Bay Project: Boston Surface Infrastructure Preliminary Design\nVolume_1, Annex V1-7, Package_5, P5-24 Hope Bay Project: Boston Water Management Design ","-"]
[null,"h","Others:","N/A","-","-","-","-","-"]
["Water Use: Quality and Quantity\nWater Intake\n\n**Identify uses as either domestic or industrial**",2,"Provide the name of the primary water source(s) as well as the name of any alternative water source(s).","Y","-","Madrid-Boston Final Environmental Impact Statement TMAC Resources Inc, Dec 2017","Volume_1, Annex V1-7, Package_2, P2-2  \nVolume_1, Annex V1-7, Package_5, P5-4 \nVolume_1, Annex V1-7, Package_5, P5-24 ","Volume_1, Annex V1-7, Package_2, P2-2   Section 5\nVolume_1, Annex V1-7, Package_5, P5-4 Madrid-Boston Project Water and Load Balance, Hope Bay Project Section 3.5\nVolume_1, Annex V1-7, Package_5, P5-24 Hope Bay Project: Boston Water Management Design Section 3","-"]
[null,3,"Provide a description of the source(s) of water and the location of the water source(s) as shown on a map.","Y","-","Madrid-Boston Final Environmental Impact Statement TMAC Resources Inc, Dec 2017","Volume_1, Annex V1-7, Package_2, P2-2  \nVolume_1, Annex V1-7, Package_5, P5-4 \nVolume_1, Annex V1-7, Package_5, P5-24 \nVolume_1, Annex V1-7, Package_4, P4-8 ","Volume_1, Annex V1-7, Package_2, P2-2 Section 5\nVolume 5, Section 4\nVolume_1, Annex V1-7, Package_5, P5-4 Madrid-Boston Project Water and Load Balance, Hope Bay Project Section 3.5\nVolume_1, Annex V1-7, Package_5, P5-24 Hope Bay Project: Boston Water Management Design Section 3\nVolume_1, Annex V1-7, Package_4, P4-8 Hope Bay Project Boston Water Management Plan Section 2","-"]
[null,4,"Indicate the type of water source(s) as lake, river, well, or other type.","Y","-","Madrid-Boston Final Environmental Impact Statement TMAC Resources Inc, Dec 2017","Volume_1, Annex V1-7, Package_2, P2-2  \nVolume_1, Annex V1-7, Package_5, P5-4 \nVolume_1, Annex V1-7, Package_5, P5-24 \nVolume_1, Annex V1-7, Package_4, P4-8 ","Volume_1, Annex V1-7, Package_2, P2-2   Section 5\nVolume 5, Section 4\nVolume_1, Annex V1-7, Package_5, P5-4 Madrid-Boston Project Water and Load Balance, Hope Bay Project Section 3.5\nVolume_1, Annex V1-7, Package_5, P5-24 Hope Bay Project: Boston Water Management Design Section 3\nVolume_1, Annex V1-7, Package_4, P4-8 Hope Bay Project Boston Water Management Plan  Section 2","-"]
[null,5,"Provide a description of the quality of the water from the source(s) for each season (summer, fall, winter, spring). ","Y","-","Madrid-Boston Final Environmental Impact Statement TMAC Resources Inc, Dec 2017","Volume_1, Annex V1-7, Package_5, P5-4 ","Volume_1, Annex V1-7, Package_5, P5-4 Madrid-Boston Project Water and Load Balance, Hope Bay Project Section 3.7.10\nVolume 5, Section 4.2\n","-"]
[null,6,"Provide the capacity of the water source(s).","Y","-","Madrid-Boston Final Environmental Impact Statement TMAC Resources Inc, Dec 2017","Volume_1, Annex V1-7, Package_5, P5-4 ","Volume_1, Annex V1-7, Package_5, P5-4 Madrid-Boston Project Water and Load Balance, Hope Bay Project Section 3.4\nVolume 5, Section 3.3.4.3\n","-"]
[null,7,"Provide the acquisition rate in cubic metres per day and cubic metres per year from each water source.","Y","-","Madrid-Boston Final Environmental Impact Statement TMAC Resources Inc, Dec 2017","Volume_1, Annex V1-7, Package_2, P2-2  \nVolume_1, Annex V1-7, Package_5, P5-4 ","Volume_1, Annex V1-7, Package_2, P2-2   Section 5\nVolume_1, Annex V1-7, Package_5, P5-4 Madrid-Boston Project Water and Load Balance, Hope Bay Project Section 3.5","-"]
[null,8,"Provide a description of the water intake method(s) including the intake facility, the operating capacity of the pump used, the details of any screening to exclude fish, and the distance the pump will be placed from the ordinary high water mark of the watercourse.","Y","-","Madrid-Boston Final Environmental Impact Statement TMAC Resources Inc, Dec 2017","Volume_1, Annex V1-7, Package_5, P5-24 ","Volume_1, Annex V1-7, Package_5, P5-24 Hope Bay Project: Boston Water Management Design Section 4.5.1\nVolume 5, Section 6.5.5.1\n","-"]
[null,9,"Provide a description of the general condition of any existing water intake facility. Rate the condition of the facility as satisfactory or unsatisfactory and explain the rating.","N/A","Existing facilities are approved under the Type A Water 2AM-DOH1323","-","-","-","-"]
[null,10,"Indicate whether water is drawn from the source(s) intermittently or continuously and if intermittently indicate during what months it is drawn and for what period it is drawn (days/weeks/months).","Y","-","Madrid-Boston Final Environmental Impact Statement TMAC Resources Inc, Dec 2017","Volume_1, Annex V1-7, Package_2, P2-2  \nVolume_1, Annex V1-7, Package_5, P5-4 \nVolume_1, Annex V1-7, Package_5, P5-24 \nVolume_1, Annex V1-7, Package_4, P4-8 ","Volume_1, Annex V1-7, Package_2, P2-2   Section 5\nVolume_1, Annex V1-7, Package_5, P5-4 Madrid-Boston Project Water and Load Balance, Hope Bay Project Section 3.5\nVolume_1, Annex V1-7, Package_5, P5-24 Hope Bay Project: Boston Water Management Design Section 3\nVolume_1, Annex V1-7, Package_4, P4-8 Hope Bay Project Boston Water Management Plan  Section 2","-"]
[null,11,"Indicate the amount of water to be returned to the source.","Y","-","Madrid-Boston Final Environmental Impact Statement TMAC Resources Inc, Dec 2017","Volume_1, Annex V1-7, Package_2, P2-2  \nVolume_1, Annex V1-7, Package_5, P5-4 \nVolume_1, Annex V1-7, Package_5, P5-24\nVolume_1, Annex V1-7, Package_4, P4-8 ","Volume_1, Annex V1-7, Package_2, P2-2   Section 5\nVolume_1, Annex V1-7, Package_5, P5-4 Madrid-Boston Project Water and Load Balance, Hope Bay Project Section 3.5\nVolume_1, Annex V1-7, Package_5, P5-24 Hope Bay Project: Boston Water Management Design Section 3\nVolume_1, Annex V1-7, Package_4, P4-8 Hope Bay Project Boston Water Management Plan  Section 2","-"]
[null,12,"Provide a description of the methods to ensure water returned to any source is of an acceptable quality.","Y","-","Madrid-Boston Final Environmental Impact Statement TMAC Resources Inc, Dec 2017","Volume_1, Annex V1-7, Package_4, P4-8 ","Volume_1, Annex V1-7, Package_4, P4-8 Hope Bay Project Boston Water Management Plan  Section 3\n","-"]
[null,13,"Provide a description of any hydrostatic testing programs, including water sources, and treatment/disposal requirements.  If applicable, refer to the NWB's SIG for Hydrostatic Testing.","N/A","Hydrostatic testing programs will be provided prior to commissioning of pipelines if required ","-","-","-","prior to commissioning of pipelines if required "]
[null,14,"Indicate the quantities of water required for ice road construction and provide a description of the methods of ice road construction.","Y ","-","Madrid-Boston Final Environmental Impact Statement TMAC Resources Inc, Dec 2017","Volume_1, Annex V1-7, Package_2, P2-2  \nVolume_1, Annex V1-7, Package_5, P5-4 \nVolume_1, Annex V1-7, Package_5, P5-11 ","Volume_1, Annex V1-7, Package_2, P2-2   Section 3\nVolume_1, Annex V1-7, Package_5, P5-4 Madrid-Boston Project Water and Load Balance, Hope Bay Project Section 3.5\nVolume_1, Annex V1-7, Package_5, P5-11 Hope Bay Project: Madrid-Boston All-Weather Road Preliminary Design Section 6","-"]
[null,15,"Provide a description of any measures to reduce water consumption.","Y","-","Madrid-Boston Final Environmental Impact Statement TMAC Resources Inc, Dec 2017","Volume_1, Annex V1-7, Package_2, P2-2  \nVolume_1, Annex V1-7, Package_5, P5-4 \nVolume_1, Annex V1-7, Package_5, P5-24 \nVolume_1, Annex V1-7, Package_4, P4-8 ","Volume_1, Annex V1-7, Package_2, P2-2 P2-1  Section 5\nVolume_1, Annex V1-7, Package_5, P5-4 Madrid-Boston Project Water and Load Balance, Hope Bay Project Section 3.7\nVolume_1, Annex V1-7, Package_5, P5-24 Hope Bay Project: Boston Water Management Design Section 4.5.2\nVolume_1, Annex V1-7, Package_4, P4-8 Hope Bay Project Boston Water Management Plan  Section 3","-"]
["Water Storage",16,"Provide a description of any water storage facilities including the type (reservoir/pond, storage tank), location, design, and the water storage volume in cubic meters. ","Y","-","Madrid-Boston Final Environmental Impact Statement TMAC Resources Inc, Dec 2017","Volume_1, Annex V1-7, Package_2, P2-2  \nVolume_1, Annex V1-7, Package_5, P5-28 \nVolume_1, Annex V1-7, Package_5, P5-24 \nVolume_1, Annex V1-7, Package_4, P4-8 \nVolume_1, Annex V1-7, Package_5, P5-4 \nVolume_1, Annex V1-7, Package_5, P5-26 ","Volume_1, Annex V1-7, Package_2, P2-2   Section 5\nVolume_1, Annex V1-7, Package_5, P5-28 Hope Bay Project: Boston Surface Infrastructure Preliminary Design \nVolume_1, Annex V1-7, Package_5, P5-24 Hope Bay Project: Boston Water Management Design Section 4\nVolume_1, Annex V1-7, Package_4, P4-8 Hope Bay Project Boston Water Management Plan  Section 3\nVolume_1, Annex V1-7, Package_5, P5-4 Madrid-Boston Project Water and Load Balance, Hope Bay Project Section 3.4\nVolume_1, Annex V1-7, Package_5, P5-26 Boston Tailings Management Area Preliminary Design, Hope Bay Project  \n","-"]
[null,17,"If the water storage facility is a reservoir, indicate whether the reservoir is lined, the type of liner and when it was or will be installed. ","Y","-","Madrid-Boston Final Environmental Impact Statement TMAC Resources Inc, Dec 2017","Volume_1, Annex V1-7, Package_5, P5-24 \nVolume_1, Annex V1-7, Package_5, P5-3 \nVolume_1, Annex V1-7, Package_5, P5-26 ","Volume_1, Annex V1-7, Package_5, P5-24 Hope Bay Project: Boston Water Management Design Section 4\nVolume_1, Annex V1-7, Package_5, P5-3 Hope Bay Project: Contact Water Pond Berm Design \nVolume_1, Annex V1-7, Package_5, P5-26 Boston Tailings Management Area Preliminary Design, Hope Bay Project  ","-"]
[null,18,"Indicate whether a storage reservoir is created in a natural channel.  If applicable, provide plan and profile drawings of the reservoir including the size of the drainage basin upstream of the reservoir, topographical plan showing the drainage area boundary, number of hectares flooded, surface area of the reservoir at full capacity, storage capacity, and details of shoreline protection.","Y","-","Madrid-Boston Final Environmental Impact Statement TMAC Resources Inc, Dec 2017","Volume_1, Annex V1-7, Package_5, P5-24 \nVolume_1, Annex V1-7, Package_5, P5-26 ","Volume_1, Annex V1-7, Package_5, P5-24 Hope Bay Project: Boston Water Management Design 4, Appendix A\nVolume_1, Annex V1-7, Package_5, P5-26 Boston Tailings Management Area Preliminary Design, Hope Bay Project  Appendix A\n","-"]
[null,19,"Provide a plan showing representative cross sections of the reservoir.","Y","-","Madrid-Boston Final Environmental Impact Statement TMAC Resources Inc, Dec 2017","Volume_1, Annex V1-7, Package_5, P5-24 \nVolume_1, Annex V1-7, Package_5, P5-3 \nVolume_1, Annex V1-7, Package_5, P5-26 ","Volume_1, Annex V1-7, Package_5, P5-24 Hope Bay Project: Boston Water Management Design Appendix A\nVolume_1, Annex V1-7, Package_5, P5-3 Hope Bay Project: Contact Water Pond Berm Design Appendix A\nVolume_1, Annex V1-7, Package_5, P5-26 Boston Tailings Management Area Preliminary Design, Hope Bay Project  Appendix A","-"]
[null,20,"Provide a description of the general condition of any existing water storage facility and provide an explanation if it is unsatisfactory. ","Y","-","Madrid-Boston Final Environmental Impact Statement TMAC Resources Inc, Dec 2017","Volume_1, Annex V1-7, Package_2, P2-2  \nVolume_1, Annex V1-7, Package_5, P5-28 ","Volume_1, Annex V1-7, Package_2, P2-2   Section 3\nVolume_1, Annex V1-7, Package_5, P5-28 Hope Bay Project: Boston Surface Infrastructure Preliminary Design ","-"]
["Water Distribution",21,"Provide a description of water distribution systems (i.e.. piped water, trucked).","Y","-","Madrid-Boston Final Environmental Impact Statement TMAC Resources Inc, Dec 2017","Volume_1, Annex V1-7, Package_2, P2-2  \nVolume_1, Annex V1-7, Package_5, P5-4 \nVolume_1, Annex V1-7, Package_5, P5-24 \nVolume_1, Annex V1-7, Package_4, P4-8 ","Volume_1, Annex V1-7, Package_2, P2-2   Section 5\nVolume_1, Annex V1-7, Package_5, P5-4 Madrid-Boston Project Water and Load Balance, Hope Bay Project Section 3\nVolume_1, Annex V1-7, Package_5, P5-24 Hope Bay Project: Boston Water Management Design Section 4\nVolume_1, Annex V1-7, Package_4, P4-8 Hope Bay Project Boston Water Management Plan  Section 3\n","-"]
[null,22,"Provide a description of the general condition of any existing water distribution system and provide an explanation if it is unsatisfactory.","Y","-","Madrid-Boston Final Environmental Impact Statement TMAC Resources Inc, Dec 2017","\n","NA\n","-"]
["Watercourse Crossings",23,"Provide a description of any watercourse crossings including pipelines, bridges, culverts or roads and its purpose. ","Y","-","Madrid-Boston Final Environmental Impact Statement TMAC Resources Inc, Dec 2017","Volume_1, Annex V1-7, Package_5, P5-11 ","Volume_1, Annex V1-7, Package_5, P5-11 Hope Bay Project: Madrid-Boston All-Weather Road Preliminary Design \n","-"]
[null,24,"Provide a plan of any watercourse crossing showing cross section and elevations","Y","-","Madrid-Boston Final Environmental Impact Statement TMAC Resources Inc, Dec 2017","Volume_1, Annex V1-7, Package_5, P5-11 ","Volume_1, Annex V1-7, Package_5, P5-11 Hope Bay Project: Madrid-Boston All-Weather Road Preliminary Design \n","-"]
["Watercourse Trainings",25,"Provide a description of any watercourse trainings including channel and bank alterations, culverts, spurs, erosion control, and artificial accretion, and its purpose.","Y ","-","Madrid-Boston Final Environmental Impact Statement TMAC Resources Inc, Dec 2017","Volume_1, Annex V1-7, Package_5, P5-11 ","Volume_1, Annex V1-7, Package_5, P5-11 Hope Bay Project: Madrid-Boston All-Weather Road Preliminary Design \n","-"]
["Flood Control",26,"Provide a description of any flood control structures and its purpose.","Y ","-","Madrid-Boston Final Environmental Impact Statement TMAC Resources Inc, Dec 2017","Volume_1, Annex V1-7, Package_5, P5-3 ","Volume_1, Annex V1-7, Package_5, P5-3 Hope Bay Project: Contact Water Pond Berm Design \n","-"]
["Diversions",27,"Provide a description of any diversions including ditches and dikes and its purpose.","Y ","-","Madrid-Boston Final Environmental Impact Statement TMAC Resources Inc, Dec 2017","Volume_1, Annex V1-7, Package_5, P5-28 ","Volume_1, Annex V1-7, Package_5, P5-28 Hope Bay Project: Boston Surface Infrastructure Preliminary Design \n","-"]
["Alterations in flow",28,"Provide a description of any activities or structures that could alter the flow of a watercourse including dams, spillways, berms, cofferdams, and dikes, and its purpose.","Y ","-","Madrid-Boston Final Environmental Impact Statement TMAC Resources Inc, Dec 2017","Volume_1, Annex V1-7, Package_2, P2-2  \nVolume_1, Annex V1-7, Package_5, P5-4 \nVolume_1, Annex V1-7, Package_5, P5-24 \nVolume_1, Annex V1-7, Package_4, P4-8 \nVolume_1, Annex V1-7, Package_5, P5-3 \nVolume_1, Annex V1-7, Package_5, P5-26 ","Volume_1, Annex V1-7, Package_2, P2-2   Section 5\nVolume_1, Annex V1-7, Package_5, P5-4 Madrid-Boston Project Water and Load Balance, Hope Bay Project Section 6\nVolume_1, Annex V1-7, Package_5, P5-24 Hope Bay Project: Boston Water Management Design Section 4\nVolume_1, Annex V1-7, Package_4, P4-8 Hope Bay Project Boston Water Management Plan  Section 2\nVolume_1, Annex V1-7, Package_5, P5-3 Hope Bay Project: Contact Water Pond Berm Design \nVolume_1, Annex V1-7, Package_5, P5-26 Boston Tailings Management Area Preliminary Design, Hope Bay Project  ","-"]
[null,29,"Indicate whether the natural storage capacity or water level of any lake or pond will be altered.","Y ","-","Madrid-Boston Final Environmental Impact Statement TMAC Resources Inc, Dec 2017","Volume_1, Annex V1-7, Package_5, P5-4 ","Volume_1, Annex V1-7, Package_5, P5-4 Madrid-Boston Project Water and Load Balance, Hope Bay Project Section 6\n","-"]
[null,30,"If the alteration involves a dam, provide a plan showing the length, height, cross section and elevations of the dam and the location and preliminary designs of spillways, canals, sluice pipes, and any other outlet work.","Y ","-","Madrid-Boston Final Environmental Impact Statement TMAC Resources Inc, Dec 2017","Volume_1, Annex V1-7, Package_5, P5-3 ","Volume_1, Annex V1-7, Package_5, P5-3 Hope Bay Project: Contact Water Pond Berm Design \n","-"]
["Dewatering",31,"Provide a description of dewatering programs, if planned, including estimated quantities, qualities, dewatering flow rates, methods and schedule of withdrawal, end use or discharge location.","Y","Dewatering of Underground Mine \n","Madrid-Boston Final Environmental Impact Statement TMAC Resources Inc, Dec 2017","Volume_1, Annex V1-7, Package_2, P2-2  \nVolume_1, Annex V1-7, Package_5, P5-4 \nVolume_1, Annex V1-7, Package_5, P5-24 \nVolume_1, Annex V1-7, Package_4, P4-8 ","Volume_1, Annex V1-7, Package_2, P2-2   Section 5\nVolume_1, Annex V1-7, Package_5, P5-4 Madrid-Boston Project Water and Load Balance, Hope Bay Project Section 3.5\nVolume_1, Annex V1-7, Package_5, P5-24 Hope Bay Project: Boston Water Management Design Section 3.3\nVolume_1, Annex V1-7, Package_4, P4-8 Hope Bay Project Boston Water Management Plan  Section 2\n","-"]
[null,32,"Provide an estimate of the quality and flow of groundwater that will flow into any open pits.","N/A","Dewatering of Underground Mine , but not open pits","-","-","-","-"]
["Identification",33,"Indicate whether there are any signs identifying past or present water intake, storage, distribution systems and/or waterworks structures presently in the project area.","N/A","As per existing Water Licences (Type B Water Licence 2BB-BOS1217), SNP monitoring locations are labelled at site, including those associated with water intake, storage, distribution systems and/or waterworks structures presently in the project area.","-","-","-","-"]
["Modifications",34,"Indicate whether any changes are planned for the water intake, storage, distribution systems and/or waterworks structures.  If applicable, see item 35 of this section.","Y","-","Madrid-Boston Final Environmental Impact Statement TMAC Resources Inc, Dec 2017","Volume_1, Annex V1-7, Package_2, P2-2  \nVolume_1, Annex V1-7, Package_5, P5-28 ","Volume_1, Annex V1-7, Package_2, P2-2   \nVolume_1, Annex V1-7, Package_5, P5-28 Hope Bay Project: Boston Surface Infrastructure Preliminary Design \n","-"]
["Proposed Water Works",35,"For each water work component provide the design plans stamped for construction.  Design plans shall consider the following:","N/A","For the items a to y, incl.,\nbelow, drawings and\nspecifications to be issued for\nconstruction will be submitted to the NWB \n3 months prior to Construction. Conceptual layouts are \npresented in Package 5 which \nprovide sufficient detail for\nEIS requirements","-","-","-","3 months prior to Construction. "]
[null,"a","Name of the water body(s) affected.","N/A",null,"-","-","-"]
[null,"b","Site photos, site map, or air photos of the location.","N/A",null,"-","-","-"]
[null,"c","Description of the existing condition of the site (see Section 5) ","N/A",null,"-","-","-"]
[null,"d","Indicate whether any structure will be placed in water on a temporary, seasonal or permanent basis and provide a description of when and how the structure will be removed.","N/A",null,"-","-","-"]
[null,"e","The design flood flow in cubic metres per second and its return period for the type of structure proposed.","N/A",null,"-","-","-"]
[null,"f","An explanation of the rationale for the selected design flow flood and its return period.","N/A",null,"-","-","-"]
[null,"g","Design drawings in plan and profile, drawn to scale, including all relevant dimensions.","N/A",null,"-","-","-"]
[null,"h","Details of design parameters including seismic design criteria if applicable.","N/A",null,"-","-","-"]
[null,"I","In water work timing restriction for fisheries.","N/A",null,"-","-","-"]
[null,"j","Start and completion dates for construction.","N/A",null,"-","-","-"]
[null,"k","Construction schedule and sequence taking into account any timing restrictions.","N/A",null,"-","-","-"]
[null,"l","Construction methods.","N/A",null,"-","-","-"]
[null,"m","Equipment to be used.","N/A",null,"-","-","-"]
[null,"n","A description of the source, type, and composition of material used in construction.","N/A",null,"-","-","-"]
[null,"o","The quantity of material to be either placed into or removed from the watercourse.","N/A",null,"-","-","-"]
[null,"p","Sedimentation and erosion control measures.","N/A",null,"-","-","-"]
[null,"q","Construction monitoring plans.","N/A",null,"-","-","-"]
[null,"r","Construction quality assurance and quality control measures.","N/A",null,"-","-","-"]
[null,"s","Assessment of impacts to fish and fish habitat (see item 44 of this Section).","N/A",null,"-","-","-"]
[null,"t","Bank stabilization measures (including the size range of material if applicable).","N/A",null,"-","-","-"]
[null,"u","Operation and maintenance plans including instrumentation, monitoring and inspection requirements.","N/A",null,"-","-","-"]
[null,"v","Contingency plans.","N/A",null,"-","-","-"]
[null,"w","Re-vegetation plans","N/A",null,"-","-","-"]
[null,"x","Proposed post construction monitoring (photos taken of the site before construction, during construction, and after construction; photos should be taken from the same reference point for easy comparison)","N/A",null,"-","-","-"]
[null,"y","Abandonment and restoration plans (see items 45-49 of Section 3).","N/A",null,"-","-","-"]
[null,36,"Final plans and drawings for construction must be stamped by a Professional Engineer licensed to practice in Nunavut. (See Section 7 of the NWB's Guide 4: Completing and Submitting a Water Licence Application for more information regarding design drawings). ","N/A","Drawings and\nspecifications to be issued for\nconstruction will be submitted to the NWB \n3 months prior to Construction. Conceptual layouts are \npresented in Package 5 which \nprovide sufficient detail for\nEIS requirements","-","-","-","3 months prior to Construction. "]
[null,37,"If geotextile is used or a similar material to prevent the transport of sediment into a watercourse, provide the technical specifications for the proposed material as well as the location, extent and placement method for the material.","N/A","Drawings and\nspecifications to be issued for\nconstruction will be submitted to the NWB \n3 months prior to Construction. Conceptual layouts are \npresented in Package 5 which \nprovide sufficient detail for\nEIS requirements","-","-","-","3 months prior to Construction. "]
[null,38,"If rip rap is used or a similar material for erosion protection, provide information regarding the minimum and maximum sizes of the material and the gradation between those limits.  Indicate the quantity to be used and its source. ","N/A","Drawings and\nspecifications to be issued for\nconstruction will be submitted to the NWB \n3 months prior to Construction. Conceptual layouts are \npresented in Package 5 which \nprovide sufficient detail for\nEIS requirements","-","-","-","3 months prior to Construction. "]
["Predicted Environmental Effects and Proposed mitigation measures",39,"Provide a description of the effects of water usage on the source from which water will be drawn including the potential for drawdown.","Y","-","Madrid-Boston Final Environmental Impact Statement TMAC Resouces Inc, Dec 2017","Volume_1, Annex V1-7, Package_2, P2-2  \nVolume_1, Annex V1-7, Package_5, P5-4 ","Volume_1, Annex V1-7, Package_2, P2-2   Section 5\nVolume 5, Section 1.5.2\nVolume_1, Annex V1-7, Package_5, P5-4 Madrid-Boston Project Water and Load Balance, Hope Bay Project Section 6\n","-"]
[null,40,"Provide a description of any expected changes in surface water flow or storage including changes downstream of the project.","Y","-","Madrid-Boston Final Environmental Impact Statement TMAC Resources Inc, Dec 2017","Volume_1, Annex V1-7, Package_2, P2-2  \nVolume_1, Annex V1-7, Package_5, P5-4 ","Volume_1, Annex V1-7, Package_2, P2-2   Section 5\nVolume 5, Section 1.5.2\nVolume_1, Annex V1-7, Package_5, P5-4 Madrid-Boston Project Water and Load Balance, Hope Bay Project Section 6","-"]
[null,41,"If the cross-section of any watercourse is changed, provide a description of the change and its effect on the flow capacity of the channel.","Y","-","Madrid-Boston Final Environmental Impact Statement TMAC Resources Inc, Dec 2017","\n","NA\n","-"]
[null,42,"If the course of any channel is changed, provide a description of measures to maintain stream bed and bank stability.","Y","-","Madrid-Boston Final Environmental Impact Statement TMAC Resources Inc, Dec 2017","\n","Volume 5, Section 5.5.3\n","-"]
[null,43,"Provide a description of measures of preventing surface water from coming into contact with waste and measures of managing surface water that does come into contact with waste (surface water management plan).","Y","-","Madrid-Boston Final Environmental Impact Statement TMAC Resources Inc, Dec 2017","Volume_1, Annex V1-7, Package_2, P2-2  \nVolume_1, Annex V1-7, Package_5, P5-24\n Volume_1, Annex V1-7, Package_4, P4-8 ","Volume_1, Annex V1-7, Package_2, P2-2   Section 5\nVolume 5, Section 1.5.3\nVolume_1, Annex V1-7, Package_5, P5-24 Hope Bay Project: Boston Water Management Design Section 3\nVolume_1, Annex V1-7, Package_4, P4-8 Hope Bay Project Boston Water Management Plan  Section 2","-"]
[null,44,"Provide a description of measures of preventing groundwater from coming into contact with waste and measures of managing groundwater that does come into contact with waste (groundwater management plan).","Y","-","Madrid-Boston Final Environmental Impact Statement TMAC Resources Inc, Dec 2017","Volume_1, Annex V1-7, Package_2, P2-2  \nVolume_1, Annex V1-7, Package_5, P5-24 \nVolume_1, Annex V1-7, Package_4, P4-8 \nVolume_1, Annex V1-7, Package_5, P5-13 \nVolume_1, Annex V1-7, Package_4, P4-6 ","Volume_1, Annex V1-7, Package_2, P2-2   5\nVolume_1, Annex V1-7, Package_5, P5-24 Hope Bay Project: Boston Water Management Design 3.3\nVolume_1, Annex V1-7, Package_4, P4-8 Hope Bay Project Boston Water Management Plan  2.3.3\nVolume_1, Annex V1-7, Package_5, P5-13 Hydrogeological Characterization and Modeling of the Proposed Boston, Madrid South and Madrid North Mines, Hope Bay Project \nVolume_1, Annex V1-7, Package_4, P4-6 Hope Bay Project Groundwater Management Plan \nVolume 5, Section 1.5.3","-"]
["Fisheries",45,"If applicable, provide a description of any potential impacts to fish and/or fish habitat. (Indirect effects may include project effects, water quality, or aquatic organisms. Direct effects may include degradation or alteration of fish habitat). The applicant is advised to consult with DFO regarding fish and fish habitat related issues and to visit DFO's website at http://www.dfo-mpo.gc.ca/habitat/habitat-eng.htm.","Y","-","Madrid-Boston Final Environmental Impact Statement TMAC Resources Inc, Dec 2017","\n","Volume 5 Section 6.5.2, 6.5.4, 6.5.5\n","-"]
[null,"a","Potential effects on fish or fish habitat;","Y","-","Madrid-Boston Final Environmental Impact Statement TMAC Resources Inc, Dec 2017","\n","Volume 5 Section 6.5.4, 6.5.5\n","-"]
[null,"b","The area in square metres to be impacted;","Y","-","Madrid-Boston Final Environmental Impact Statement TMAC Resources Inc, Dec 2017","Volume_1, Annex V1-7, Package_5, P5-24 ","Volume_1, Annex V1-7, Package_5, P5-24 Hope Bay Project: Boston Water Management Design Section 4.5.1\nVolume 5, Section 6.5.4\n","-"]
[null,"c","Measures to avoid sensitive periods and habitat areas (i.e., spawning beds, migration corridors);","Y","-","Madrid-Boston Final Environmental Impact Statement TMAC Resources Inc, Dec 2017","Volume_1, Annex V1-7, Package_4, P4-18 ","Volume_1, Annex V1-7, Package_4, P4-18 Hope Bay Project Aquatic Effects Monitoring Plan ","-"]
[null,"d","Measures to avoid physical impacts on habitat;","Y","-","Madrid-Boston Final Environmental Impact Statement TMAC Resources Inc, Dec 2017","Volume_1, Annex V1-7, Package_4, P4-18 ","Volume_1, Annex V1-7, Package_4, P4-18 Hope Bay Project Aquatic Effects Monitoring Plan ","-"]
[null,"e","Measures to maintain flows and fish passage;","Y","-","Madrid-Boston Final Environmental Impact Statement TMAC Resources Inc, Dec 2017","Volume_1, Annex V1-7, Package_4, P4-18 ","Volume_1, Annex V1-7, Package_4, P4-18 Hope Bay Project Aquatic Effects Monitoring Plan \nVolume 5 Section 6.5.3, 6.5.4, 6.5.5","-"]
[null,"f","Measures to avoid sedimentation;","Y","-","Madrid-Boston Final Environmental Impact Statement TMAC Resources Inc, Dec 2017","Volume_1, Annex V1-7, Package_2, P2-2  \nVolume_1, Annex V1-7, Package_5, P5-24 \nVolume_1, Annex V1-7, Package_4, P4-18 ","Volume_1, Annex V1-7, Package_2, P2-2   \nVolume 5, Section 6.5.3, 6.5.4\nVolume_1, Annex V1-7, Package_5, P5-24 Hope Bay Project: Boston Water Management Design \nVolume_1, Annex V1-7, Package_4, P4-18 Hope Bay Project Aquatic Effects Monitoring Plan ","-"]
[null,"g","Measures to avoid spills;","Y","-","Madrid-Boston Final Environmental Impact Statement TMAC Resources Inc, Dec 2017","Volume_1, Annex V1-7, Package_2, P2-2  \nVolume_1, Annex V1-7, Package_4, P4-3 \nVolume_1, Annex V1-7, Package_4, P4-18 ","Volume_1, Annex V1-7, Package_2, P2-2   Section 9\nVolume_1, Annex V1-7, Package_4, P4-3 Hope Bay Project Spill Contingency Plan \nVolume_1, Annex V1-7, Package_4, P4-18 Hope Bay Project Aquatic Effects Monitoring Plan \nVolume 5, Section 6.5.3, 6.5.4, 6.5.5","-"]
[null,"h","Detailed habitat no-net-loss plan and site restoration plan;","Y","-","Madrid-Boston Final Environmental Impact Statement TMAC Resources Inc, Dec 2017","\n","Volume 5, Section 6.5.3, 6.5.4\n","-"]
["Studies",46,"Provide a list of studies, reports and plans relevant to the application that have been undertaken to date, including: ","Y","-","Madrid-Boston Final Environmental Impact Statement TMAC Resources Inc, Dec 2017","Volume_1, Annex V1-7, Package_5, ","Volume_1, Annex V1-7, Package_5, ","-"]
[null,"a","Options analysis;","Y","-","Madrid-Boston Final Environmental Impact Statement TMAC Resources Inc, Dec 2017","Volume_1, Annex V1-7, Package_2, P2-2  \nVolume_1, Annex V1-7, Package_5, P5-29 \nVolume_1, Annex V1-7, Package_5, P5-28 \nVolume_1, Annex V1-7, Package_5, P5-27 \nVolume_1, Annex V1-7, Package_5, P5-26 \nVolume_1, Annex V1-7, Package_5, P5-24 \nVolume_1, Annex V1-7, Package_5, P5-8 ","Volume_1, Annex V1-7, Package_2, P2-2   \nVolume_1, Annex V1-7, Package_5, P5-29 Hope Bay Project: Boston Airstrip Preliminary Design \nVolume_1, Annex V1-7, Package_5, P5-28 Hope Bay Project: Boston Surface Infrastructure Preliminary Design \nVolume_1, Annex V1-7, Package_5, P5-27 Boston Tailings Disposal Alternatives Assessment, Hope Bay Project, Nunavut \nVolume_1, Annex V1-7, Package_5, P5-26 Boston Tailings Management Area Preliminary Design, Hope Bay Project  \nVolume_1, Annex V1-7, Package_5, P5-24 Hope Bay Project: Boston Water Management Design \nVolume_1, Annex V1-7, Package_5, P5-8 Hope Bay Project: Wind Energy Project Preliminary Design ","-"]
[null,"b","Water management plan including water balance analysis; ","Y","-","Madrid-Boston Final Environmental Impact Statement TMAC Resources Inc, Dec 2017","Volume_1, Annex V1-7, Package_4, P4-8 \nVolume_1, Annex V1-7, Package_5, P5-4 ","Volume_1, Annex V1-7, Package_4, P4-8 Hope Bay Project Boston Water Management Plan  \nVolume_1, Annex V1-7, Package_5, P5-4 Madrid-Boston Project Water and Load Balance, Hope Bay Project ","-"]
[null,"c","Fisheries assessment;","Y","-","Madrid-Boston Final Environmental Impact Statement TMAC Resources Inc, Dec 2017",null,"Volume 5 Chapter 6\nAppendices\n","-"]
[null,"d","Construction plan and construction schedule for water works;","Y","-","Madrid-Boston Final Environmental Impact Statement TMAC Resources Inc, Dec 2017","Volume_1, Annex V1-7, Package_2, P2-2  \nVolume_1, Annex V1-7, Package_5, P5-3 \nVolume_1, Annex V1-7, Package_5, P5-26 \n","Volume_1, Annex V1-7, Package_2, P2-2   Section 3\nVolume_1, Annex V1-7, Package_5, P5-3 Hope Bay Project: Contact Water Pond Berm Design Section 6\nVolume_1, Annex V1-7, Package_5, P5-26 Boston Tailings Management Area Preliminary Design, Hope Bay Project  Section 5\n","-"]
[null,"e","Implementation schedule for construction of works.","Y","-","Madrid-Boston Final Environmental Impact Statement TMAC Resources Inc, Dec 2017","Volume_1, Annex V1-7, Package_2, P2-2  ","Volume_1, Annex V1-7, Package_2, P2-2   Section 3\n","-"]
[null,"f","Construction quality assurance and quality control plans;","Y","-","Madrid-Boston Final Environmental Impact Statement TMAC Resources Inc, Dec 2017","Volume_1, Annex V1-7, Package_4, P4-24 ","Volume_1, Annex V1-7, Package_4, P4-24 Quality Assurance and Quality Control Plan ","-"]
[null,"g","Operation and maintenance plan;","Y","-","Madrid-Boston Final Environmental Impact Statement TMAC Resources Inc, Dec 2017","Volume_1, Annex V1-7, Package_4, P4-8 ","Volume_1, Annex V1-7, Package_4, P4-8 Hope Bay Project Boston Water Management Plan  ","-"]
[null,"h","Preliminary abandonment and reclamation plans for existing and proposed facilities;","Y","-","Madrid-Boston Final Environmental Impact Statement TMAC Resources Inc, Dec 2017","Volume_1, Annex V1-7, Package_4, P4-19 ","Volume_1, Annex V1-7, Package_4, P4-19 Hope Bay Project Boston Conceptual Closure and Reclamation Plan ","-"]
[null,"I","Final abandonment and reclamation plans for facilities to be closed;","Y","-","Madrid-Boston Final Environmental Impact Statement TMAC Resources Inc, Dec 2017","Volume_1, Annex V1-7, Package_4, P4-19 ","Volume_1, Annex V1-7, Package_4, P4-19 Hope Bay Project Boston Conceptual Closure and Reclamation Plan ","-"]
[null,"j","Monitoring plans (See Section 8).","Y","-","Madrid-Boston Final Environmental Impact Statement TMAC Resources Inc, Dec 2017","Volume_1, Annex V1-7, Package_4, P4-8 ","Volume_1, Annex V1-7, Package_4, P4-8 Hope Bay Project Boston Water Management Plan  ","-"]

{"sheet":"7.0 Waste Disposal ","index":8,"n_rows":101,"n_cols":11,"rows_kept":101,"cut":false,"hidden":false,"merged":[[61,0,62,0],[0,0,0,10],[15,0,17,0],[59,0,60,0]]}
["7.0 Waste Disposal: Quality, Quantity, Predicted Environmental Impact and Proposed Mitigation Measures "]
["Section Title","Section No."," Information Requirement","Indicate whether Information Requirement is applicable by inserting ' Y ' or ' NA '","If 'NA' provide justification","Insert Title, Author and Date of Document where information is provided","Insert electronic file name of document where information is provided","Insert Section of document where information is provided","If information is not available at the time of application, indicate when the information will be made available","NWB Concordance Assessment","NIRB Guideline Section No."]
["Waste Disposal",1,"Provide a detailed description of all types of waste and all forms of waste disposal including: (see the NWB definition of Waste in the NWB Guide 2: Terminology and Definitions)","Y","-","Madrid-Boston Final Environmental Impact Statement TMAC Resources Inc, Dec 2017 ","Volume_1, Annex V1-7, Package_2, P2-2  \n","Volume_1, Annex V1-7, Package_2, P2-2   Section 5 ,6\n","-"]
[null,"a","Sewage","Y","-","Madrid-Boston Final Environmental Impact Statement TMAC Resources Inc, Dec 2017 ","Volume_1, Annex V1-7, Package_2, P2-2  \nVolume_1, Annex V1-7, Package_5, P5-4 \nVolume_1, Annex V1-7, Package_5, P5-24\n Volume_1, Annex V1-7, Package_4, P4-4 \nVolume_1, Annex V1-7, Package_4, P4-8 ","Volume_1, Annex V1-7, Package_2, P2-2   Section 5.6\nVolume_1, Annex V1-7, Package_5, P5-4 Madrid-Boston Project Water and Load Balance, Hope Bay Project Section 7\nVolume_1, Annex V1-7, Package_5, P5-24 Hope Bay Project: Boston Water Management Design Section 3.1\nVolume_1, Annex V1-7, Package_4, P4-4 Hope Bay Project Domestic Wastewater Treatment Management Plan \nVolume_1, Annex V1-7, Package_4, P4-8 Hope Bay Project Boston Water Management Plan  Section 2.3.5\n","-"]
[null,"b","Grey water","Y","-","Madrid-Boston Final Environmental Impact Statement TMAC Resources Inc, Dec 2017 ","Volume_1, Annex V1-7, Package_2, P2-2  \nVolume_1, Annex V1-7, Package_5, P5-4 \nVolume_1, Annex V1-7, Package_5, P5-24 \nVolume_1, Annex V1-7, Package_4, P4-4 \nVolume_1, Annex V1-7, Package_4, P4-8 ","Volume_1, Annex V1-7, Package_2, P2-2   Section 5.6\nVolume_1, Annex V1-7, Package_5, P5-4 Madrid-Boston Project Water and Load Balance, Hope Bay Project Section 7\nVolume_1, Annex V1-7, Package_5, P5-24 Hope Bay Project: Boston Water Management Design Section 3.1\nVolume_1, Annex V1-7, Package_4, P4-4 Hope Bay Project Domestic Wastewater Treatment Management Plan \nVolume_1, Annex V1-7, Package_4, P4-8 Hope Bay Project Boston Water Management Plan  Section 2.3.5\n","-"]
[null,"c","Solid waste","Y","-","Madrid-Boston Final Environmental Impact Statement TMAC Resources Inc, Dec 2017 ","Volume_1, Annex V1-7, Package_2, P2-2  \nVolume_1, Annex V1-7, Package_4, P4-13 \nVolume_1, Annex V1-7, Package_4, P4-15 ","Volume_1, Annex V1-7, Package_2, P2-2   \nVolume_1, Annex V1-7, Package_4, P4-13 Hope Bay Project Non-hazardous Waste Management Plan \nVolume_1, Annex V1-7, Package_4, P4-15 Hope Bay Project Hazardous Waste Management Plan \n","-"]
[null,"d","Sludge","Y","-","Madrid-Boston Final Environmental Impact Statement TMAC Resources Inc, Dec 2017 ","Volume_1, Annex V1-7, Package_2, P2-2  \nVolume_1, Annex V1-7, Package_5, P5-4 \nVolume_1, Annex V1-7, Package_5, P5-24 \nVolume_1, Annex V1-7, Package_4, P4-4 \nVolume_1, Annex V1-7, Package_4, P4-16 \n","Volume_1, Annex V1-7, Package_2, P2-2   Section 5.6\nVolume_1, Annex V1-7, Package_5, P5-4 Madrid-Boston Project Water and Load Balance, Hope Bay Project Section 7\nVolume_1, Annex V1-7, Package_5, P5-24 Hope Bay Project: Boston Water Management Design Section 3.1\nVolume_1, Annex V1-7, Package_4, P4-4 Hope Bay Project Domestic Wastewater Treatment Management Plan \nVolume_1, Annex V1-7, Package_4, P4-16 Hope Bay Project Incinerator Management Plan \n","-"]
[null,"e","Hazardous waste including waste oil","Y","-","Madrid-Boston Final Environmental Impact Statement TMAC Resources Inc, Dec 2017 ","Volume_1, Annex V1-7, Package_2, P2-2   \nVolume_1, Annex V1-7, Package_4, P4-14 \nVolume_1, Annex V1-7, Package_4, P4-15 ","Volume_1, Annex V1-7, Package_2, P2-2  Section 6\nVolume_1, Annex V1-7, Package_4, P4-14 Hope Bay Project Hydrocarbon Contaminated Material Management Plan \nVolume_1, Annex V1-7, Package_4, P4-15 Hope Bay Project Hazardous Waste Management Plan \n","-"]
[null,"f","Contaminated soil, snow, ice and/or water","Y","-","Madrid-Boston Final Environmental Impact Statement TMAC Resources Inc, Dec 2017 ","Volume_1, Annex V1-7, Package_2, P2-2  \nVolume_1, Annex V1-7, Package_4, P4-14 \nVolume_1, Annex V1-7, Package_5, P5-24 \nVolume_1, Annex V1-7, Package_4, P4-8 ","Volume_1, Annex V1-7, Package_2, P2-2  Section 6\nVolume 5\nVolume_1, Annex V1-7, Package_4, P4-14 Hope Bay Project Hydrocarbon Contaminated Material Management Plan \nVolume_1, Annex V1-7, Package_5, P5-24 Hope Bay Project: Boston Water Management Design \nVolume_1, Annex V1-7, Package_4, P4-8 Hope Bay Project Boston Water Management Plan  \n","-"]
[null,"g","Bulky items/ scrap metal","Y","-","Madrid-Boston Final Environmental Impact Statement TMAC Resources Inc, Dec 2017 ","Volume_1, Annex V1-7, Package_2, P2-2  \nVolume_1, Annex V1-7, Package_4, P4-13 ","Volume_1, Annex V1-7, Package_2, P2-2  Section 6.1\nVolume_1, Annex V1-7, Package_4, P4-13 Hope Bay Project Non-hazardous Waste Management Plan \n","-"]
[null,"h","Mill or processing plant waste","Y","-","Madrid-Boston Final Environmental Impact Statement TMAC Resources Inc, Dec 2017 ","Volume_1, Annex V1-7, Package_2, P2-2  \nVolume_1, Annex V1-7, Package_5, P5-26 ","Volume_1, Annex V1-7, Package_4,   Section 4.4\nVolume_1, Annex V1-7, Package_5, P5-26 Boston Tailings Management Area Preliminary Design, Hope Bay Project  ","-"]
[null,"i","Mine water","Y","-","Madrid-Boston Final Environmental Impact Statement TMAC Resources Inc, Dec 2017 ","Volume_1, Annex V1-7, Package_2, P2-2  \nVolume_1, Annex V1-7, Package_4, P4-6 \nVolume_1, Annex V1-7, Package_5, P5-24 \nVolume_1, Annex V1-7, Package_5, P5-13 ","Volume_1, Annex V1-7, Package_2, P2-2  Section 5.1\nVolume_1, Annex V1-7, Package_4, P4-6 Hope Bay Project Groundwater Management Plan \nVolume_1, Annex V1-7, Package_5, P5-24 Hope Bay Project: Boston Water Management Design Section 3.3\nVolume_1, Annex V1-7, Package_5, P5-13 Hydrogeological Characterization and Modeling of the Proposed Boston, Madrid South and Madrid North Mines, Hope Bay Project ","-"]
[null,"j","Dredged material","N/A","Activity  not planned.","-","\n","NA\n","-"]
[null,"k","Discharge from dewatered areas","Y","-","Madrid-Boston Final Environmental Impact Statement TMAC Resources Inc, Dec 2017 ","\n","NA\n","-"]
[null,"l","Other: (describe)","Y","-","Madrid-Boston Final Environmental Impact Statement TMAC Resources Inc, Dec 2017 ","Volume_1, Annex V1-7, Package_2, P2-2  ","Volume_1, Annex V1-7, Package_2, P2-2   Section 6\n","-"]
["Waste Disposal: Quality and Quantity",2,"For each type of waste, provide the composition, chemical characteristics and quantity generated. Also provide the location, rate, timing, frequency and duration of the deposit.","Y","-","Madrid-Boston Final Environmental Impact Statement TMAC Resources Inc, Dec 2017 ","Volume_1, Annex V1-7, Package_2, P2-2  \nVolume_1, Annex V1-7, Package_5, P5-26 \nVolume_1, Annex V1-7, Package_5, P5-25 \nVolume_1, Annex V1-7, Package_5, P5-7 \nVolume_1, Annex V1-7, Package_5, P5-4 ","Volume_1, Annex V1-7, Package_2, P2-2   Section 6\nVolume_1, Annex V1-7, Package_5, P5-26 Boston Tailings Management Area Preliminary Design, Hope Bay Project  \nVolume_1, Annex V1-7, Package_5, P5-25 Geochemical Characterization of Waste Rock and Ore from the Boston Deposit, Hope Bay Project  \nVolume_1, Annex V1-7, Package_5, P5-7 Geochemical Characterization of Tailings from the Madrid North, Madrid South and Boston Deposits, Hope Bay Project \nVolume_1, Annex V1-7, Package_5, P5-4 Madrid-Boston Project Water and Load Balance, Hope Bay Project Section 3.2","-"]
[null,3,"For each type of waste, provide the proposed methods and processes for collecting, storing, treating and discharging the waste.  Indicate the capacity of these facilities.","Y","-","Madrid-Boston Final Environmental Impact Statement TMAC Resources Inc, Dec 2017 ","Volume_1, Annex V1-7, Package_2, P2-2  \nVolume_1, Annex V1-7, Package_4, P4-13 \nVolume_1, Annex V1-7, Package_4, P4-15 \nVolume_1, Annex V1-7, Package_4, P4-5 \nVolume_1, Annex V1-7, Package_4, P4-16 \nVolume_1, Annex V1-7, Package_5, P5-26 \nVolume_1, Annex V1-7, Package_5, P5-24 \nVolume_1, Annex V1-7, Package_4, P4-14 \nVolume_1, Annex V1-7, Package_4, P4-11 ","Volume_1, Annex V1-7, Package_2, P2-2   Section 6\nVolume_1, Annex V1-7, Package_4, P4-13 Hope Bay Project Non-hazardous Waste Management Plan \nVolume_1, Annex V1-7, Package_4, P4-15 Hope Bay Project Hazardous Waste Management Plan\nVolume_1, Annex V1-7, Package_4, P4-5 Hope Bay Project: Boston Sewage Treatment Operations and Maintenance Management Plan \nVolume_1, Annex V1-7, Package_4, P4-16 Hope Bay Project Incinerator Management Plan \nVolume_1, Annex V1-7, Package_5, P5-26 Boston Tailings Management Area Preliminary Design, Hope Bay Project \n Volume_1, Annex V1-7, Package_5, P5-24 Hope Bay Project: Boston Water Management Design \nVolume_1, Annex V1-7, Package_4, P4-14 Hope Bay Project Hydrocarbon Contaminated Material Management Plan \nVolume_1, Annex V1-7, Package_4, P4-11 Hope Bay Project Waste Rock, Ore and Mine Backfill Management Plan ","-"]
[null,4,"Provide a description of any measures to minimize the production of wastes.","Y","-","Madrid-Boston Final Environmental Impact Statement TMAC Resources Inc, Dec 2017 ","Volume_1, Annex V1-7, Package_2, P2-2  \nVolume_1, Annex V1-7, Package_5, P5-26\nVolume_1, Annex V1-7, Package_5, P5-24 \nVolume_1, Annex V1-7, Package_4, P4-11 ","Volume_1, Annex V1-7, Package_2, P2-2   Section 6\nVolume_1, Annex V1-7, Package_5, P5-26 Boston Tailings Management Area Preliminary Design, Hope Bay Project  \nVolume_1, Annex V1-7, Package_5, P5-24 Hope Bay Project: Boston Water Management Design Section 3\nVolume_1, Annex V1-7, Package_4, P4-11 Hope Bay Project Waste Rock, Ore and Mine Backfill Management Plan Section 2","-"]
["Identification",5,"Indicate whether there are signs identifying any past or present wastewater disposal sites, solid waste disposal sites, or any other waste disposal sites presently in the project area.","N/A","Currently as per existing project water Licences (2BB‐BOS1217) the monitoring locations are labelled, including those associated with wastewater disposal sites, solid waste disposal sites, or any other waste disposal sites.  ","-","-","-","-"]
[null,"a","Site photos, site map, or air photos of the site.","Y","-","Madrid-Boston Final Environmental Impact Statement TMAC Resources Inc, Dec 2017 ","Volume_1, Annex V1-7, Package_2, P2-2  ","Volume_1, Annex V1-7, Package_2, P2-2   \n","-"]
[null,"b","Description of the existing condition of the site (see Section 5).","Y","-","Madrid-Boston Final Environmental Impact Statement TMAC Resources Inc, Dec 2017 ","Volume_1, Annex V1-7, Package_2, P2-2  \nVolume_1, Annex V1-7, Package_4, P4-19 ","Volume_1, Annex V1-7, Package_2, P2-2   Volume 4\nVolume 5\nVolume 6 \nVolume_1, Annex V1-7, Package_4, P4-19 Hope Bay Project Boston Conceptual Closure and Reclamation Plan ","-"]
[null,"c","A description of the types of waste entering the facility (if applicable, provide a description of the source, type, and quantity of the waste);","Y","-","Madrid-Boston Final Environmental Impact Statement TMAC Resources Inc, Dec 2017 ","Volume_1, Annex V1-7, Package_2, P2-2  \nVolume_1, Annex V1-7, Package_4, P4-13 \nVolume_1, Annex V1-7, Package_4, P4-11 \nVolume_1, Annex V1-7, Package_5, P5-26 ","Volume_1, Annex V1-7, Package_2, P2-2   Section 6\nVolume_1, Annex V1-7, Package_4, P4-13 Hope Bay Project Non-hazardous Waste Management Plan \nVolume_1, Annex V1-7, Package_4, P4-11 Hope Bay Project Waste Rock, Ore and Mine Backfill Management Plan \nVolume_1, Annex V1-7, Package_5, P5-26 Boston Tailings Management Area Preliminary Design, Hope Bay Project  ","-"]
[null,"d","The concentration of waste entering the facility;","Y","-","Madrid-Boston Final Environmental Impact Statement TMAC Resources Inc, Dec 2017 ","Volume_1, Annex V1-7, Package_2, P2-2  \nVolume_1, Annex V1-7, Package_5, P5-4 \nVolume_1, Annex V1-7, Package_5, P5-26 ","Volume_1, Annex V1-7, Package_2, P2-2   Section 6\nVolume_1, Annex V1-7, Package_5, P5-4 Madrid-Boston Project Water and Load Balance, Hope Bay Project Section 7\nVolume_1, Annex V1-7, Package_5, P5-26 Boston Tailings Management Area Preliminary Design, Hope Bay Project  ","-"]
[null,"e","The geochemical characterization of waste entering the facility, where applicable (i.e.. tailings solids);","Y","-","Madrid-Boston Final Environmental Impact Statement TMAC Resources Inc, Dec 2017 ","Volume_1, Annex V1-7, Package_2, P2-2  \nVolume_1, Annex V1-7, Package_5, P5-25 \nVolume_1, Annex V1-7, Package_5, P5-7 ","Volume_1, Annex V1-7, Package_2, P2-2   \nVolume_1, Annex V1-7, Package_5, P5-25 Geochemical Characterization of Waste Rock and Ore from the Boston Deposit, Hope Bay Project  \nVolume_1, Annex V1-7, Package_5, P5-7 Geochemical Characterization of Tailings from the Madrid North, Madrid South and Boston Deposits, Hope Bay Project  ","-"]
[null,"f","Distance of the facility from watercourses and fish bearing waters.","Y","-","Madrid-Boston Final Environmental Impact Statement TMAC Resources Inc, Dec 2017 ","Volume_1, Annex V1-7, Package_2, P2-2  \nVolume_1, Annex V1-7, Package_5, P5-24 \nVolume_1, Annex V1-7, Package_5, P5-28 ","Volume_1, Annex V1-7, Package_2, P2-2   \nVolume_1, Annex V1-7, Package_5, P5-24 Hope Bay Project: Boston Water Management Design \nVolume_1, Annex V1-7, Package_5, P5-28 Hope Bay Project: Boston Surface Infrastructure Preliminary Design ","-"]
[null,"g","All sources of seepage encountered near watercourse and fish bearing waters as well as the volumes (m3/day) and direction of any seepage;","Y","-","Madrid-Boston Final Environmental Impact Statement TMAC Resources Inc, Dec 2017 ","Volume_1, Annex V1-7, Package_4, P4-12 ","Volume_1, Annex V1-7, Package_4, P4-12 Hope Bay Project Water and Ore/Waste Rock Management Plan for Boston Site \nVolume_1, Annex V1-7, Package_5, P5-4 Madrid-Boston Project Water and Load Balance, Hope Bay Project Section 3.3\nVolume_1, Annex V1-7, Package_4, P4-11 Hope Bay Project Waste Rock, Ore and Mine Backfill Management Plan","-"]
[null,"h","Existing and proposed drainage modifications.","Y","-","Madrid-Boston Final Environmental Impact Statement TMAC Resources Inc, Dec 2017 ","Volume_1, Annex V1-7, Package_2, P2-2  \nVolume_1, Annex V1-7, Package_5, P5-3 \nVolume_1, Annex V1-7, Package_5, P5-4 \nVolume_1, Annex V1-7, Package_5, P5-26 ","Volume_1, Annex V1-7, Package_2, P2-2   Section 5\nVolume 5, List of Appendices\nVolume_1, Annex V1-7, Package_5, P5-3 Hope Bay Project: Contact Water Pond Berm Design \nVolume_1, Annex V1-7, Package_5, P5-4 Madrid-Boston Project Water and Load Balance, Hope Bay Project Section 3.3\nVolume_1, Annex V1-7, Package_5, P5-26 Boston Tailings Management Area Preliminary Design, Hope Bay Project  ","-"]
[null,"i","Details of retaining structures.","Y","-","Madrid-Boston Final Environmental Impact Statement TMAC Resources Inc, Dec 2017 ","Volume_1, Annex V1-7, Package_2, P2-2  \nVolume_1, Annex V1-7, Package_5, P5-26 \nVolume_1, Annex V1-7, Package_5, P5-27 \nVolume_1, Annex V1-7, Package_5, P5-28 \nVolume_1, Annex V1-7, Package_5, P5-3 ","Volume_1, Annex V1-7, Package_2, P2-2   Section 4\nVolume_1, Annex V1-7, Package_5, P5-26 Boston Tailings Management Area Preliminary Design, Hope Bay Project  \nVolume_1, Annex V1-7, Package_5, P5-27 Boston Tailings Disposal Alternatives Assessment, Hope Bay Project, Nunavut \nVolume_1, Annex V1-7, Package_5, P5-28 Hope Bay Project: Boston Surface Infrastructure Preliminary Design \nVolume_1, Annex V1-7, Package_5, P5-3 Hope Bay Project: Contact Water Pond Berm Design ","-"]
[null,"j","Level of treatment (primary, secondary or tertiary).","Y","-","Madrid-Boston Final Environmental Impact Statement TMAC Resources Inc, Dec 2017 ","Volume_1, Annex V1-7, Package_2, P2-2  \nVolume_1, Annex V1-7, Package_5, P5-4 ","Volume_1, Annex V1-7, Package_2, P2-2   Section 5\nVolume_1, Annex V1-7, Package_5, P5-4 Madrid-Boston Project Water and Load Balance, Hope Bay Project Section 3.7","-"]
[null,"k","By products of treatment which may require further treatment, characterization, handling and disposal.","Y","-","Madrid-Boston Final Environmental Impact Statement TMAC Resources Inc, Dec 2017 ","Volume_1, Annex V1-7, Package_2, P2-2  \nVolume_1, Annex V1-7, Package_5, P5-4 ","Volume_1, Annex V1-7, Package_2, P2-2   Section 5, 6\nVolume_1, Annex V1-7, Package_5, P5-4 Madrid-Boston Project Water and Load Balance, Hope Bay Project Section 3.7","-"]
[null,"l","Capacity and retention time of the facility;","Y","-","Madrid-Boston Final Environmental Impact Statement TMAC Resources Inc, Dec 2017 ","Volume_1, Annex V1-7, Package_2, P2-2  \nVolume_1, Annex V1-7, Package_5, P5-26 Volume_1, Annex V1-7, Package_5, P5-3 Volume_1, Annex V1-7, Package_5, P5-24 ","Volume_1, Annex V1-7, Package_2, P2-2   Section 4.4, 5, 6\nVolume_1, Annex V1-7, Package_5, P5-26 Boston Tailings Management Area Preliminary Design, Hope Bay Project  \nVolume_1, Annex V1-7, Package_5, P5-3 Hope Bay Project: Contact Water Pond Berm Design \nVolume_1, Annex V1-7, Package_5, P5-24 Hope Bay Project: Boston Water Management Design ","-"]
[null,"m","Identification of final discharge point (last point of control).","Y","-","Madrid-Boston Final Environmental Impact Statement TMAC Resources Inc, Dec 2017 ","Volume_1, Annex V1-7, Package_2, P2-2  \nVolume_1, Annex V1-7, Package_5, P5-24 ","Volume_1, Annex V1-7, Package_2, P2-2   Section 5\nVolume_1, Annex V1-7, Package_5, P5-24 Hope Bay Project: Boston Water Management Design Section 4.5.2","-"]
[null,"n","Method and type of discharge (seasonal, annual, continuous) including details of all decant, siphon mechanisms etc.","Y","-","Madrid-Boston Final Environmental Impact Statement TMAC Resources Inc, Dec 2017 ","Volume_1, Annex V1-7, Package_2, P2-2  \nVolume_1, Annex V1-7, Package_5, P5-24 ","Volume_1, Annex V1-7, Package_2, P2-2   Section 5\nVolume_1, Annex V1-7, Package_5, P5-24 Hope Bay Project: Boston Water Management Design Section 4.5.2","-"]
[null,"o","Estimated rates for discharge.","Y","-","Madrid-Boston Final Environmental Impact Statement TMAC Resources Inc, Dec 2017 ","Volume_1, Annex V1-7, Package_2, P2-2  \nVolume_1, Annex V1-7, Package_5, P5-4 Volume_1, Annex V1-7, Package_5, P5-24 ","Volume_1, Annex V1-7, Package_2, P2-2   Section 5\nVolume_1, Annex V1-7, Package_5, P5-4 Madrid-Boston Project Water and Load Balance, Hope Bay Project Section 6.4.2\nVolume_1, Annex V1-7, Package_5, P5-24 Hope Bay Project: Boston Water Management Design Section 4.5.2","-"]
[null,"p","Restrictions on discharge.","Y","-","Madrid-Boston Final Environmental Impact Statement TMAC Resources Inc, Dec 2017 ","Volume_1, Annex V1-7, Package_2, P2-2  \nVolume_1, Annex V1-7, Package_5, P5-4 ","Volume_1, Annex V1-7, Package_2, P2-2   Section 5.5\nVolume_1, Annex V1-7, Package_5, P5-4 Madrid-Boston Project Water and Load Balance, Hope Bay Project Section 7.1.3\n","-"]
[null,"q","Discharge effluent criteria proposed;","Y","-","Madrid-Boston Final Environmental Impact Statement TMAC Resources Inc, Dec 2017 ","Volume_1, Annex V1-7, Package_2, P2-2  \nVolume_1, Annex V1-7, Package_5, P5-4 \n","Volume_1, Annex V1-7, Package_2, P2-2   Section 5.5\nVolume_1, Annex V1-7, Package_5, P5-4 Madrid-Boston Project Water and Load Balance, Hope Bay Project Section 7.1.3\n","-"]
[null,"r","Receiving water quality objectives.","Y","-","Madrid-Boston Final Environmental Impact Statement TMAC Resources Inc, Dec 2017 ","Volume_1, Annex V1-7, Package_2, P2-2  \nVolume_1, Annex V1-7, Package_5, P5-4 \n","Volume_1, Annex V1-7, Package_2, P2-2   Section 5\nVolume_1, Annex V1-7, Package_5, P5-4 Madrid-Boston Project Water and Load Balance, Hope Bay Project Section 7\n","-"]
[null,"s","Capacity of the receiving environment;","Y","-","Madrid-Boston Final Environmental Impact Statement TMAC Resources Inc, Dec 2017 ","Volume_1, Annex V1-7, Package_5, P5-4 ","Volume_1, Annex V1-7, Package_5, P5-4 Madrid-Boston Project Water and Load Balance, Hope Bay Project Section 6.4.2\nVolume 5, List of Appendices","-"]
[null,"t","Details regarding direction and path of wastewater flow from the area or infrastructure.","Y","-","Madrid-Boston Final Environmental Impact Statement TMAC Resources Inc, Dec 2017 ","Volume_1, Annex V1-7, Package_2, P2-2  \nVolume_1, Annex V1-7, Package_5, P5-24 \n","Volume_1, Annex V1-7, Package_2, P2-2   Section 5\nVolume_1, Annex V1-7, Package_5, P5-24 Hope Bay Project: Boston Water Management Design Figure 1\n","-"]
[null,"u","Design drawings in plan and profile, drawn to scale, including all relevant dimensions.","N/A","Drawings and\nspecifications to be issued for\nconstruction will be submitted to the NWB \n3 months prior to Construction. Conceptual layouts are \npresented in Package 5 which \nprovide sufficient detail for\nEIS requirements","Madrid-Boston Final Environmental Impact Statement TMAC Resources Inc, Dec 2017 ","Volume_1, Annex V1-7, Package_5, P5-24 \nVolume_1, Annex V1-7, Package_5, P5-26 \n","Volume_1, Annex V1-7, Package_5, P5-24 Hope Bay Project: Boston Water Management Design Appendix A\nVolume_1, Annex V1-7, Package_5, P5-26 Boston Tailings Management Area Preliminary Design, Hope Bay Project  Appendix A\n","-"]
[null,"v","Details of design parameters including seismic design if applicable.","Y","-","Madrid-Boston Final Environmental Impact Statement TMAC Resources Inc, Dec 2017 ","Volume_1, Annex V1-7, Package_5, P5-5 \nVolume_1, Annex V1-7, Package_5, P5-3 Volume_1, Annex V1-7, Package_5, P5-26 ","Volume_1, Annex V1-7, Package_5, P5-5 Geotechnical Design Parameters and Overburden Summary Report, Hope Bay Project \nVolume_1, Annex V1-7, Package_5, P5-3 Hope Bay Project: Contact Water Pond Berm Design \nVolume_1, Annex V1-7, Package_5, P5-26 Boston Tailings Management Area Preliminary Design, Hope Bay Project  Appendix C","-"]
[null,"w","Start and completion dates for construction.","Y","-","Madrid-Boston Final Environmental Impact Statement TMAC Resources Inc, Dec 2017 ","Volume_1, Annex V1-7, Package_2, P2-2  ","Volume_1, Annex V1-7, Package_2, P2-2   Section 3","-"]
[null,"x","Construction schedule and sequence taking into account any timing restrictions.","Y","-","Madrid-Boston Final Environmental Impact Statement TMAC Resources Inc, Dec 2017 ","Volume_1, Annex V1-7, Package_2, P2-2  \n","Volume_1, Annex V1-7, Package_2, P2-2   Section 3\n","-"]
[null,"y","Construction methods.","Y","-","Madrid-Boston Final Environmental Impact Statement TMAC Resources Inc, Dec 2017 ","Volume_1, Annex V1-7, Package_2, P2-2  \nVolume_1, Annex V1-7, Package_5, P5-28 Volume_1, Annex V1-7, Package_5, P5-26 \n","Volume_1, Annex V1-7, Package_2, P2-2   Section 3\nVolume_1, Annex V1-7, Package_5, P5-28 Hope Bay Project: Boston Surface Infrastructure Preliminary Design Section 6\nVolume_1, Annex V1-7, Package_5, P5-26 Boston Tailings Management Area Preliminary Design, Hope Bay Project  Section 6\n","-"]
[null,"z","Equipment to be used.","Y","-","Madrid-Boston Final Environmental Impact Statement TMAC Resources Inc, Dec 2017 ","Volume_1, Annex V1-7, Package_2, P2-2  \nVolume_1, Annex V1-7, Package_5, P5-28 Volume_1, Annex V1-7, Package_5, P5-26 Volume_1, Annex V1-7, Package_5, P5-3 \n","Volume_1, Annex V1-7, Package_2, P2-2   Section 3\nVolume_1, Annex V1-7, Package_5, P5-28 Hope Bay Project: Boston Surface Infrastructure Preliminary Design Section 6\nVolume_1, Annex V1-7, Package_5, P5-26 Boston Tailings Management Area Preliminary Design, Hope Bay Project  Section 5\nVolume_1, Annex V1-7, Package_5, P5-3 Hope Bay Project: Contact Water Pond Berm Design Section 6\n","-"]
[null,"aa","A description of the source, type, and composition of the material to be used in construction.","Y","-","-","Volume_1, Annex V1-7, Package_2, P2-2  \nVolume_1, Annex V1-7, Package_5, P5-28 Volume_1, Annex V1-7, Package_5, P5-26 Volume_1, Annex V1-7, Package_5, P5-3 Volume_1, Annex V1-7, Package_5, P5-6 \n","Volume_1, Annex V1-7, Package_2, P2-2   Section 3\nVolume_1, Annex V1-7, Package_5, P5-28 Hope Bay Project: Boston Surface Infrastructure Preliminary Design Section 6\nVolume_1, Annex V1-7, Package_5, P5-26 Boston Tailings Management Area Preliminary Design, Hope Bay Project  Section 5\nVolume_1, Annex V1-7, Package_5, P5-3 Hope Bay Project: Contact Water Pond Berm Design Section 6\nVolume_1, Annex V1-7, Package_5, P5-6 Geochemical Characterization of Madrid-Boston Project Quarries, Hope Bay Project \n","-"]
[null,"bb","Construction monitoring plans.","Y","-","Madrid-Boston Final Environmental Impact Statement TMAC Resources Inc, Dec 2017 ","Volume_1, Annex V1-7, Package_4, P4-24 \nVolume_1, Annex V1-7, Package_2, P2-2  \n","Volume_1, Annex V1-7, Package_4, P4-24 Quality Assurance and Quality Control Plan \nVolume_1, Annex V1-7, Package_2, P2-2   Section 3\n","Prior to the commencement of the Construction Phase (as per NIRB Guideline 9.2), the content of the Environmental Protection Plan will be developed to ensure that appropriate and adequate environmental protection are in place for construction activities at all construction sites."]
[null,"cc","Construction quality assurance and quality control measures.","Y","-","Madrid-Boston Final Environmental Impact Statement TMAC Resources Inc, Dec 2017 ","Volume_1, Annex V1-7, Package_4, P4-24 \nVolume_1, Annex V1-7, Package_2, P2-2  \n","Volume_1, Annex V1-7, Package_4, P4-24 Quality Assurance and Quality Control Plan \nVolume_1, Annex V1-7, Package_2, P2-2   Section 3\n","Prior to the commencement of the Construction Phase (as per NIRB Guideline 9.2), the content of the Environmental Protection Plan will be developed to ensure that appropriate and adequate environmental protection are in place for construction activities at all construction sites."]
[null,"dd","Operation and maintenance plans.","Y","-","Madrid-Boston Final Environmental Impact Statement TMAC Resources Inc, Dec 2017 ","Volume_1, Annex V1-7, Package_4, P4-10 \nVolume_1, Annex V1-7, Package_4, P4-11 Volume_1, Annex V1-7, Package_4, P4-4 Volume_1, Annex V1-7, Package_4, P4-17 Volume_1, Annex V1-7, Package_4, P4-16 Volume_1, Annex V1-7, Package_4, P4-6 Volume_1, Annex V1-7, Package_4, P4-8 Volume_1, Annex V1-7, Package_4, P4-13 Volume_1, Annex V1-7, Package_4, P4-14 Volume_1, Annex V1-7, Package_4, P4-15 Volume_1, Annex V1-7, Package_4, P4-5 \n","Volume_1, Annex V1-7, Package_4, P4-10 Hope Bay Project Boston Tailings Management Area - Operations, Maintenance, and Surveillance Manual \nVolume_1, Annex V1-7, Package_4, P4-11 Hope Bay Project Waste Rock, Ore and Mine Backfill Management Plan \nVolume_1, Annex V1-7, Package_4, P4-4 Hope Bay Project Domestic Wastewater Treatment Management Plan \nVolume_1, Annex V1-7, Package_4, P4-17 Hope Bay Project Quarry Management and Monitoring Plan \nVolume_1, Annex V1-7, Package_4, P4-16 Hope Bay Project Incinerator Management Plan \nVolume_1, Annex V1-7, Package_4, P4-6 Hope Bay Project Groundwater Management Plan \nVolume_1, Annex V1-7, Package_4, P4-8 Hope Bay Project Boston Water Management Plan \n Volume_1, Annex V1-7, Package_4, P4-13 Hope Bay Project Non-hazardous Waste Management Plan \nVolume_1, Annex V1-7, Package_4, P4-14 Hope Bay Project Hydrocarbon Contaminated Material Management Plan \nVolume_1, Annex V1-7, Package_4, P4-15 Hope Bay Project Hazardous Waste Management Plan \nVolume_1, Annex V1-7, Package_4, P4-5 Hope Bay Project: Boston Sewage Treatment Operations and Maintenance Management Plan \n","-"]
[null,"ee","Contingency plans.","Y","-","Madrid-Boston Final Environmental Impact Statement TMAC Resources Inc, Dec 2017 ","Volume_1, Annex V1-7, Package_2, P2-2  \nVolume_1, Annex V1-7, Package_4, P4-3 Volume_1, Annex V1-7, Package_4, P4-6 Volume_1, Annex V1-7, Package_4, P4-8 \n","Volume_1, Annex V1-7, Package_2, P2-2   Section 9\nVolume_1, Annex V1-7, Package_4, P4-3 Hope Bay Project Spill Contingency Plan \nVolume_1, Annex V1-7, Package_4, P4-6 Hope Bay Project Groundwater Management Plan \nVolume_1, Annex V1-7, Package_4, P4-8 Hope Bay Project Boston Water Management Plan  \n","-"]
[null,"ff","Abandonment and restoration plans (see items 45-49 of Section 3). ","Y","-","Madrid-Boston Final Environmental Impact Statement TMAC Resources Inc, Dec 2017 ","Volume_1, Annex V1-7, Package_2, P2-2  \nVolume_1, Annex V1-7, Package_4, P4-19 \n","Volume_1, Annex V1-7, Package_2, P2-2   Section 8\nVolume_1, Annex V1-7, Package_4, P4-19 Hope Bay Project Boston Conceptual Closure and Reclamation Plan \n","-"]
[null,8,"Final plans and drawings for construction must be stamped by a Professional Engineer licensed to practice in Nunavut. (See Section 7 of the NWB's Guide 4: Completing and Submitting a Water Licence Application for more information regarding design drawings). ","N/A","Drawings and\nspecifications to be issued for\nconstruction will be submitted to the NWB \n3 months prior to Construction. Conceptual layouts are \npresented in Package 5 which \nprovide sufficient detail for\nEIS requirements","-","-","-","-"]
[null,9,"Provide an assessment of alternatives for any proposed tailings containment facility.","Y","-","Madrid-Boston Final Environmental Impact Statement TMAC Resources Inc, Dec 2017 ","Volume_1, Annex V1-7, Package_5, P5-27 \n","Volume_1, Annex V1-7, Package_5, P5-27 Boston Tailings Disposal Alternatives Assessment, Hope Bay Project, Nunavut \n","-"]
[null,10,"Provide a description of the general condition of any existing waste facilities and provide an explanation if it is unsatisfactory.","Y","-","Madrid-Boston Final Environmental Impact Statement TMAC Resources Inc, Dec 2017 ","Volume_1, Annex V1-7, Package_2, P2-2  \n","Volume_1, Annex V1-7, Package_2, P2-2   \n","-"]
["Predicted Environmental Effects and Proposed mitigation measures",11,"Provide detailed treatment plans for discharges from any tailings containment area, attenuation pond, reclaim pond, sewage disposal area, sumps or dewatered area.  Water treatment plans should include estimates of treatment efficiency for each parameter of concern and a description of pH adjustment methods.","Y","-","Madrid-Boston Final Environmental Impact Statement TMAC Resources Inc, Dec 2017 ","Volume_1, Annex V1-7, Package_2, P2-2  \nVolume_1, Annex V1-7, Package_5, P5-24 Volume_1, Annex V1-7, Package_5, P5-4 Volume_1, Annex V1-7, Package_4, P4-8 ","Volume_1, Annex V1-7, Package_2, P2-2   Section 5\nVolume_1, Annex V1-7, Package_5, P5-24 Hope Bay Project: Boston Water Management Design \nVolume_1, Annex V1-7, Package_5, P5-4 Madrid-Boston Project Water and Load Balance, Hope Bay Project Section 3.7\nVolume_1, Annex V1-7, Package_4, P4-8 Hope Bay Project Boston Water Management Plan  \n","-"]
[null,12,"Clearly outline proposed discharge criteria, how the criteria were developed, standards to be applied, and how these criteria will be used to prevent ecological effects in the receiving environment.","Y","-","Madrid-Boston Final Environmental Impact Statement TMAC Resources Inc, Dec 2017 ","Volume_1, Annex V1-7, Package_2, P2-2  \nVolume_1, Annex V1-7, Package_5, P5-4 ","Volume_1, Annex V1-7, Package_2, P2-2   Section 5\nVolume_1, Annex V1-7, Package_5, P5-4 Madrid-Boston Project Water and Load Balance, Hope Bay Project Section 3.7, 7\n","-"]
[null,13,"If waste is expected to infiltrate into the ground, provide a description of the sub-surface soil compositions and provide information on groundwater elevations for the project area. Also provide the proximity between the proposed waste disposal system and the groundwater elevation.","Y","-","Madrid-Boston Final Environmental Impact Statement TMAC Resources Inc, Dec 2017 ","Volume_1, Annex V1-7, Package_5, P5-26 \nVolume_1, Annex V1-7, Package_5, P5-5 Volume_1, Annex V1-7, Package_5, P5-3 ","Volume_1, Annex V1-7, Package_5, P5-26 Boston Tailings Management Area Preliminary Design, Hope Bay Project  \nVolume 4\nVolume 5\nVolume_1, Annex V1-7, Package_5, P5-5 Geotechnical Design Parameters and Overburden Summary Report, Hope Bay Project \nVolume_1, Annex V1-7, Package_5, P5-3 Hope Bay Project: Contact Water Pond Berm Design ","-"]
[null,14,"Provide a discussion of the consequences of long-term stratification in any pit lakes and associated contingency plans.","N/A","No open pit's associated with the proposed project. ","-","-","NA\n","-"]
[null,15,"Provide detailed contingency plans for the treatment of turbid water during dewatering activities and/or increased suspended solids during any rewatering activities.","N/A","Activity is not planned.","-","-","NA\n","-"]
["Operations and Maintenance",16,"Provide operation and maintenance plans for any tailings containment areas.","Y","-","Madrid-Boston Final Environmental Impact Statement TMAC Resources Inc, Dec 2017 ","Volume_1, Annex V1-7, Package_4, P4-10 \n","Volume_1, Annex V1-7, Package_4, P4-10 Hope Bay Project Boston Tailings Management Area - Operations, Maintenance, and Surveillance Manual \n","-"]
[null,17,"If the project includes sewage and/or solid waste disposal, provide an Operations and Maintenance Manual in accordance with the \"Guidelines for the Preparation of an Operations and Maintenance Manual for Sewage and Solid Waste Disposal Facilities in the Northwest Territories, 1996\".","Y ","-","Madrid-Boston Final Environmental Impact Statement TMAC Resources Inc, Dec 2017 ","Volume_1, Annex V1-7, Package_4, P4-5 \n","Volume_1, Annex V1-7, Package_4, P4-5 Hope Bay Project: Boston Sewage Treatment Operations and Maintenance Management Plan \n","-"]
["Hazardous Materials ",18,"Provide a description of the type and quantities of drill additives, mill reagents, petroleum products, chemicals and/or hazardous materials on site. (MSDS sheets are not required to be submitted as part of the water licence application).","Y","-","Madrid-Boston Final Environmental Impact Statement TMAC Resources Inc, Dec 2017 ","Volume_1, Annex V1-7, Package_2, P2-2  \nVolume_1, Annex V1-7, Package_4, P4-15 \n","Volume_1, Annex V1-7, Package_2, P2-2   Section 6\nVolume_1, Annex V1-7, Package_4, P4-15 Hope Bay Project Hazardous Waste Management Plan \n","-"]
[null,19,"Provide details regarding the handling and storage of hazardous or potentially hazardous materials.","Y","-","Madrid-Boston Final Environmental Impact Statement TMAC Resources Inc, Dec 2017 ","Volume_1, Annex V1-7, Package_2, P2-2  \nVolume_1, Annex V1-7, Package_4, P4-15 \n","Volume_1, Annex V1-7, Package_2, P2-2   Section 6\nVolume_1, Annex V1-7, Package_4, P4-15 Hope Bay Project Hazardous Waste Management Plan \n","-"]
["Emergency Response and Spill Contingency",20,"Provide designs for the fuel tank farm facilities including a description of the nearest water bodies. Provide an evaluation of impacts and mitigation measures in case of a fuel spill.","Y","-","Madrid-Boston Final Environmental Impact Statement TMAC Resources Inc, Dec 2017 ","Volume_1, Annex V1-7, Package_5, P5-28 \n","Volume_1, Annex V1-7, Package_5, P5-28 Hope Bay Project: Boston Surface Infrastructure Preliminary Design Section 4.7\n","-"]
[null,21,"Provide an Emergency Response and Spill Contingency Plan (ERSCP) that includes mechanisms and processes for addressing potential or actual failure of structures, response equipment and material storage, and programs for providing appropriate training to workers.  The plan shall address all licensed facilities. ","Y","-","Madrid-Boston Final Environmental Impact Statement TMAC Resources Inc, Dec 2017 ","Volume_1, Annex V1-7, Package_4, P4-3 \n","Volume_1, Annex V1-7, Package_4, P4-3 Hope Bay Project Spill Contingency Plan \n","-"]
[null,22,"Plan(s) shall address phases of the project including construction, operation, and care & maintenance.","Y","-","Madrid-Boston Final Environmental Impact Statement TMAC Resources Inc, Dec 2017 ","Volume_1, Annex V1-7, Package_4, P4-10 \nVolume_1, Annex V1-7, Package_4, P4-8 \n","Volume_1, Annex V1-7, Package_4, P4-10 Hope Bay Project Boston Tailings Management Area - Operations, Maintenance, and Surveillance Manual \nVolume_1, Annex V1-7, Package_4, P4-8 Hope Bay Project Boston Water Management Plan  \n","-"]
[null,23,"Provide an explanation of how the applicant will ensure project contractors meet the applicant's due diligence standards with respect to oil and hazardous material spill prevention, preparedness, response, and restoration.","Y","-","Madrid-Boston Final Environmental Impact Statement TMAC Resources Inc, Dec 2017 ","Volume_1, Annex V1-7, Package_4, P4-24 \n","Volume_1, Annex V1-7, Package_4, P4-24 Quality Assurance and Quality Control Plan \n","-"]
["Studies",24,"Provide a list of studies, reports and plans relevant to the application that have been undertaken to date including design and management decisions. Studies, reports and plans may include: ","Y","-","See below","Volume_1, Annex V1-7, Package_5, \n","Volume_1, Annex V1-7, Package_5, \n","-"]
[null,"a","Options analysis.","Y","-","Madrid-Boston Final Environmental Impact Statement TMAC Resources Inc, Dec 2017 ","Volume_1, Annex V1-7, Package_5, P5-27 \n","Volume_1, Annex V1-7, Package_5, P5-27 Boston Tailings Disposal Alternatives Assessment, Hope Bay Project, Nunavut \n","-"]
[null,"b","Geotechnical and geothermal assessment;","Y","-","Madrid-Boston Final Environmental Impact Statement TMAC Resources Inc, Dec 2017 ","Volume_1, Annex V1-7, Package_5, P5-5 \n","Volume_1, Annex V1-7, Package_5, P5-5 Geotechnical Design Parameters and Overburden Summary Report, Hope Bay Project \nVolume 4, List of Appendices\n","-"]
[null,"c","Water quality modeling;","Y","-","Madrid-Boston Final Environmental Impact Statement TMAC Resources Inc, Dec 2017 ","Volume_1, Annex V1-7, Package_2, P2-2  \nVolume_1, Annex V1-7, Package_5, P5-4 \n","Volume_1, Annex V1-7, Package_2, P2-2   \nVolume 5,  List of Appendices\nVolume_1, Annex V1-7, Package_5, P5-4 Madrid-Boston Project Water and Load Balance, Hope Bay Project \n","-"]
[null,"d","Snow drift assessments;","N/A","Snow drift assessments not required. ","-","-","-","-"]
[null,"e","Permafrost protection;","Y","-","Madrid-Boston Final Environmental Impact Statement TMAC Resources Inc, Dec 2017 ","Volume_1, Annex V1-7, Package_5, P5-5 \n","Volume_1, Annex V1-7, Package_5, P5-5 Geotechnical Design Parameters and Overburden Summary Report, Hope Bay Project \n","-"]
[null,"f","Mine waste and water management;","Y","-","Madrid-Boston Final Environmental Impact Statement TMAC Resources Inc, Dec 2017 ","Volume_1, Annex V1-7, Package_2, P2-2  \nVolume_1, Annex V1-7, Package_5, P5-26 Volume_1, Annex V1-7, Package_5, P5-24 \n","Volume_1, Annex V1-7, Package_2, P2-2   Section 5, 6\nVolume_1, Annex V1-7, Package_5, P5-26 Boston Tailings Management Area Preliminary Design, Hope Bay Project \n Volume_1, Annex V1-7, Package_5, P5-24 Hope Bay Project: Boston Water Management Design \n","-"]
[null,"g","Landfill management;","Y","-","Madrid-Boston Final Environmental Impact Statement TMAC Resources Inc, Dec 2017 ","Volume_1, Annex V1-7, Package_2, P2-2  \nVolume_1, Annex V1-7, Package_5, P5-28 Volume_1, Annex V1-7, Package_4, P4-13 \n","Volume_1, Annex V1-7, Package_2, P2-2   Section 6\nVolume_1, Annex V1-7, Package_5, P5-28 Hope Bay Project: Boston Surface Infrastructure Preliminary Design \nVolume_1, Annex V1-7, Package_4, P4-13 Hope Bay Project Non-hazardous Waste Management Plan \n","-"]
[null,"h","Landfarm management;","Y","-","Madrid-Boston Final Environmental Impact Statement TMAC Resources Inc, Dec 2017 ","Volume_1, Annex V1-7, Package_2, P2-2  \nVolume_1, Annex V1-7, Package_4, P4-14 \n","Volume_1, Annex V1-7, Package_2, P2-2   Section 6\nVolume_1, Annex V1-7, Package_4, P4-14 Hope Bay Project Hydrocarbon Contaminated Material Management Plan \n","-"]
[null,"i","Quarry Management;","Y","-","Madrid-Boston Final Environmental Impact Statement TMAC Resources Inc, Dec 2017 ","Volume_1, Annex V1-7, Package_2, P2-2  \nVolume_1, Annex V1-7, Package_4, P4-17 Volume_1, Annex V1-7, Package_5, P5-6 \n","Volume_1, Annex V1-7, Package_2, P2-2   Section 3\nVolume_1, Annex V1-7, Package_4, P4-17 Hope Bay Project Quarry Management and Monitoring Plan \nVolume_1, Annex V1-7, Package_5, P5-6 Geochemical Characterization of Madrid-Boston Project Quarries, Hope Bay Project \n","-"]
[null,"j","Incineration management;  ","Y","-","Madrid-Boston Final Environmental Impact Statement TMAC Resources Inc, Dec 2017 ","Volume_1, Annex V1-7, Package_4, P4-16 \n","Volume_1, Annex V1-7, Package_4, P4-16 Hope Bay Project Incinerator Management Plan \n","-"]
[null,"k","Hazardous waste management;","Y","-","Madrid-Boston Final Environmental Impact Statement TMAC Resources Inc, Dec 2017 ","Volume_1, Annex V1-7, Package_2, P2-2  \nVolume_1, Annex V1-7, Package_4, P4-15 \n","Volume_1, Annex V1-7, Package_2, P2-2   Section 6.2\nVolume_1, Annex V1-7, Package_4, P4-15 Hope Bay Project Hazardous Waste Management Plan \n","-"]
[null,"l","Operation and maintenance plan;","Y","-","Madrid-Boston Final Environmental Impact Statement TMAC Resources Inc, Dec 2017 ","Volume_1, Annex V1-7, Package_4, P4-10 \n","Volume_1, Annex V1-7, Package_4, P4-10 Hope Bay Project Boston Tailings Management Area - Operations, Maintenance, and Surveillance Manual \n","-"]
[null,"m","Inspection plan (see Section 8);","Y","-","Madrid-Boston Final Environmental Impact Statement TMAC Resources Inc, Dec 2017 ","Volume_1, Annex V1-7, Package_4, P4-10 \n","Volume_1, Annex V1-7, Package_4, P4-10 Hope Bay Project Boston Tailings Management Area - Operations, Maintenance, and Surveillance Manual \n","-"]
[null,"n","Tailings monitoring (see Section 8);","Y","-","Madrid-Boston Final Environmental Impact Statement TMAC Resources Inc, Dec 2017 ","Volume_1, Annex V1-7, Package_4, P4-10 \n","Volume_1, Annex V1-7, Package_4, P4-10 Hope Bay Project Boston Tailings Management Area - Operations, Maintenance, and Surveillance Manual \n","-"]
[null,"o","Mine site water quality monitoring (see Section 8);","Y","-","Madrid-Boston Final Environmental Impact Statement TMAC Resources Inc, Dec 2017 ","Volume_1, Annex V1-7, Package_2, P2-2  \nVolume_1, Annex V1-7, Package_4, P4-8 Volume_1, Annex V1-7, Package_4, P4-6 Volume_1, Annex V1-7, Package_4, P4-17 ","Volume_1, Annex V1-7, Package_2, P2-2   \nVolume 5\nVolume_1, Annex V1-7, Package_4, P4-8 Hope Bay Project Boston Water Management Plan  Section 3, 4\nVolume_1, Annex V1-7, Package_4, P4-6 Hope Bay Project Groundwater Management Plan \nVolume_1, Annex V1-7, Package_4, P4-17 Hope Bay Project Quarry Management and Monitoring Plan ","-"]
[null,"p","Receiving water quality monitoring (see Section 8);","Y","-","Madrid-Boston Final Environmental Impact Statement TMAC Resources Inc, Dec 2017 ","Volume_1, Annex V1-7, Package_2, P2-2  \nVolume_1, Annex V1-7, Package_4, P4-8 ","Volume_1, Annex V1-7, Package_2, P2-2   \nVolume 5\nVolume_1, Annex V1-7, Package_4, P4-8 Hope Bay Project Boston Water Management Plan  ","-"]
[null,"q","Aquatic effects monitoring (see Section 8);","Y","-","Madrid-Boston Final Environmental Impact Statement TMAC Resources Inc, Dec 2017 ","Volume_1, Annex V1-7, Package_4, P4-18 ","Volume_1, Annex V1-7, Package_4, P4-18 Hope Bay Project Aquatic Effects Monitoring Plan \nVolume 5","-"]
[null,"r","Geotechnical and structural monitoring (see Section 8);","Y","-","Madrid-Boston Final Environmental Impact Statement TMAC Resources Inc, Dec 2017 ","Volume_1, Annex V1-7, Package_2, P2-2  \nVolume_1, Annex V1-7, Package_4, P4-10 \n","Volume_1, Annex V1-7, Package_2, P2-2   Section 4.2.3\nVolume_1, Annex V1-7, Package_4, P4-10 Hope Bay Project Boston Tailings Management Area - Operations, Maintenance, and Surveillance Manual \n","-"]
[null,"s","Quality assurance and quality control plan (see Section 8);","Y","-","Madrid-Boston Final Environmental Impact Statement TMAC Resources Inc, Dec 2017 ","Volume_1, Annex V1-7, Package_4, P4-24 ","Volume_1, Annex V1-7, Package_4, P4-24 Quality Assurance and Quality Control Plan ","-"]
[null,"t","Spill contingency and emergency response plans;","Y","-","Madrid-Boston Final Environmental Impact Statement TMAC Resources Inc, Dec 2017 ","Volume_1, Annex V1-7, Package_2, P2-2  \nVolume_1, Annex V1-7, Package_4, P4-3 ","Volume_1, Annex V1-7, Package_2, P2-2   Section 9\nVolume_1, Annex V1-7, Package_4, P4-3 Hope Bay Project Spill Contingency Plan ","-"]
[null,"u","Preliminary abandonment and reclamation plans for existing and proposed facilities;","Y","-","Madrid-Boston Final Environmental Impact Statement TMAC Resources Inc, Dec 2017 ","Volume_1, Annex V1-7, Package_2, P2-2  \nVolume_1, Annex V1-7, Package_4, P4-19 ","Volume_1, Annex V1-7, Package_2, P2-2   Section 8\nVolume_1, Annex V1-7, Package_4, P4-19 Hope Bay Project Boston Conceptual Closure and Reclamation Plan \n","-"]
[null,"v","Final abandonment and reclamation plans for facilities to be closed;","Y","-","Madrid-Boston Final Environmental Impact Statement TMAC Resources Inc, Dec 2017 ","Volume_1, Annex V1-7, Package_2, P2-2  \nVolume_1, Annex V1-7, Package_4, P4-19 ","Volume_1, Annex V1-7, Package_2, P2-2   Section 8\nVolume_1, Annex V1-7, Package_4, P4-19 Hope Bay Project Boston Conceptual Closure and Reclamation Plan \n","-"]
[null,"w","Remediation plans for waste disposal infrastructure;","Y","-","Madrid-Boston Final Environmental Impact Statement TMAC Resources Inc, Dec 2017 ","Volume_1, Annex V1-7, Package_2, P2-2  \nVolume_1, Annex V1-7, Package_4, P4-19 Volume_1, Annex V1-7, Package_5, P5-26 ","Volume_1, Annex V1-7, Package_2, P2-2   Section 8\nVolume_1, Annex V1-7, Package_4, P4-19 Hope Bay Project Boston Conceptual Closure and Reclamation Plan \nVolume_1, Annex V1-7, Package_5, P5-26 Boston Tailings Management Area Preliminary Design, Hope Bay Project  Section 7\n","-"]
[null,"x","Human health and ecological risk assessment for establishment of remediation objectives for closure;","Y","-","Madrid-Boston Final Environmental Impact Statement TMAC Resources Inc, Dec 2017 ","Volume 6, Section 5","Volume 6, Section 5","-"]
[null,"y","Construction plan and construction schedule for waste management infrastructure;","Y","-","Madrid-Boston Final Environmental Impact Statement TMAC Resources Inc, Dec 2017 ","Volume_1, Annex V1-7, Package_2, P2-2  \nVolume_1, Annex V1-7, Package_5, P5-26 ","Volume_1, Annex V1-7, Package_2, P2-2   Section 3\nVolume_1, Annex V1-7, Package_5, P5-26 Boston Tailings Management Area Preliminary Design, Hope Bay Project  Section 5\n","Prior to the commencement of the Construction Phase (NIRB Guideline 9.2), an Environmental Protection Plan will be  developed to ensure that appropriate and adequate environmental protection are in place for construction activities at all construction sites."]
[null,"z","Implementation schedule for construction of works, submission of studies and mitigation plans for operations and closure;","Y","-","Madrid-Boston Final Environmental Impact Statement TMAC Resources Inc, Dec 2017 ","Volume_1, Annex V1-7, Package_2, P2-2  ","Volume_1, Annex V1-7, Package_2, P2-2   Section 2\n","-"]
[]
[]
[]
[]
[]
[]
[null,null," "]

{"sheet":"8.0 Monitoring","index":9,"n_rows":10,"n_cols":11,"rows_kept":10,"cut":false,"hidden":false,"merged":[[0,0,0,10]]}
["8.0 Monitoring "]
["Section Title","Section No."," Information Requirement","Indicate whether Information Requirement is applicable by inserting ' Y ' or ' NA '","If 'NA' provide justification","Insert Title, Author and Date of Document where information is provided","Insert electronic file name of document where information is provided","Insert Section of document where information is provided","If information is not available at the time of application, indicate when the information will be made available","NWB Concordance Assessment","NIRB Guideline Section No."]
["Monitoring",1,"Provide a Monitoring Plan including a description of the methods, procedures, standards, and schedules proposed.  Monitoring may be required for water use; effluent, surface and/or groundwater water quality, quantity, or flow; ground temperature; ground settlement; etc.  The Monitoring Plan must consider the life of the project, temporary closure and permanent closure.","Y","-","Madrid-Boston Final Environmental Impact Statement TMAC Resources Inc, Dec 2017","Volume_1, Annex V1-7, Package_4, P4 \n","Volume_1, Annex V1-7, Package_4, P4 Environmental Management System P4-1, P4-2, P4-3, P4-5, P4-6, P4-8, P4-10 through P4-19, P4-23, P4-24\n","-"]
[null,2,"Indicate who is responsible for sampling including that person's position, contact information and level of training.","N/A","Details to be provided prior to the\ncommencement of\nconstruction","Madrid-Boston Final Environmental Impact Statement TMAC Resources Inc, Dec 2017","-","-","Details to be provided prior to the\ncommencement of\nconstruction"]
[null,3,"Indicate the name and contact information of the certified laboratory performing the analysis of samples.","N/A","Details to be provided prior to the\ncommencement of\nconstruction","Madrid-Boston Final Environmental Impact Statement TMAC Resources Inc, Dec 2017","-","-","Details to be provided prior to the\ncommencement of\nconstruction"]
[null,4,"Provide an Inspection Plan including a description of the methods, procedures, standards, and schedules proposed.  Inspections may be required for engineered facilities related to the management of water and waste as well as spills.  The Inspection Plan must consider the life of the project, temporary closure and permanent closure.","Y","-","Madrid-Boston Final Environmental Impact Statement TMAC Resources Inc, Dec 2017","Volume_1, Annex V1-7, Package_4, P4 \n","Volume 1, Annex V1-7, Package 4, P4 Environmental Management System\nThis section provides details on TMAC's Environmental Management System and associated Management Plans for the Project. This volume details methods, procedures, standards and schedules for environmental management of the Project site  including but not limited the management of water, waste, spills  as well as addressing closure and reclamation for the Project. In addition, TMAC's existing Project Water Licences: NWB Type A Water Licence 2AM-DOH1323; NWB Type B Water Licence 2BE-HOP1222; Type B 2BB-MAE1727 and NWB Type B Water Licence 2BB-BOS1727 provide details on required  methods, procedures, standards and schedules for  the management of waste and water at the Project site.  If required, updates to plans provided in Volume 8  Section 5 (Annex 1 through 28) will be addressed during the Water Licencing Phase.","-"]
[null,5,"Provide a summary table of all monitoring commitments that details all monitoring locations. The table should include parameter(s), location, frequency, and mining phase, along with, cross-referencing to sub-documents where detailed information is provided. Where appropriate, a map detailing the location of monitoring sites is to be provided.","N/A","To be provided during and post  Water Licencing Phase.","Madrid-Boston Final Environmental Impact Statement TMAC Resources Inc, Dec 2017","-","-","To be provided during and post  Water Licencing Phase."]
[null,6,"Provide a summary table of the expected quality and quantity of waters, over time in all sumps, monitoring stations, and discharge points, along with i) if applicable, adaptive management criteria to benchmark if mitigation/contingency are to be implemented, ii) if applicable, water quality criteria, and iii) management action.","Y","-","Madrid-Boston Final Environmental Impact Statement TMAC Resources Inc, Dec 2017","Volume 1, Annex V1-7, Package 5","Volume 1, Annex V1-7, Package 5, \nP5-4 Hope Bay Project – Water and Load Balance","-"]
[null,7,"Provide a monitoring plan for incinerator emissions (including, but not limited to, stack testing and annual reporting).","Y","-","Madrid-Boston Final Environmental Impact Statement TMAC Resources Inc, Dec 2017","Volume 1, Annex V1-7, Package 4","Volume 1, Annex V1-7, Package 4, P4-16 Hope Bay Project Incinerator Management Plan ","-"]
[null,8,"Provide a Quality Assurance/ Quality Control (QA/QC) Plan that addresses both field sampling and laboratory analyses.","Y",null,"Madrid-Boston Final Environmental Impact Statement TMAC Resources Inc, Dec 2017","Volume 1, Annex V1-7, Package 4","Volume 1, Annex V1-7, Package 4, P4-24 Quality Assurance  Quality Control Plan ","-"]

{"sheet":"Package","index":10,"n_rows":49,"n_cols":6,"rows_kept":49,"cut":false,"hidden":true,"merged":[]}
["Package_1","Package_2","Package_3","Package_4","Package_5","Package_6"]
[{"$f":"INDEX(#REF!,MATCH(A$1,#REF!,0))","v":{"$error":"#REF!"}},{"$f":"INDEX(#REF!,MATCH(B$1,#REF!,0))","v":{"$error":"#REF!"}},{"$f":"INDEX(#REF!,MATCH(C$1,#REF!,0))","v":{"$error":"#REF!"}},{"$f":"INDEX(#REF!,MATCH(D$1,#REF!,0))","v":{"$error":"#REF!"}},{"$f":"INDEX(#REF!,MATCH(E$1,#REF!,0))","v":{"$error":"#REF!"}},{"$f":"INDEX(#REF!,MATCH(F$1,#REF!,0))","v":{"$error":"#REF!"}}]
[{"$f":"IFERROR(INDEX(#REF!,MATCH(A$1,INDIRECT(\"'Doc_Database'!C\"&MATCH(A2,#REF!,0)+1&\":C10000\"),0)+MATCH(A2,#REF!,0)),\"\")","v":""},{"$f":"IFERROR(INDEX(#REF!,MATCH(B$1,INDIRECT(\"'Doc_Database'!C\"&MATCH(B2,#REF!,0)+1&\":C10000\"),0)+MATCH(B2,#REF!,0)),\"\")","v":""},{"$f":"IFERROR(INDEX(#REF!,MATCH(C$1,INDIRECT(\"'Doc_Database'!C\"&MATCH(C2,#REF!,0)+1&\":C10000\"),0)+MATCH(C2,#REF!,0)),\"\")","v":""},{"$f":"IFERROR(INDEX(#REF!,MATCH(D$1,INDIRECT(\"'Doc_Database'!C\"&MATCH(D2,#REF!,0)+1&\":C10000\"),0)+MATCH(D2,#REF!,0)),\"\")","v":""},{"$f":"IFERROR(INDEX(#REF!,MATCH(E$1,INDIRECT(\"'Doc_Database'!C\"&MATCH(E2,#REF!,0)+1&\":C10000\"),0)+MATCH(E2,#REF!,0)),\"\")","v":""},{"$f":"IFERROR(INDEX(#REF!,MATCH(F$1,INDIRECT(\"'Doc_Database'!C\"&MATCH(F2,#REF!,0)+1&\":C10000\"),0)+MATCH(F2,#REF!,0)),\"\")","v":""}]
[{"$f":"IFERROR(INDEX(#REF!,MATCH(A$1,INDIRECT(\"'Doc_Database'!C\"&MATCH(A3,#REF!,0)+1&\":C10000\"),0)+MATCH(A3,#REF!,0)),\"\")","v":""},{"$f":"IFERROR(INDEX(#REF!,MATCH(B$1,INDIRECT(\"'Doc_Database'!C\"&MATCH(B3,#REF!,0)+1&\":C10000\"),0)+MATCH(B3,#REF!,0)),\"\")","v":""},{"$f":"IFERROR(INDEX(#REF!,MATCH(C$1,INDIRECT(\"'Doc_Database'!C\"&MATCH(C3,#REF!,0)+1&\":C10000\"),0)+MATCH(C3,#REF!,0)),\"\")","v":""},{"$f":"IFERROR(INDEX(#REF!,MATCH(D$1,INDIRECT(\"'Doc_Database'!C\"&MATCH(D3,#REF!,0)+1&\":C10000\"),0)+MATCH(D3,#REF!,0)),\"\")","v":""},{"$f":"IFERROR(INDEX(#REF!,MATCH(E$1,INDIRECT(\"'Doc_Database'!C\"&MATCH(E3,#REF!,0)+1&\":C10000\"),0)+MATCH(E3,#REF!,0)),\"\")","v":""},{"$f":"IFERROR(INDEX(#REF!,MATCH(F$1,INDIRECT(\"'Doc_Database'!C\"&MATCH(F3,#REF!,0)+1&\":C10000\"),0)+MATCH(F3,#REF!,0)),\"\")","v":""}]
[{"$f":"IFERROR(INDEX(#REF!,MATCH(A$1,INDIRECT(\"'Doc_Database'!C\"&MATCH(A4,#REF!,0)+1&\":C10000\"),0)+MATCH(A4,#REF!,0)),\"\")","v":""},{"$f":"IFERROR(INDEX(#REF!,MATCH(B$1,INDIRECT(\"'Doc_Database'!C\"&MATCH(B4,#REF!,0)+1&\":C10000\"),0)+MATCH(B4,#REF!,0)),\"\")","v":""},{"$f":"IFERROR(INDEX(#REF!,MATCH(C$1,INDIRECT(\"'Doc_Database'!C\"&MATCH(C4,#REF!,0)+1&\":C10000\"),0)+MATCH(C4,#REF!,0)),\"\")","v":""},{"$f":"IFERROR(INDEX(#REF!,MATCH(D$1,INDIRECT(\"'Doc_Database'!C\"&MATCH(D4,#REF!,0)+1&\":C10000\"),0)+MATCH(D4,#REF!,0)),\"\")","v":""},{"$f":"IFERROR(INDEX(#REF!,MATCH(E$1,INDIRECT(\"'Doc_Database'!C\"&MATCH(E4,#REF!,0)+1&\":C10000\"),0)+MATCH(E4,#REF!,0)),\"\")","v":""},{"$f":"IFERROR(INDEX(#REF!,MATCH(F$1,INDIRECT(\"'Doc_Database'!C\"&MATCH(F4,#REF!,0)+1&\":C10000\"),0)+MATCH(F4,#REF!,0)),\"\")","v":""}]
[{"$f":"IFERROR(INDEX(#REF!,MATCH(A$1,INDIRECT(\"'Doc_Database'!C\"&MATCH(A5,#REF!,0)+1&\":C10000\"),0)+MATCH(A5,#REF!,0)),\"\")","v":""},{"$f":"IFERROR(INDEX(#REF!,MATCH(B$1,INDIRECT(\"'Doc_Database'!C\"&MATCH(B5,#REF!,0)+1&\":C10000\"),0)+MATCH(B5,#REF!,0)),\"\")","v":""},{"$f":"IFERROR(INDEX(#REF!,MATCH(C$1,INDIRECT(\"'Doc_Database'!C\"&MATCH(C5,#REF!,0)+1&\":C10000\"),0)+MATCH(C5,#REF!,0)),\"\")","v":""},{"$f":"IFERROR(INDEX(#REF!,MATCH(D$1,INDIRECT(\"'Doc_Database'!C\"&MATCH(D5,#REF!,0)+1&\":C10000\"),0)+MATCH(D5,#REF!,0)),\"\")","v":""},{"$f":"IFERROR(INDEX(#REF!,MATCH(E$1,INDIRECT(\"'Doc_Database'!C\"&MATCH(E5,#REF!,0)+1&\":C10000\"),0)+MATCH(E5,#REF!,0)),\"\")","v":""},{"$f":"IFERROR(INDEX(#REF!,MATCH(F$1,INDIRECT(\"'Doc_Database'!C\"&MATCH(F5,#REF!,0)+1&\":C10000\"),0)+MATCH(F5,#REF!,0)),\"\")","v":""}]
[{"$f":"IFERROR(INDEX(#REF!,MATCH(A$1,INDIRECT(\"'Doc_Database'!C\"&MATCH(A6,#REF!,0)+1&\":C10000\"),0)+MATCH(A6,#REF!,0)),\"\")","v":""},{"$f":"IFERROR(INDEX(#REF!,MATCH(B$1,INDIRECT(\"'Doc_Database'!C\"&MATCH(B6,#REF!,0)+1&\":C10000\"),0)+MATCH(B6,#REF!,0)),\"\")","v":""},{"$f":"IFERROR(INDEX(#REF!,MATCH(C$1,INDIRECT(\"'Doc_Database'!C\"&MATCH(C6,#REF!,0)+1&\":C10000\"),0)+MATCH(C6,#REF!,0)),\"\")","v":""},{"$f":"IFERROR(INDEX(#REF!,MATCH(D$1,INDIRECT(\"'Doc_Database'!C\"&MATCH(D6,#REF!,0)+1&\":C10000\"),0)+MATCH(D6,#REF!,0)),\"\")","v":""},{"$f":"IFERROR(INDEX(#REF!,MATCH(E$1,INDIRECT(\"'Doc_Database'!C\"&MATCH(E6,#REF!,0)+1&\":C10000\"),0)+MATCH(E6,#REF!,0)),\"\")","v":""},{"$f":"IFERROR(INDEX(#REF!,MATCH(F$1,INDIRECT(\"'Doc_Database'!C\"&MATCH(F6,#REF!,0)+1&\":C10000\"),0)+MATCH(F6,#REF!,0)),\"\")","v":""}]
[{"$f":"IFERROR(INDEX(#REF!,MATCH(A$1,INDIRECT(\"'Doc_Database'!C\"&MATCH(A7,#REF!,0)+1&\":C10000\"),0)+MATCH(A7,#REF!,0)),\"\")","v":""},{"$f":"IFERROR(INDEX(#REF!,MATCH(B$1,INDIRECT(\"'Doc_Database'!C\"&MATCH(B7,#REF!,0)+1&\":C10000\"),0)+MATCH(B7,#REF!,0)),\"\")","v":""},{"$f":"IFERROR(INDEX(#REF!,MATCH(C$1,INDIRECT(\"'Doc_Database'!C\"&MATCH(C7,#REF!,0)+1&\":C10000\"),0)+MATCH(C7,#REF!,0)),\"\")","v":""},{"$f":"IFERROR(INDEX(#REF!,MATCH(D$1,INDIRECT(\"'Doc_Database'!C\"&MATCH(D7,#REF!,0)+1&\":C10000\"),0)+MATCH(D7,#REF!,0)),\"\")","v":""},{"$f":"IFERROR(INDEX(#REF!,MATCH(E$1,INDIRECT(\"'Doc_Database'!C\"&MATCH(E7,#REF!,0)+1&\":C10000\"),0)+MATCH(E7,#REF!,0)),\"\")","v":""},{"$f":"IFERROR(INDEX(#REF!,MATCH(F$1,INDIRECT(\"'Doc_Database'!C\"&MATCH(F7,#REF!,0)+1&\":C10000\"),0)+MATCH(F7,#REF!,0)),\"\")","v":""}]
[{"$f":"IFERROR(INDEX(#REF!,MATCH(A$1,INDIRECT(\"'Doc_Database'!C\"&MATCH(A8,#REF!,0)+1&\":C10000\"),0)+MATCH(A8,#REF!,0)),\"\")","v":""},{"$f":"IFERROR(INDEX(#REF!,MATCH(B$1,INDIRECT(\"'Doc_Database'!C\"&MATCH(B8,#REF!,0)+1&\":C10000\"),0)+MATCH(B8,#REF!,0)),\"\")","v":""},{"$f":"IFERROR(INDEX(#REF!,MATCH(C$1,INDIRECT(\"'Doc_Database'!C\"&MATCH(C8,#REF!,0)+1&\":C10000\"),0)+MATCH(C8,#REF!,0)),\"\")","v":""},{"$f":"IFERROR(INDEX(#REF!,MATCH(D$1,INDIRECT(\"'Doc_Database'!C\"&MATCH(D8,#REF!,0)+1&\":C10000\"),0)+MATCH(D8,#REF!,0)),\"\")","v":""},{"$f":"IFERROR(INDEX(#REF!,MATCH(E$1,INDIRECT(\"'Doc_Database'!C\"&MATCH(E8,#REF!,0)+1&\":C10000\"),0)+MATCH(E8,#REF!,0)),\"\")","v":""},{"$f":"IFERROR(INDEX(#REF!,MATCH(F$1,INDIRECT(\"'Doc_Database'!C\"&MATCH(F8,#REF!,0)+1&\":C10000\"),0)+MATCH(F8,#REF!,0)),\"\")","v":""}]
[{"$f":"IFERROR(INDEX(#REF!,MATCH(A$1,INDIRECT(\"'Doc_Database'!C\"&MATCH(A9,#REF!,0)+1&\":C10000\"),0)+MATCH(A9,#REF!,0)),\"\")","v":""},{"$f":"IFERROR(INDEX(#REF!,MATCH(B$1,INDIRECT(\"'Doc_Database'!C\"&MATCH(B9,#REF!,0)+1&\":C10000\"),0)+MATCH(B9,#REF!,0)),\"\")","v":""},{"$f":"IFERROR(INDEX(#REF!,MATCH(C$1,INDIRECT(\"'Doc_Database'!C\"&MATCH(C9,#REF!,0)+1&\":C10000\"),0)+MATCH(C9,#REF!,0)),\"\")","v":""},{"$f":"IFERROR(INDEX(#REF!,MATCH(D$1,INDIRECT(\"'Doc_Database'!C\"&MATCH(D9,#REF!,0)+1&\":C10000\"),0)+MATCH(D9,#REF!,0)),\"\")","v":""},{"$f":"IFERROR(INDEX(#REF!,MATCH(E$1,INDIRECT(\"'Doc_Database'!C\"&MATCH(E9,#REF!,0)+1&\":C10000\"),0)+MATCH(E9,#REF!,0)),\"\")","v":""},{"$f":"IFERROR(INDEX(#REF!,MATCH(F$1,INDIRECT(\"'Doc_Database'!C\"&MATCH(F9,#REF!,0)+1&\":C10000\"),0)+MATCH(F9,#REF!,0)),\"\")","v":""}]
[{"$f":"IFERROR(INDEX(#REF!,MATCH(A$1,INDIRECT(\"'Doc_Database'!C\"&MATCH(A10,#REF!,0)+1&\":C10000\"),0)+MATCH(A10,#REF!,0)),\"\")","v":""},{"$f":"IFERROR(INDEX(#REF!,MATCH(B$1,INDIRECT(\"'Doc_Database'!C\"&MATCH(B10,#REF!,0)+1&\":C10000\"),0)+MATCH(B10,#REF!,0)),\"\")","v":""},{"$f":"IFERROR(INDEX(#REF!,MATCH(C$1,INDIRECT(\"'Doc_Database'!C\"&MATCH(C10,#REF!,0)+1&\":C10000\"),0)+MATCH(C10,#REF!,0)),\"\")","v":""},{"$f":"IFERROR(INDEX(#REF!,MATCH(D$1,INDIRECT(\"'Doc_Database'!C\"&MATCH(D10,#REF!,0)+1&\":C10000\"),0)+MATCH(D10,#REF!,0)),\"\")","v":""},{"$f":"IFERROR(INDEX(#REF!,MATCH(E$1,INDIRECT(\"'Doc_Database'!C\"&MATCH(E10,#REF!,0)+1&\":C10000\"),0)+MATCH(E10,#REF!,0)),\"\")","v":""},{"$f":"IFERROR(INDEX(#REF!,MATCH(F$1,INDIRECT(\"'Doc_Database'!C\"&MATCH(F10,#REF!,0)+1&\":C10000\"),0)+MATCH(F10,#REF!,0)),\"\")","v":""}]
[{"$f":"IFERROR(INDEX(#REF!,MATCH(A$1,INDIRECT(\"'Doc_Database'!C\"&MATCH(A11,#REF!,0)+1&\":C10000\"),0)+MATCH(A11,#REF!,0)),\"\")","v":""},{"$f":"IFERROR(INDEX(#REF!,MATCH(B$1,INDIRECT(\"'Doc_Database'!C\"&MATCH(B11,#REF!,0)+1&\":C10000\"),0)+MATCH(B11,#REF!,0)),\"\")","v":""},{"$f":"IFERROR(INDEX(#REF!,MATCH(C$1,INDIRECT(\"'Doc_Database'!C\"&MATCH(C11,#REF!,0)+1&\":C10000\"),0)+MATCH(C11,#REF!,0)),\"\")","v":""},{"$f":"IFERROR(INDEX(#REF!,MATCH(D$1,INDIRECT(\"'Doc_Database'!C\"&MATCH(D11,#REF!,0)+1&\":C10000\"),0)+MATCH(D11,#REF!,0)),\"\")","v":""},{"$f":"IFERROR(INDEX(#REF!,MATCH(E$1,INDIRECT(\"'Doc_Database'!C\"&MATCH(E11,#REF!,0)+1&\":C10000\"),0)+MATCH(E11,#REF!,0)),\"\")","v":""},{"$f":"IFERROR(INDEX(#REF!,MATCH(F$1,INDIRECT(\"'Doc_Database'!C\"&MATCH(F11,#REF!,0)+1&\":C10000\"),0)+MATCH(F11,#REF!,0)),\"\")","v":""}]
[{"$f":"IFERROR(INDEX(#REF!,MATCH(A$1,INDIRECT(\"'Doc_Database'!C\"&MATCH(A12,#REF!,0)+1&\":C10000\"),0)+MATCH(A12,#REF!,0)),\"\")","v":""},{"$f":"IFERROR(INDEX(#REF!,MATCH(B$1,INDIRECT(\"'Doc_Database'!C\"&MATCH(B12,#REF!,0)+1&\":C10000\"),0)+MATCH(B12,#REF!,0)),\"\")","v":""},{"$f":"IFERROR(INDEX(#REF!,MATCH(C$1,INDIRECT(\"'Doc_Database'!C\"&MATCH(C12,#REF!,0)+1&\":C10000\"),0)+MATCH(C12,#REF!,0)),\"\")","v":""},{"$f":"IFERROR(INDEX(#REF!,MATCH(D$1,INDIRECT(\"'Doc_Database'!C\"&MATCH(D12,#REF!,0)+1&\":C10000\"),0)+MATCH(D12,#REF!,0)),\"\")","v":""},{"$f":"IFERROR(INDEX(#REF!,MATCH(E$1,INDIRECT(\"'Doc_Database'!C\"&MATCH(E12,#REF!,0)+1&\":C10000\"),0)+MATCH(E12,#REF!,0)),\"\")","v":""},{"$f":"IFERROR(INDEX(#REF!,MATCH(F$1,INDIRECT(\"'Doc_Database'!C\"&MATCH(F12,#REF!,0)+1&\":C10000\"),0)+MATCH(F12,#REF!,0)),\"\")","v":""}]
[{"$f":"IFERROR(INDEX(#REF!,MATCH(A$1,INDIRECT(\"'Doc_Database'!C\"&MATCH(A13,#REF!,0)+1&\":C10000\"),0)+MATCH(A13,#REF!,0)),\"\")","v":""},{"$f":"IFERROR(INDEX(#REF!,MATCH(B$1,INDIRECT(\"'Doc_Database'!C\"&MATCH(B13,#REF!,0)+1&\":C10000\"),0)+MATCH(B13,#REF!,0)),\"\")","v":""},{"$f":"IFERROR(INDEX(#REF!,MATCH(C$1,INDIRECT(\"'Doc_Database'!C\"&MATCH(C13,#REF!,0)+1&\":C10000\"),0)+MATCH(C13,#REF!,0)),\"\")","v":""},{"$f":"IFERROR(INDEX(#REF!,MATCH(D$1,INDIRECT(\"'Doc_Database'!C\"&MATCH(D13,#REF!,0)+1&\":C10000\"),0)+MATCH(D13,#REF!,0)),\"\")","v":""},{"$f":"IFERROR(INDEX(#REF!,MATCH(E$1,INDIRECT(\"'Doc_Database'!C\"&MATCH(E13,#REF!,0)+1&\":C10000\"),0)+MATCH(E13,#REF!,0)),\"\")","v":""},{"$f":"IFERROR(INDEX(#REF!,MATCH(F$1,INDIRECT(\"'Doc_Database'!C\"&MATCH(F13,#REF!,0)+1&\":C10000\"),0)+MATCH(F13,#REF!,0)),\"\")","v":""}]
[{"$f":"IFERROR(INDEX(#REF!,MATCH(A$1,INDIRECT(\"'Doc_Database'!C\"&MATCH(A14,#REF!,0)+1&\":C10000\"),0)+MATCH(A14,#REF!,0)),\"\")","v":""},{"$f":"IFERROR(INDEX(#REF!,MATCH(B$1,INDIRECT(\"'Doc_Database'!C\"&MATCH(B14,#REF!,0)+1&\":C10000\"),0)+MATCH(B14,#REF!,0)),\"\")","v":""},{"$f":"IFERROR(INDEX(#REF!,MATCH(C$1,INDIRECT(\"'Doc_Database'!C\"&MATCH(C14,#REF!,0)+1&\":C10000\"),0)+MATCH(C14,#REF!,0)),\"\")","v":""},{"$f":"IFERROR(INDEX(#REF!,MATCH(D$1,INDIRECT(\"'Doc_Database'!C\"&MATCH(D14,#REF!,0)+1&\":C10000\"),0)+MATCH(D14,#REF!,0)),\"\")","v":""},{"$f":"IFERROR(INDEX(#REF!,MATCH(E$1,INDIRECT(\"'Doc_Database'!C\"&MATCH(E14,#REF!,0)+1&\":C10000\"),0)+MATCH(E14,#REF!,0)),\"\")","v":""},{"$f":"IFERROR(INDEX(#REF!,MATCH(F$1,INDIRECT(\"'Doc_Database'!C\"&MATCH(F14,#REF!,0)+1&\":C10000\"),0)+MATCH(F14,#REF!,0)),\"\")","v":""}]
[{"$f":"IFERROR(INDEX(#REF!,MATCH(A$1,INDIRECT(\"'Doc_Database'!C\"&MATCH(A15,#REF!,0)+1&\":C10000\"),0)+MATCH(A15,#REF!,0)),\"\")","v":""},{"$f":"IFERROR(INDEX(#REF!,MATCH(B$1,INDIRECT(\"'Doc_Database'!C\"&MATCH(B15,#REF!,0)+1&\":C10000\"),0)+MATCH(B15,#REF!,0)),\"\")","v":""},{"$f":"IFERROR(INDEX(#REF!,MATCH(C$1,INDIRECT(\"'Doc_Database'!C\"&MATCH(C15,#REF!,0)+1&\":C10000\"),0)+MATCH(C15,#REF!,0)),\"\")","v":""},{"$f":"IFERROR(INDEX(#REF!,MATCH(D$1,INDIRECT(\"'Doc_Database'!C\"&MATCH(D15,#REF!,0)+1&\":C10000\"),0)+MATCH(D15,#REF!,0)),\"\")","v":""},{"$f":"IFERROR(INDEX(#REF!,MATCH(E$1,INDIRECT(\"'Doc_Database'!C\"&MATCH(E15,#REF!,0)+1&\":C10000\"),0)+MATCH(E15,#REF!,0)),\"\")","v":""},{"$f":"IFERROR(INDEX(#REF!,MATCH(F$1,INDIRECT(\"'Doc_Database'!C\"&MATCH(F15,#REF!,0)+1&\":C10000\"),0)+MATCH(F15,#REF!,0)),\"\")","v":""}]
[{"$f":"IFERROR(INDEX(#REF!,MATCH(A$1,INDIRECT(\"'Doc_Database'!C\"&MATCH(A16,#REF!,0)+1&\":C10000\"),0)+MATCH(A16,#REF!,0)),\"\")","v":""},{"$f":"IFERROR(INDEX(#REF!,MATCH(B$1,INDIRECT(\"'Doc_Database'!C\"&MATCH(B16,#REF!,0)+1&\":C10000\"),0)+MATCH(B16,#REF!,0)),\"\")","v":""},{"$f":"IFERROR(INDEX(#REF!,MATCH(C$1,INDIRECT(\"'Doc_Database'!C\"&MATCH(C16,#REF!,0)+1&\":C10000\"),0)+MATCH(C16,#REF!,0)),\"\")","v":""},{"$f":"IFERROR(INDEX(#REF!,MATCH(D$1,INDIRECT(\"'Doc_Database'!C\"&MATCH(D16,#REF!,0)+1&\":C10000\"),0)+MATCH(D16,#REF!,0)),\"\")","v":""},{"$f":"IFERROR(INDEX(#REF!,MATCH(E$1,INDIRECT(\"'Doc_Database'!C\"&MATCH(E16,#REF!,0)+1&\":C10000\"),0)+MATCH(E16,#REF!,0)),\"\")","v":""},{"$f":"IFERROR(INDEX(#REF!,MATCH(F$1,INDIRECT(\"'Doc_Database'!C\"&MATCH(F16,#REF!,0)+1&\":C10000\"),0)+MATCH(F16,#REF!,0)),\"\")","v":""}]
[{"$f":"IFERROR(INDEX(#REF!,MATCH(A$1,INDIRECT(\"'Doc_Database'!C\"&MATCH(A17,#REF!,0)+1&\":C10000\"),0)+MATCH(A17,#REF!,0)),\"\")","v":""},{"$f":"IFERROR(INDEX(#REF!,MATCH(B$1,INDIRECT(\"'Doc_Database'!C\"&MATCH(B17,#REF!,0)+1&\":C10000\"),0)+MATCH(B17,#REF!,0)),\"\")","v":""},{"$f":"IFERROR(INDEX(#REF!,MATCH(C$1,INDIRECT(\"'Doc_Database'!C\"&MATCH(C17,#REF!,0)+1&\":C10000\"),0)+MATCH(C17,#REF!,0)),\"\")","v":""},{"$f":"IFERROR(INDEX(#REF!,MATCH(D$1,INDIRECT(\"'Doc_Database'!C\"&MATCH(D17,#REF!,0)+1&\":C10000\"),0)+MATCH(D17,#REF!,0)),\"\")","v":""},{"$f":"IFERROR(INDEX(#REF!,MATCH(E$1,INDIRECT(\"'Doc_Database'!C\"&MATCH(E17,#REF!,0)+1&\":C10000\"),0)+MATCH(E17,#REF!,0)),\"\")","v":""},{"$f":"IFERROR(INDEX(#REF!,MATCH(F$1,INDIRECT(\"'Doc_Database'!C\"&MATCH(F17,#REF!,0)+1&\":C10000\"),0)+MATCH(F17,#REF!,0)),\"\")","v":""}]
[{"$f":"IFERROR(INDEX(#REF!,MATCH(A$1,INDIRECT(\"'Doc_Database'!C\"&MATCH(A18,#REF!,0)+1&\":C10000\"),0)+MATCH(A18,#REF!,0)),\"\")","v":""},{"$f":"IFERROR(INDEX(#REF!,MATCH(B$1,INDIRECT(\"'Doc_Database'!C\"&MATCH(B18,#REF!,0)+1&\":C10000\"),0)+MATCH(B18,#REF!,0)),\"\")","v":""},{"$f":"IFERROR(INDEX(#REF!,MATCH(C$1,INDIRECT(\"'Doc_Database'!C\"&MATCH(C18,#REF!,0)+1&\":C10000\"),0)+MATCH(C18,#REF!,0)),\"\")","v":""},{"$f":"IFERROR(INDEX(#REF!,MATCH(D$1,INDIRECT(\"'Doc_Database'!C\"&MATCH(D18,#REF!,0)+1&\":C10000\"),0)+MATCH(D18,#REF!,0)),\"\")","v":""},{"$f":"IFERROR(INDEX(#REF!,MATCH(E$1,INDIRECT(\"'Doc_Database'!C\"&MATCH(E18,#REF!,0)+1&\":C10000\"),0)+MATCH(E18,#REF!,0)),\"\")","v":""},{"$f":"IFERROR(INDEX(#REF!,MATCH(F$1,INDIRECT(\"'Doc_Database'!C\"&MATCH(F18,#REF!,0)+1&\":C10000\"),0)+MATCH(F18,#REF!,0)),\"\")","v":""}]
[{"$f":"IFERROR(INDEX(#REF!,MATCH(A$1,INDIRECT(\"'Doc_Database'!C\"&MATCH(A19,#REF!,0)+1&\":C10000\"),0)+MATCH(A19,#REF!,0)),\"\")","v":""},{"$f":"IFERROR(INDEX(#REF!,MATCH(B$1,INDIRECT(\"'Doc_Database'!C\"&MATCH(B19,#REF!,0)+1&\":C10000\"),0)+MATCH(B19,#REF!,0)),\"\")","v":""},{"$f":"IFERROR(INDEX(#REF!,MATCH(C$1,INDIRECT(\"'Doc_Database'!C\"&MATCH(C19,#REF!,0)+1&\":C10000\"),0)+MATCH(C19,#REF!,0)),\"\")","v":""},{"$f":"IFERROR(INDEX(#REF!,MATCH(D$1,INDIRECT(\"'Doc_Database'!C\"&MATCH(D19,#REF!,0)+1&\":C10000\"),0)+MATCH(D19,#REF!,0)),\"\")","v":""},{"$f":"IFERROR(INDEX(#REF!,MATCH(E$1,INDIRECT(\"'Doc_Database'!C\"&MATCH(E19,#REF!,0)+1&\":C10000\"),0)+MATCH(E19,#REF!,0)),\"\")","v":""},{"$f":"IFERROR(INDEX(#REF!,MATCH(F$1,INDIRECT(\"'Doc_Database'!C\"&MATCH(F19,#REF!,0)+1&\":C10000\"),0)+MATCH(F19,#REF!,0)),\"\")","v":""}]
[{"$f":"IFERROR(INDEX(#REF!,MATCH(A$1,INDIRECT(\"'Doc_Database'!C\"&MATCH(A20,#REF!,0)+1&\":C10000\"),0)+MATCH(A20,#REF!,0)),\"\")","v":""},{"$f":"IFERROR(INDEX(#REF!,MATCH(B$1,INDIRECT(\"'Doc_Database'!C\"&MATCH(B20,#REF!,0)+1&\":C10000\"),0)+MATCH(B20,#REF!,0)),\"\")","v":""},{"$f":"IFERROR(INDEX(#REF!,MATCH(C$1,INDIRECT(\"'Doc_Database'!C\"&MATCH(C20,#REF!,0)+1&\":C10000\"),0)+MATCH(C20,#REF!,0)),\"\")","v":""},{"$f":"IFERROR(INDEX(#REF!,MATCH(D$1,INDIRECT(\"'Doc_Database'!C\"&MATCH(D20,#REF!,0)+1&\":C10000\"),0)+MATCH(D20,#REF!,0)),\"\")","v":""},{"$f":"IFERROR(INDEX(#REF!,MATCH(E$1,INDIRECT(\"'Doc_Database'!C\"&MATCH(E20,#REF!,0)+1&\":C10000\"),0)+MATCH(E20,#REF!,0)),\"\")","v":""},{"$f":"IFERROR(INDEX(#REF!,MATCH(F$1,INDIRECT(\"'Doc_Database'!C\"&MATCH(F20,#REF!,0)+1&\":C10000\"),0)+MATCH(F20,#REF!,0)),\"\")","v":""}]
[{"$f":"IFERROR(INDEX(#REF!,MATCH(A$1,INDIRECT(\"'Doc_Database'!C\"&MATCH(A21,#REF!,0)+1&\":C10000\"),0)+MATCH(A21,#REF!,0)),\"\")","v":""},{"$f":"IFERROR(INDEX(#REF!,MATCH(B$1,INDIRECT(\"'Doc_Database'!C\"&MATCH(B21,#REF!,0)+1&\":C10000\"),0)+MATCH(B21,#REF!,0)),\"\")","v":""},{"$f":"IFERROR(INDEX(#REF!,MATCH(C$1,INDIRECT(\"'Doc_Database'!C\"&MATCH(C21,#REF!,0)+1&\":C10000\"),0)+MATCH(C21,#REF!,0)),\"\")","v":""},{"$f":"IFERROR(INDEX(#REF!,MATCH(D$1,INDIRECT(\"'Doc_Database'!C\"&MATCH(D21,#REF!,0)+1&\":C10000\"),0)+MATCH(D21,#REF!,0)),\"\")","v":""},{"$f":"IFERROR(INDEX(#REF!,MATCH(E$1,INDIRECT(\"'Doc_Database'!C\"&MATCH(E21,#REF!,0)+1&\":C10000\"),0)+MATCH(E21,#REF!,0)),\"\")","v":""},{"$f":"IFERROR(INDEX(#REF!,MATCH(F$1,INDIRECT(\"'Doc_Database'!C\"&MATCH(F21,#REF!,0)+1&\":C10000\"),0)+MATCH(F21,#REF!,0)),\"\")","v":""}]
[{"$f":"IFERROR(INDEX(#REF!,MATCH(A$1,INDIRECT(\"'Doc_Database'!C\"&MATCH(A22,#REF!,0)+1&\":C10000\"),0)+MATCH(A22,#REF!,0)),\"\")","v":""},{"$f":"IFERROR(INDEX(#REF!,MATCH(B$1,INDIRECT(\"'Doc_Database'!C\"&MATCH(B22,#REF!,0)+1&\":C10000\"),0)+MATCH(B22,#REF!,0)),\"\")","v":""},{"$f":"IFERROR(INDEX(#REF!,MATCH(C$1,INDIRECT(\"'Doc_Database'!C\"&MATCH(C22,#REF!,0)+1&\":C10000\"),0)+MATCH(C22,#REF!,0)),\"\")","v":""},{"$f":"IFERROR(INDEX(#REF!,MATCH(D$1,INDIRECT(\"'Doc_Database'!C\"&MATCH(D22,#REF!,0)+1&\":C10000\"),0)+MATCH(D22,#REF!,0)),\"\")","v":""},{"$f":"IFERROR(INDEX(#REF!,MATCH(E$1,INDIRECT(\"'Doc_Database'!C\"&MATCH(E22,#REF!,0)+1&\":C10000\"),0)+MATCH(E22,#REF!,0)),\"\")","v":""},{"$f":"IFERROR(INDEX(#REF!,MATCH(F$1,INDIRECT(\"'Doc_Database'!C\"&MATCH(F22,#REF!,0)+1&\":C10000\"),0)+MATCH(F22,#REF!,0)),\"\")","v":""}]
[{"$f":"IFERROR(INDEX(#REF!,MATCH(A$1,INDIRECT(\"'Doc_Database'!C\"&MATCH(A23,#REF!,0)+1&\":C10000\"),0)+MATCH(A23,#REF!,0)),\"\")","v":""},{"$f":"IFERROR(INDEX(#REF!,MATCH(B$1,INDIRECT(\"'Doc_Database'!C\"&MATCH(B23,#REF!,0)+1&\":C10000\"),0)+MATCH(B23,#REF!,0)),\"\")","v":""},{"$f":"IFERROR(INDEX(#REF!,MATCH(C$1,INDIRECT(\"'Doc_Database'!C\"&MATCH(C23,#REF!,0)+1&\":C10000\"),0)+MATCH(C23,#REF!,0)),\"\")","v":""},{"$f":"IFERROR(INDEX(#REF!,MATCH(D$1,INDIRECT(\"'Doc_Database'!C\"&MATCH(D23,#REF!,0)+1&\":C10000\"),0)+MATCH(D23,#REF!,0)),\"\")","v":""},{"$f":"IFERROR(INDEX(#REF!,MATCH(E$1,INDIRECT(\"'Doc_Database'!C\"&MATCH(E23,#REF!,0)+1&\":C10000\"),0)+MATCH(E23,#REF!,0)),\"\")","v":""},{"$f":"IFERROR(INDEX(#REF!,MATCH(F$1,INDIRECT(\"'Doc_Database'!C\"&MATCH(F23,#REF!,0)+1&\":C10000\"),0)+MATCH(F23,#REF!,0)),\"\")","v":""}]
[{"$f":"IFERROR(INDEX(#REF!,MATCH(A$1,INDIRECT(\"'Doc_Database'!C\"&MATCH(A24,#REF!,0)+1&\":C10000\"),0)+MATCH(A24,#REF!,0)),\"\")","v":""},{"$f":"IFERROR(INDEX(#REF!,MATCH(B$1,INDIRECT(\"'Doc_Database'!C\"&MATCH(B24,#REF!,0)+1&\":C10000\"),0)+MATCH(B24,#REF!,0)),\"\")","v":""},{"$f":"IFERROR(INDEX(#REF!,MATCH(C$1,INDIRECT(\"'Doc_Database'!C\"&MATCH(C24,#REF!,0)+1&\":C10000\"),0)+MATCH(C24,#REF!,0)),\"\")","v":""},{"$f":"IFERROR(INDEX(#REF!,MATCH(D$1,INDIRECT(\"'Doc_Database'!C\"&MATCH(D24,#REF!,0)+1&\":C10000\"),0)+MATCH(D24,#REF!,0)),\"\")","v":""},{"$f":"IFERROR(INDEX(#REF!,MATCH(E$1,INDIRECT(\"'Doc_Database'!C\"&MATCH(E24,#REF!,0)+1&\":C10000\"),0)+MATCH(E24,#REF!,0)),\"\")","v":""},{"$f":"IFERROR(INDEX(#REF!,MATCH(F$1,INDIRECT(\"'Doc_Database'!C\"&MATCH(F24,#REF!,0)+1&\":C10000\"),0)+MATCH(F24,#REF!,0)),\"\")","v":""}]
[{"$f":"IFERROR(INDEX(#REF!,MATCH(A$1,INDIRECT(\"'Doc_Database'!C\"&MATCH(A25,#REF!,0)+1&\":C10000\"),0)+MATCH(A25,#REF!,0)),\"\")","v":""},{"$f":"IFERROR(INDEX(#REF!,MATCH(B$1,INDIRECT(\"'Doc_Database'!C\"&MATCH(B25,#REF!,0)+1&\":C10000\"),0)+MATCH(B25,#REF!,0)),\"\")","v":""},{"$f":"IFERROR(INDEX(#REF!,MATCH(C$1,INDIRECT(\"'Doc_Database'!C\"&MATCH(C25,#REF!,0)+1&\":C10000\"),0)+MATCH(C25,#REF!,0)),\"\")","v":""},{"$f":"IFERROR(INDEX(#REF!,MATCH(D$1,INDIRECT(\"'Doc_Database'!C\"&MATCH(D25,#REF!,0)+1&\":C10000\"),0)+MATCH(D25,#REF!,0)),\"\")","v":""},{"$f":"IFERROR(INDEX(#REF!,MATCH(E$1,INDIRECT(\"'Doc_Database'!C\"&MATCH(E25,#REF!,0)+1&\":C10000\"),0)+MATCH(E25,#REF!,0)),\"\")","v":""},{"$f":"IFERROR(INDEX(#REF!,MATCH(F$1,INDIRECT(\"'Doc_Database'!C\"&MATCH(F25,#REF!,0)+1&\":C10000\"),0)+MATCH(F25,#REF!,0)),\"\")","v":""}]
[{"$f":"IFERROR(INDEX(#REF!,MATCH(A$1,INDIRECT(\"'Doc_Database'!C\"&MATCH(A26,#REF!,0)+1&\":C10000\"),0)+MATCH(A26,#REF!,0)),\"\")","v":""},{"$f":"IFERROR(INDEX(#REF!,MATCH(B$1,INDIRECT(\"'Doc_Database'!C\"&MATCH(B26,#REF!,0)+1&\":C10000\"),0)+MATCH(B26,#REF!,0)),\"\")","v":""},{"$f":"IFERROR(INDEX(#REF!,MATCH(C$1,INDIRECT(\"'Doc_Database'!C\"&MATCH(C26,#REF!,0)+1&\":C10000\"),0)+MATCH(C26,#REF!,0)),\"\")","v":""},{"$f":"IFERROR(INDEX(#REF!,MATCH(D$1,INDIRECT(\"'Doc_Database'!C\"&MATCH(D26,#REF!,0)+1&\":C10000\"),0)+MATCH(D26,#REF!,0)),\"\")","v":""},{"$f":"IFERROR(INDEX(#REF!,MATCH(E$1,INDIRECT(\"'Doc_Database'!C\"&MATCH(E26,#REF!,0)+1&\":C10000\"),0)+MATCH(E26,#REF!,0)),\"\")","v":""},{"$f":"IFERROR(INDEX(#REF!,MATCH(F$1,INDIRECT(\"'Doc_Database'!C\"&MATCH(F26,#REF!,0)+1&\":C10000\"),0)+MATCH(F26,#REF!,0)),\"\")","v":""}]
[{"$f":"IFERROR(INDEX(#REF!,MATCH(A$1,INDIRECT(\"'Doc_Database'!C\"&MATCH(A27,#REF!,0)+1&\":C10000\"),0)+MATCH(A27,#REF!,0)),\"\")","v":""},{"$f":"IFERROR(INDEX(#REF!,MATCH(B$1,INDIRECT(\"'Doc_Database'!C\"&MATCH(B27,#REF!,0)+1&\":C10000\"),0)+MATCH(B27,#REF!,0)),\"\")","v":""},{"$f":"IFERROR(INDEX(#REF!,MATCH(C$1,INDIRECT(\"'Doc_Database'!C\"&MATCH(C27,#REF!,0)+1&\":C10000\"),0)+MATCH(C27,#REF!,0)),\"\")","v":""},{"$f":"IFERROR(INDEX(#REF!,MATCH(D$1,INDIRECT(\"'Doc_Database'!C\"&MATCH(D27,#REF!,0)+1&\":C10000\"),0)+MATCH(D27,#REF!,0)),\"\")","v":""},{"$f":"IFERROR(INDEX(#REF!,MATCH(E$1,INDIRECT(\"'Doc_Database'!C\"&MATCH(E27,#REF!,0)+1&\":C10000\"),0)+MATCH(E27,#REF!,0)),\"\")","v":""},{"$f":"IFERROR(INDEX(#REF!,MATCH(F$1,INDIRECT(\"'Doc_Database'!C\"&MATCH(F27,#REF!,0)+1&\":C10000\"),0)+MATCH(F27,#REF!,0)),\"\")","v":""}]
[{"$f":"IFERROR(INDEX(#REF!,MATCH(A$1,INDIRECT(\"'Doc_Database'!C\"&MATCH(A28,#REF!,0)+1&\":C10000\"),0)+MATCH(A28,#REF!,0)),\"\")","v":""},{"$f":"IFERROR(INDEX(#REF!,MATCH(B$1,INDIRECT(\"'Doc_Database'!C\"&MATCH(B28,#REF!,0)+1&\":C10000\"),0)+MATCH(B28,#REF!,0)),\"\")","v":""},{"$f":"IFERROR(INDEX(#REF!,MATCH(C$1,INDIRECT(\"'Doc_Database'!C\"&MATCH(C28,#REF!,0)+1&\":C10000\"),0)+MATCH(C28,#REF!,0)),\"\")","v":""},{"$f":"IFERROR(INDEX(#REF!,MATCH(D$1,INDIRECT(\"'Doc_Database'!C\"&MATCH(D28,#REF!,0)+1&\":C10000\"),0)+MATCH(D28,#REF!,0)),\"\")","v":""},{"$f":"IFERROR(INDEX(#REF!,MATCH(E$1,INDIRECT(\"'Doc_Database'!C\"&MATCH(E28,#REF!,0)+1&\":C10000\"),0)+MATCH(E28,#REF!,0)),\"\")","v":""},{"$f":"IFERROR(INDEX(#REF!,MATCH(F$1,INDIRECT(\"'Doc_Database'!C\"&MATCH(F28,#REF!,0)+1&\":C10000\"),0)+MATCH(F28,#REF!,0)),\"\")","v":""}]
[{"$f":"IFERROR(INDEX(#REF!,MATCH(A$1,INDIRECT(\"'Doc_Database'!C\"&MATCH(A29,#REF!,0)+1&\":C10000\"),0)+MATCH(A29,#REF!,0)),\"\")","v":""},{"$f":"IFERROR(INDEX(#REF!,MATCH(B$1,INDIRECT(\"'Doc_Database'!C\"&MATCH(B29,#REF!,0)+1&\":C10000\"),0)+MATCH(B29,#REF!,0)),\"\")","v":""},{"$f":"IFERROR(INDEX(#REF!,MATCH(C$1,INDIRECT(\"'Doc_Database'!C\"&MATCH(C29,#REF!,0)+1&\":C10000\"),0)+MATCH(C29,#REF!,0)),\"\")","v":""},{"$f":"IFERROR(INDEX(#REF!,MATCH(D$1,INDIRECT(\"'Doc_Database'!C\"&MATCH(D29,#REF!,0)+1&\":C10000\"),0)+MATCH(D29,#REF!,0)),\"\")","v":""},{"$f":"IFERROR(INDEX(#REF!,MATCH(E$1,INDIRECT(\"'Doc_Database'!C\"&MATCH(E29,#REF!,0)+1&\":C10000\"),0)+MATCH(E29,#REF!,0)),\"\")","v":""},{"$f":"IFERROR(INDEX(#REF!,MATCH(F$1,INDIRECT(\"'Doc_Database'!C\"&MATCH(F29,#REF!,0)+1&\":C10000\"),0)+MATCH(F29,#REF!,0)),\"\")","v":""}]
[{"$f":"IFERROR(INDEX(#REF!,MATCH(A$1,INDIRECT(\"'Doc_Database'!C\"&MATCH(A30,#REF!,0)+1&\":C10000\"),0)+MATCH(A30,#REF!,0)),\"\")","v":""},{"$f":"IFERROR(INDEX(#REF!,MATCH(B$1,INDIRECT(\"'Doc_Database'!C\"&MATCH(B30,#REF!,0)+1&\":C10000\"),0)+MATCH(B30,#REF!,0)),\"\")","v":""},{"$f":"IFERROR(INDEX(#REF!,MATCH(C$1,INDIRECT(\"'Doc_Database'!C\"&MATCH(C30,#REF!,0)+1&\":C10000\"),0)+MATCH(C30,#REF!,0)),\"\")","v":""},{"$f":"IFERROR(INDEX(#REF!,MATCH(D$1,INDIRECT(\"'Doc_Database'!C\"&MATCH(D30,#REF!,0)+1&\":C10000\"),0)+MATCH(D30,#REF!,0)),\"\")","v":""},{"$f":"IFERROR(INDEX(#REF!,MATCH(E$1,INDIRECT(\"'Doc_Database'!C\"&MATCH(E30,#REF!,0)+1&\":C10000\"),0)+MATCH(E30,#REF!,0)),\"\")","v":""},{"$f":"IFERROR(INDEX(#REF!,MATCH(F$1,INDIRECT(\"'Doc_Database'!C\"&MATCH(F30,#REF!,0)+1&\":C10000\"),0)+MATCH(F30,#REF!,0)),\"\")","v":""}]
[{"$f":"IFERROR(INDEX(#REF!,MATCH(A$1,INDIRECT(\"'Doc_Database'!C\"&MATCH(A31,#REF!,0)+1&\":C10000\"),0)+MATCH(A31,#REF!,0)),\"\")","v":""},{"$f":"IFERROR(INDEX(#REF!,MATCH(B$1,INDIRECT(\"'Doc_Database'!C\"&MATCH(B31,#REF!,0)+1&\":C10000\"),0)+MATCH(B31,#REF!,0)),\"\")","v":""},{"$f":"IFERROR(INDEX(#REF!,MATCH(C$1,INDIRECT(\"'Doc_Database'!C\"&MATCH(C31,#REF!,0)+1&\":C10000\"),0)+MATCH(C31,#REF!,0)),\"\")","v":""},{"$f":"IFERROR(INDEX(#REF!,MATCH(D$1,INDIRECT(\"'Doc_Database'!C\"&MATCH(D31,#REF!,0)+1&\":C10000\"),0)+MATCH(D31,#REF!,0)),\"\")","v":""},{"$f":"IFERROR(INDEX(#REF!,MATCH(E$1,INDIRECT(\"'Doc_Database'!C\"&MATCH(E31,#REF!,0)+1&\":C10000\"),0)+MATCH(E31,#REF!,0)),\"\")","v":""},{"$f":"IFERROR(INDEX(#REF!,MATCH(F$1,INDIRECT(\"'Doc_Database'!C\"&MATCH(F31,#REF!,0)+1&\":C10000\"),0)+MATCH(F31,#REF!,0)),\"\")","v":""}]
[{"$f":"IFERROR(INDEX(#REF!,MATCH(A$1,INDIRECT(\"'Doc_Database'!C\"&MATCH(A32,#REF!,0)+1&\":C10000\"),0)+MATCH(A32,#REF!,0)),\"\")","v":""},{"$f":"IFERROR(INDEX(#REF!,MATCH(B$1,INDIRECT(\"'Doc_Database'!C\"&MATCH(B32,#REF!,0)+1&\":C10000\"),0)+MATCH(B32,#REF!,0)),\"\")","v":""},{"$f":"IFERROR(INDEX(#REF!,MATCH(C$1,INDIRECT(\"'Doc_Database'!C\"&MATCH(C32,#REF!,0)+1&\":C10000\"),0)+MATCH(C32,#REF!,0)),\"\")","v":""},{"$f":"IFERROR(INDEX(#REF!,MATCH(D$1,INDIRECT(\"'Doc_Database'!C\"&MATCH(D32,#REF!,0)+1&\":C10000\"),0)+MATCH(D32,#REF!,0)),\"\")","v":""},{"$f":"IFERROR(INDEX(#REF!,MATCH(E$1,INDIRECT(\"'Doc_Database'!C\"&MATCH(E32,#REF!,0)+1&\":C10000\"),0)+MATCH(E32,#REF!,0)),\"\")","v":""},{"$f":"IFERROR(INDEX(#REF!,MATCH(F$1,INDIRECT(\"'Doc_Database'!C\"&MATCH(F32,#REF!,0)+1&\":C10000\"),0)+MATCH(F32,#REF!,0)),\"\")","v":""}]
[{"$f":"IFERROR(INDEX(#REF!,MATCH(A$1,INDIRECT(\"'Doc_Database'!C\"&MATCH(A33,#REF!,0)+1&\":C10000\"),0)+MATCH(A33,#REF!,0)),\"\")","v":""},{"$f":"IFERROR(INDEX(#REF!,MATCH(B$1,INDIRECT(\"'Doc_Database'!C\"&MATCH(B33,#REF!,0)+1&\":C10000\"),0)+MATCH(B33,#REF!,0)),\"\")","v":""},{"$f":"IFERROR(INDEX(#REF!,MATCH(C$1,INDIRECT(\"'Doc_Database'!C\"&MATCH(C33,#REF!,0)+1&\":C10000\"),0)+MATCH(C33,#REF!,0)),\"\")","v":""},{"$f":"IFERROR(INDEX(#REF!,MATCH(D$1,INDIRECT(\"'Doc_Database'!C\"&MATCH(D33,#REF!,0)+1&\":C10000\"),0)+MATCH(D33,#REF!,0)),\"\")","v":""},{"$f":"IFERROR(INDEX(#REF!,MATCH(E$1,INDIRECT(\"'Doc_Database'!C\"&MATCH(E33,#REF!,0)+1&\":C10000\"),0)+MATCH(E33,#REF!,0)),\"\")","v":""},{"$f":"IFERROR(INDEX(#REF!,MATCH(F$1,INDIRECT(\"'Doc_Database'!C\"&MATCH(F33,#REF!,0)+1&\":C10000\"),0)+MATCH(F33,#REF!,0)),\"\")","v":""}]
[{"$f":"IFERROR(INDEX(#REF!,MATCH(A$1,INDIRECT(\"'Doc_Database'!C\"&MATCH(A34,#REF!,0)+1&\":C10000\"),0)+MATCH(A34,#REF!,0)),\"\")","v":""},{"$f":"IFERROR(INDEX(#REF!,MATCH(B$1,INDIRECT(\"'Doc_Database'!C\"&MATCH(B34,#REF!,0)+1&\":C10000\"),0)+MATCH(B34,#REF!,0)),\"\")","v":""},{"$f":"IFERROR(INDEX(#REF!,MATCH(C$1,INDIRECT(\"'Doc_Database'!C\"&MATCH(C34,#REF!,0)+1&\":C10000\"),0)+MATCH(C34,#REF!,0)),\"\")","v":""},{"$f":"IFERROR(INDEX(#REF!,MATCH(D$1,INDIRECT(\"'Doc_Database'!C\"&MATCH(D34,#REF!,0)+1&\":C10000\"),0)+MATCH(D34,#REF!,0)),\"\")","v":""},{"$f":"IFERROR(INDEX(#REF!,MATCH(E$1,INDIRECT(\"'Doc_Database'!C\"&MATCH(E34,#REF!,0)+1&\":C10000\"),0)+MATCH(E34,#REF!,0)),\"\")","v":""},{"$f":"IFERROR(INDEX(#REF!,MATCH(F$1,INDIRECT(\"'Doc_Database'!C\"&MATCH(F34,#REF!,0)+1&\":C10000\"),0)+MATCH(F34,#REF!,0)),\"\")","v":""}]
[{"$f":"IFERROR(INDEX(#REF!,MATCH(A$1,INDIRECT(\"'Doc_Database'!C\"&MATCH(A35,#REF!,0)+1&\":C10000\"),0)+MATCH(A35,#REF!,0)),\"\")","v":""},{"$f":"IFERROR(INDEX(#REF!,MATCH(B$1,INDIRECT(\"'Doc_Database'!C\"&MATCH(B35,#REF!,0)+1&\":C10000\"),0)+MATCH(B35,#REF!,0)),\"\")","v":""},{"$f":"IFERROR(INDEX(#REF!,MATCH(C$1,INDIRECT(\"'Doc_Database'!C\"&MATCH(C35,#REF!,0)+1&\":C10000\"),0)+MATCH(C35,#REF!,0)),\"\")","v":""},{"$f":"IFERROR(INDEX(#REF!,MATCH(D$1,INDIRECT(\"'Doc_Database'!C\"&MATCH(D35,#REF!,0)+1&\":C10000\"),0)+MATCH(D35,#REF!,0)),\"\")","v":""},{"$f":"IFERROR(INDEX(#REF!,MATCH(E$1,INDIRECT(\"'Doc_Database'!C\"&MATCH(E35,#REF!,0)+1&\":C10000\"),0)+MATCH(E35,#REF!,0)),\"\")","v":""},{"$f":"IFERROR(INDEX(#REF!,MATCH(F$1,INDIRECT(\"'Doc_Database'!C\"&MATCH(F35,#REF!,0)+1&\":C10000\"),0)+MATCH(F35,#REF!,0)),\"\")","v":""}]
[{"$f":"IFERROR(INDEX(#REF!,MATCH(A$1,INDIRECT(\"'Doc_Database'!C\"&MATCH(A36,#REF!,0)+1&\":C10000\"),0)+MATCH(A36,#REF!,0)),\"\")","v":""},{"$f":"IFERROR(INDEX(#REF!,MATCH(B$1,INDIRECT(\"'Doc_Database'!C\"&MATCH(B36,#REF!,0)+1&\":C10000\"),0)+MATCH(B36,#REF!,0)),\"\")","v":""},{"$f":"IFERROR(INDEX(#REF!,MATCH(C$1,INDIRECT(\"'Doc_Database'!C\"&MATCH(C36,#REF!,0)+1&\":C10000\"),0)+MATCH(C36,#REF!,0)),\"\")","v":""},{"$f":"IFERROR(INDEX(#REF!,MATCH(D$1,INDIRECT(\"'Doc_Database'!C\"&MATCH(D36,#REF!,0)+1&\":C10000\"),0)+MATCH(D36,#REF!,0)),\"\")","v":""},{"$f":"IFERROR(INDEX(#REF!,MATCH(E$1,INDIRECT(\"'Doc_Database'!C\"&MATCH(E36,#REF!,0)+1&\":C10000\"),0)+MATCH(E36,#REF!,0)),\"\")","v":""},{"$f":"IFERROR(INDEX(#REF!,MATCH(F$1,INDIRECT(\"'Doc_Database'!C\"&MATCH(F36,#REF!,0)+1&\":C10000\"),0)+MATCH(F36,#REF!,0)),\"\")","v":""}]
[{"$f":"IFERROR(INDEX(#REF!,MATCH(A$1,INDIRECT(\"'Doc_Database'!C\"&MATCH(A37,#REF!,0)+1&\":C10000\"),0)+MATCH(A37,#REF!,0)),\"\")","v":""},{"$f":"IFERROR(INDEX(#REF!,MATCH(B$1,INDIRECT(\"'Doc_Database'!C\"&MATCH(B37,#REF!,0)+1&\":C10000\"),0)+MATCH(B37,#REF!,0)),\"\")","v":""},{"$f":"IFERROR(INDEX(#REF!,MATCH(C$1,INDIRECT(\"'Doc_Database'!C\"&MATCH(C37,#REF!,0)+1&\":C10000\"),0)+MATCH(C37,#REF!,0)),\"\")","v":""},{"$f":"IFERROR(INDEX(#REF!,MATCH(D$1,INDIRECT(\"'Doc_Database'!C\"&MATCH(D37,#REF!,0)+1&\":C10000\"),0)+MATCH(D37,#REF!,0)),\"\")","v":""},{"$f":"IFERROR(INDEX(#REF!,MATCH(E$1,INDIRECT(\"'Doc_Database'!C\"&MATCH(E37,#REF!,0)+1&\":C10000\"),0)+MATCH(E37,#REF!,0)),\"\")","v":""},{"$f":"IFERROR(INDEX(#REF!,MATCH(F$1,INDIRECT(\"'Doc_Database'!C\"&MATCH(F37,#REF!,0)+1&\":C10000\"),0)+MATCH(F37,#REF!,0)),\"\")","v":""}]
[{"$f":"IFERROR(INDEX(#REF!,MATCH(A$1,INDIRECT(\"'Doc_Database'!C\"&MATCH(A38,#REF!,0)+1&\":C10000\"),0)+MATCH(A38,#REF!,0)),\"\")","v":""},{"$f":"IFERROR(INDEX(#REF!,MATCH(B$1,INDIRECT(\"'Doc_Database'!C\"&MATCH(B38,#REF!,0)+1&\":C10000\"),0)+MATCH(B38,#REF!,0)),\"\")","v":""},{"$f":"IFERROR(INDEX(#REF!,MATCH(C$1,INDIRECT(\"'Doc_Database'!C\"&MATCH(C38,#REF!,0)+1&\":C10000\"),0)+MATCH(C38,#REF!,0)),\"\")","v":""},{"$f":"IFERROR(INDEX(#REF!,MATCH(D$1,INDIRECT(\"'Doc_Database'!C\"&MATCH(D38,#REF!,0)+1&\":C10000\"),0)+MATCH(D38,#REF!,0)),\"\")","v":""},{"$f":"IFERROR(INDEX(#REF!,MATCH(E$1,INDIRECT(\"'Doc_Database'!C\"&MATCH(E38,#REF!,0)+1&\":C10000\"),0)+MATCH(E38,#REF!,0)),\"\")","v":""},{"$f":"IFERROR(INDEX(#REF!,MATCH(F$1,INDIRECT(\"'Doc_Database'!C\"&MATCH(F38,#REF!,0)+1&\":C10000\"),0)+MATCH(F38,#REF!,0)),\"\")","v":""}]
[{"$f":"IFERROR(INDEX(#REF!,MATCH(A$1,INDIRECT(\"'Doc_Database'!C\"&MATCH(A39,#REF!,0)+1&\":C10000\"),0)+MATCH(A39,#REF!,0)),\"\")","v":""},{"$f":"IFERROR(INDEX(#REF!,MATCH(B$1,INDIRECT(\"'Doc_Database'!C\"&MATCH(B39,#REF!,0)+1&\":C10000\"),0)+MATCH(B39,#REF!,0)),\"\")","v":""},{"$f":"IFERROR(INDEX(#REF!,MATCH(C$1,INDIRECT(\"'Doc_Database'!C\"&MATCH(C39,#REF!,0)+1&\":C10000\"),0)+MATCH(C39,#REF!,0)),\"\")","v":""},{"$f":"IFERROR(INDEX(#REF!,MATCH(D$1,INDIRECT(\"'Doc_Database'!C\"&MATCH(D39,#REF!,0)+1&\":C10000\"),0)+MATCH(D39,#REF!,0)),\"\")","v":""},{"$f":"IFERROR(INDEX(#REF!,MATCH(E$1,INDIRECT(\"'Doc_Database'!C\"&MATCH(E39,#REF!,0)+1&\":C10000\"),0)+MATCH(E39,#REF!,0)),\"\")","v":""},{"$f":"IFERROR(INDEX(#REF!,MATCH(F$1,INDIRECT(\"'Doc_Database'!C\"&MATCH(F39,#REF!,0)+1&\":C10000\"),0)+MATCH(F39,#REF!,0)),\"\")","v":""}]
[{"$f":"IFERROR(INDEX(#REF!,MATCH(A$1,INDIRECT(\"'Doc_Database'!C\"&MATCH(A40,#REF!,0)+1&\":C10000\"),0)+MATCH(A40,#REF!,0)),\"\")","v":""},{"$f":"IFERROR(INDEX(#REF!,MATCH(B$1,INDIRECT(\"'Doc_Database'!C\"&MATCH(B40,#REF!,0)+1&\":C10000\"),0)+MATCH(B40,#REF!,0)),\"\")","v":""},{"$f":"IFERROR(INDEX(#REF!,MATCH(C$1,INDIRECT(\"'Doc_Database'!C\"&MATCH(C40,#REF!,0)+1&\":C10000\"),0)+MATCH(C40,#REF!,0)),\"\")","v":""},{"$f":"IFERROR(INDEX(#REF!,MATCH(D$1,INDIRECT(\"'Doc_Database'!C\"&MATCH(D40,#REF!,0)+1&\":C10000\"),0)+MATCH(D40,#REF!,0)),\"\")","v":""},{"$f":"IFERROR(INDEX(#REF!,MATCH(E$1,INDIRECT(\"'Doc_Database'!C\"&MATCH(E40,#REF!,0)+1&\":C10000\"),0)+MATCH(E40,#REF!,0)),\"\")","v":""},{"$f":"IFERROR(INDEX(#REF!,MATCH(F$1,INDIRECT(\"'Doc_Database'!C\"&MATCH(F40,#REF!,0)+1&\":C10000\"),0)+MATCH(F40,#REF!,0)),\"\")","v":""}]
[{"$f":"IFERROR(INDEX(#REF!,MATCH(A$1,INDIRECT(\"'Doc_Database'!C\"&MATCH(A41,#REF!,0)+1&\":C10000\"),0)+MATCH(A41,#REF!,0)),\"\")","v":""},{"$f":"IFERROR(INDEX(#REF!,MATCH(B$1,INDIRECT(\"'Doc_Database'!C\"&MATCH(B41,#REF!,0)+1&\":C10000\"),0)+MATCH(B41,#REF!,0)),\"\")","v":""},{"$f":"IFERROR(INDEX(#REF!,MATCH(C$1,INDIRECT(\"'Doc_Database'!C\"&MATCH(C41,#REF!,0)+1&\":C10000\"),0)+MATCH(C41,#REF!,0)),\"\")","v":""},{"$f":"IFERROR(INDEX(#REF!,MATCH(D$1,INDIRECT(\"'Doc_Database'!C\"&MATCH(D41,#REF!,0)+1&\":C10000\"),0)+MATCH(D41,#REF!,0)),\"\")","v":""},{"$f":"IFERROR(INDEX(#REF!,MATCH(E$1,INDIRECT(\"'Doc_Database'!C\"&MATCH(E41,#REF!,0)+1&\":C10000\"),0)+MATCH(E41,#REF!,0)),\"\")","v":""},{"$f":"IFERROR(INDEX(#REF!,MATCH(F$1,INDIRECT(\"'Doc_Database'!C\"&MATCH(F41,#REF!,0)+1&\":C10000\"),0)+MATCH(F41,#REF!,0)),\"\")","v":""}]
[{"$f":"IFERROR(INDEX(#REF!,MATCH(A$1,INDIRECT(\"'Doc_Database'!C\"&MATCH(A42,#REF!,0)+1&\":C10000\"),0)+MATCH(A42,#REF!,0)),\"\")","v":""},{"$f":"IFERROR(INDEX(#REF!,MATCH(B$1,INDIRECT(\"'Doc_Database'!C\"&MATCH(B42,#REF!,0)+1&\":C10000\"),0)+MATCH(B42,#REF!,0)),\"\")","v":""},{"$f":"IFERROR(INDEX(#REF!,MATCH(C$1,INDIRECT(\"'Doc_Database'!C\"&MATCH(C42,#REF!,0)+1&\":C10000\"),0)+MATCH(C42,#REF!,0)),\"\")","v":""},{"$f":"IFERROR(INDEX(#REF!,MATCH(D$1,INDIRECT(\"'Doc_Database'!C\"&MATCH(D42,#REF!,0)+1&\":C10000\"),0)+MATCH(D42,#REF!,0)),\"\")","v":""},{"$f":"IFERROR(INDEX(#REF!,MATCH(E$1,INDIRECT(\"'Doc_Database'!C\"&MATCH(E42,#REF!,0)+1&\":C10000\"),0)+MATCH(E42,#REF!,0)),\"\")","v":""},{"$f":"IFERROR(INDEX(#REF!,MATCH(F$1,INDIRECT(\"'Doc_Database'!C\"&MATCH(F42,#REF!,0)+1&\":C10000\"),0)+MATCH(F42,#REF!,0)),\"\")","v":""}]
[{"$f":"IFERROR(INDEX(#REF!,MATCH(A$1,INDIRECT(\"'Doc_Database'!C\"&MATCH(A43,#REF!,0)+1&\":C10000\"),0)+MATCH(A43,#REF!,0)),\"\")","v":""},{"$f":"IFERROR(INDEX(#REF!,MATCH(B$1,INDIRECT(\"'Doc_Database'!C\"&MATCH(B43,#REF!,0)+1&\":C10000\"),0)+MATCH(B43,#REF!,0)),\"\")","v":""},{"$f":"IFERROR(INDEX(#REF!,MATCH(C$1,INDIRECT(\"'Doc_Database'!C\"&MATCH(C43,#REF!,0)+1&\":C10000\"),0)+MATCH(C43,#REF!,0)),\"\")","v":""},{"$f":"IFERROR(INDEX(#REF!,MATCH(D$1,INDIRECT(\"'Doc_Database'!C\"&MATCH(D43,#REF!,0)+1&\":C10000\"),0)+MATCH(D43,#REF!,0)),\"\")","v":""},{"$f":"IFERROR(INDEX(#REF!,MATCH(E$1,INDIRECT(\"'Doc_Database'!C\"&MATCH(E43,#REF!,0)+1&\":C10000\"),0)+MATCH(E43,#REF!,0)),\"\")","v":""},{"$f":"IFERROR(INDEX(#REF!,MATCH(F$1,INDIRECT(\"'Doc_Database'!C\"&MATCH(F43,#REF!,0)+1&\":C10000\"),0)+MATCH(F43,#REF!,0)),\"\")","v":""}]
[{"$f":"IFERROR(INDEX(#REF!,MATCH(A$1,INDIRECT(\"'Doc_Database'!C\"&MATCH(A44,#REF!,0)+1&\":C10000\"),0)+MATCH(A44,#REF!,0)),\"\")","v":""},{"$f":"IFERROR(INDEX(#REF!,MATCH(B$1,INDIRECT(\"'Doc_Database'!C\"&MATCH(B44,#REF!,0)+1&\":C10000\"),0)+MATCH(B44,#REF!,0)),\"\")","v":""},{"$f":"IFERROR(INDEX(#REF!,MATCH(C$1,INDIRECT(\"'Doc_Database'!C\"&MATCH(C44,#REF!,0)+1&\":C10000\"),0)+MATCH(C44,#REF!,0)),\"\")","v":""},{"$f":"IFERROR(INDEX(#REF!,MATCH(D$1,INDIRECT(\"'Doc_Database'!C\"&MATCH(D44,#REF!,0)+1&\":C10000\"),0)+MATCH(D44,#REF!,0)),\"\")","v":""},{"$f":"IFERROR(INDEX(#REF!,MATCH(E$1,INDIRECT(\"'Doc_Database'!C\"&MATCH(E44,#REF!,0)+1&\":C10000\"),0)+MATCH(E44,#REF!,0)),\"\")","v":""},{"$f":"IFERROR(INDEX(#REF!,MATCH(F$1,INDIRECT(\"'Doc_Database'!C\"&MATCH(F44,#REF!,0)+1&\":C10000\"),0)+MATCH(F44,#REF!,0)),\"\")","v":""}]
[{"$f":"IFERROR(INDEX(#REF!,MATCH(A$1,INDIRECT(\"'Doc_Database'!C\"&MATCH(A45,#REF!,0)+1&\":C10000\"),0)+MATCH(A45,#REF!,0)),\"\")","v":""},{"$f":"IFERROR(INDEX(#REF!,MATCH(B$1,INDIRECT(\"'Doc_Database'!C\"&MATCH(B45,#REF!,0)+1&\":C10000\"),0)+MATCH(B45,#REF!,0)),\"\")","v":""},{"$f":"IFERROR(INDEX(#REF!,MATCH(C$1,INDIRECT(\"'Doc_Database'!C\"&MATCH(C45,#REF!,0)+1&\":C10000\"),0)+MATCH(C45,#REF!,0)),\"\")","v":""},{"$f":"IFERROR(INDEX(#REF!,MATCH(D$1,INDIRECT(\"'Doc_Database'!C\"&MATCH(D45,#REF!,0)+1&\":C10000\"),0)+MATCH(D45,#REF!,0)),\"\")","v":""},{"$f":"IFERROR(INDEX(#REF!,MATCH(E$1,INDIRECT(\"'Doc_Database'!C\"&MATCH(E45,#REF!,0)+1&\":C10000\"),0)+MATCH(E45,#REF!,0)),\"\")","v":""},{"$f":"IFERROR(INDEX(#REF!,MATCH(F$1,INDIRECT(\"'Doc_Database'!C\"&MATCH(F45,#REF!,0)+1&\":C10000\"),0)+MATCH(F45,#REF!,0)),\"\")","v":""}]
[{"$f":"IFERROR(INDEX(#REF!,MATCH(A$1,INDIRECT(\"'Doc_Database'!C\"&MATCH(A46,#REF!,0)+1&\":C10000\"),0)+MATCH(A46,#REF!,0)),\"\")","v":""},{"$f":"IFERROR(INDEX(#REF!,MATCH(B$1,INDIRECT(\"'Doc_Database'!C\"&MATCH(B46,#REF!,0)+1&\":C10000\"),0)+MATCH(B46,#REF!,0)),\"\")","v":""},{"$f":"IFERROR(INDEX(#REF!,MATCH(C$1,INDIRECT(\"'Doc_Database'!C\"&MATCH(C46,#REF!,0)+1&\":C10000\"),0)+MATCH(C46,#REF!,0)),\"\")","v":""},{"$f":"IFERROR(INDEX(#REF!,MATCH(D$1,INDIRECT(\"'Doc_Database'!C\"&MATCH(D46,#REF!,0)+1&\":C10000\"),0)+MATCH(D46,#REF!,0)),\"\")","v":""},{"$f":"IFERROR(INDEX(#REF!,MATCH(E$1,INDIRECT(\"'Doc_Database'!C\"&MATCH(E46,#REF!,0)+1&\":C10000\"),0)+MATCH(E46,#REF!,0)),\"\")","v":""},{"$f":"IFERROR(INDEX(#REF!,MATCH(F$1,INDIRECT(\"'Doc_Database'!C\"&MATCH(F46,#REF!,0)+1&\":C10000\"),0)+MATCH(F46,#REF!,0)),\"\")","v":""}]
[{"$f":"IFERROR(INDEX(#REF!,MATCH(A$1,INDIRECT(\"'Doc_Database'!C\"&MATCH(A47,#REF!,0)+1&\":C10000\"),0)+MATCH(A47,#REF!,0)),\"\")","v":""},{"$f":"IFERROR(INDEX(#REF!,MATCH(B$1,INDIRECT(\"'Doc_Database'!C\"&MATCH(B47,#REF!,0)+1&\":C10000\"),0)+MATCH(B47,#REF!,0)),\"\")","v":""},{"$f":"IFERROR(INDEX(#REF!,MATCH(C$1,INDIRECT(\"'Doc_Database'!C\"&MATCH(C47,#REF!,0)+1&\":C10000\"),0)+MATCH(C47,#REF!,0)),\"\")","v":""},{"$f":"IFERROR(INDEX(#REF!,MATCH(D$1,INDIRECT(\"'Doc_Database'!C\"&MATCH(D47,#REF!,0)+1&\":C10000\"),0)+MATCH(D47,#REF!,0)),\"\")","v":""},{"$f":"IFERROR(INDEX(#REF!,MATCH(E$1,INDIRECT(\"'Doc_Database'!C\"&MATCH(E47,#REF!,0)+1&\":C10000\"),0)+MATCH(E47,#REF!,0)),\"\")","v":""},{"$f":"IFERROR(INDEX(#REF!,MATCH(F$1,INDIRECT(\"'Doc_Database'!C\"&MATCH(F47,#REF!,0)+1&\":C10000\"),0)+MATCH(F47,#REF!,0)),\"\")","v":""}]
[{"$f":"IFERROR(INDEX(#REF!,MATCH(A$1,INDIRECT(\"'Doc_Database'!C\"&MATCH(A48,#REF!,0)+1&\":C10000\"),0)+MATCH(A48,#REF!,0)),\"\")","v":""},{"$f":"IFERROR(INDEX(#REF!,MATCH(B$1,INDIRECT(\"'Doc_Database'!C\"&MATCH(B48,#REF!,0)+1&\":C10000\"),0)+MATCH(B48,#REF!,0)),\"\")","v":""},{"$f":"IFERROR(INDEX(#REF!,MATCH(C$1,INDIRECT(\"'Doc_Database'!C\"&MATCH(C48,#REF!,0)+1&\":C10000\"),0)+MATCH(C48,#REF!,0)),\"\")","v":""},{"$f":"IFERROR(INDEX(#REF!,MATCH(D$1,INDIRECT(\"'Doc_Database'!C\"&MATCH(D48,#REF!,0)+1&\":C10000\"),0)+MATCH(D48,#REF!,0)),\"\")","v":""},{"$f":"IFERROR(INDEX(#REF!,MATCH(E$1,INDIRECT(\"'Doc_Database'!C\"&MATCH(E48,#REF!,0)+1&\":C10000\"),0)+MATCH(E48,#REF!,0)),\"\")","v":""},{"$f":"IFERROR(INDEX(#REF!,MATCH(F$1,INDIRECT(\"'Doc_Database'!C\"&MATCH(F48,#REF!,0)+1&\":C10000\"),0)+MATCH(F48,#REF!,0)),\"\")","v":""}]

{"sheet":"Annex","index":11,"n_rows":0,"n_cols":0,"rows_kept":0,"cut":false,"hidden":true,"merged":[]}

{"sheet":"Lists","index":12,"n_rows":10,"n_cols":3,"rows_kept":10,"cut":false,"hidden":true,"merged":[]}
["Volume","Annex","Package"]
["Volume_1","V1-1","Package_1"]
["Volume_2","V1-2","Package_2"]
["Volume_3","V1-3","Package_3"]
["Volume_4","V1-4","Package_4"]
["Volume_5","V1-5","Package_5"]
["Volume_6","V1-6","Package_6"]
["Volume_7","V1-7"]
["Volume_8","V1-8"]
[null,"V1-9"]

{"sheet":"9.0 Project Specifics","index":13,"n_rows":60,"n_cols":10,"rows_kept":60,"cut":false,"hidden":true,"merged":[[0,0,0,2],[2,1,2,8],[11,0,12,0],[20,0,21,0]]}
["9.0 Project Specific Information Requirements (PSIR)"]
[]
[null,"PSIR's will only be issued following a positive Environment Assessment Review determination by NIRB  "]
[]
["Section Title","Section No."," Information Requirement","Indicate whether Information Requirement is applicable by inserting ' Y ' or ' NA '","If 'NA' provide justification","Insert Title, Author and Date of Document where information is provided","Insert electronic file name of document where information is provided","Insert Section of document where information is provided","NWB Concordance Assessment","NIRB Guideline Section No."]
["Applicant"]
[]
["Applicant Representative"]
[]
["Project Name"]
[]
["Location of Undertaking"]
[]
[]
["Map"]
[]
["Nature of Interest in the Land"]
[]
["NPC Determination"]
[]
["NIRB Determination"]
[]
[]
["Description of Undertaking"]
[]
["Other Applicable Supplemental Information Guidelines"]
[]
["Options (Alternatives)"]
[]
["Water Use: (including water works)"]
[]
["Water Use: Quality and Quantity "]
[]
["Waste Disposal: "]
[]
["Waste Disposal: Quality and Quantity"]
[]
["Other Authorizations"]
[]
["Predicted Environmental Impacts and Proposed mitigation measures"]
[]
["Existing and Other User Water Rights"]
[]
["Inuit Water Rights"]
[]
["Consultation"]
[]
["Security"]
[]
["Financial Information"]
[]
["Studies and Designs"]
[]
["Proposed Time Schedule"]
[]
["Proposed Term of Licence"]
[]
["Annual Reporting"]
[]
["Renewals and Amendments"]

{"sheet":"Appendix A","index":14,"n_rows":141,"n_cols":3,"rows_kept":141,"cut":false,"hidden":true,"merged":[[0,0,0,9],[2,0,2,9],[4,0,4,9],[6,2,6,9],[16,2,16,9],[20,2,20,9],[22,2,22,9],[8,2,8,9],[10,2,10,9],[12,2,12,9],[14,2,14,9],[18,2,18,9],[32,2,32,9],[34,2,34,9],[36,2,36,9],[38,0,38,9],[24,2,24,9],[26,2,26,9],[28,2,28,9],[30,2,30,9],[48,2,48,9],[50,2,50,9],[52,2,52,9],[54,2,54,9],[40,2,40,9],[42,2,42,9],[44,2,44,9],[46,2,46,9],[66,2,66,9],[68,2,68,9],[70,2,70,9],[72,2,72,9],[56,2,56,9],[60,0,60,9],[62,2,62,9],[64,2,64,9],[58,2,58,9],[82,2,82,9],[84,2,84,9],[86,2,86,9],[88,2,88,9],[74,2,74,9],[78,2,78,9],[76,2,76,9],[80,2,80,9],[98,2,98,9],[100,2,100,9],[102,2,102,9],[104,2,104,9],[90,2,90,9],[92,2,92,9],[94,2,94,9],[96,2,96,9],[114,2,114,9],[116,2,116,9],[118,2,118,9],[120,2,120,9],[106,2,106,9],[108,2,108,9],[110,2,110,9],[112,2,112,9],[122,2,122,9],[126,2,126,9],[128,2,128,9],[130,2,130,9],[124,2,124,9],[140,0,140,9],[132,2,132,9],[134,2,134,9],[136,2,136,9],[138,0,138,9]]}
["APPENDIX A:   ADDITIONAL SOURCE DOCUMENTS TO ASSIST THE APPLICANT"]
[]
["This appendix provides a list of reference documents including legislation, guidelines and standards that may be of use to the applicant in preparing the supplemental information."]
[]
["Federal Legislation"]
[]
[null,"\u008b","Canadian Environmental Protection Act, [1999, [1999, c.33]"]
[]
[null,"\u008b","Storage Tank Systems for Petroleum Products and Allied Petroleum Products Regulations, [SOR/2008-197] "]
[]
[null,"\u008b","Environmental Emergency Regulations, [SOR/2003-307]"]
[]
[null,"\u008b","Fisheries Act, [R.S.C. c. F-14]"]
[]
[null,"\u008b","Metal Mining Effluent Regulations, [SOR/ 2002-2222]"]
[]
[null,"\u008b","Navigable Waters Protection Act, [R.S. 1985, c. N-22]"]
[]
[null,"\u008b","Navigable Waters Bridges Regulations, [C.R.C., c. 1231]"]
[]
[null,"\u008b","Navigable Waters Works Regulations, [C.R.C., c. 1232]"]
[]
[null,"\u008b","Nunavut Land Claims Agreement"]
[]
[null,"\u008b","Nunavut Waters and Nunavut Surface Rights Tribunal Act, [2002, c.10]"]
[]
[null,"\u008b","Northwest Territories Waters Regulations, [SOR/93/303]"]
[]
[null,"\u008b","Territorial Lands Act, [R.S. 1985, c. T-7]"]
[]
[null,"\u008b","Territorial Land Use Regulations, [C.R.C., c. 1524]"]
[]
[null,"\u008b","Territorial Quarrying Operations, [C.R.C., c. 1527]"]
[]
[null,"\u008b","Transportation of Dangerous Goods Act, [1992, c.34]"]
[]
[null,"\u008b","Transportation of Dangerous Goods Regulations, [SOR/2001-286]"]
[]
["Territorial Legislation"]
[]
[null,"\u008b","Environmental Protection Act (Nunavut), [R.S.N.W.T. 1988, c. E-7]"]
[]
[null,"\u008b","Used Oil and Waste Fuel Management Regulations, [N.W.T. Reg. 064-2003]"]
[]
[null,"\u008b","Mine Health and Safety Act, [S.N.W.T 1994, c.25]"]
[]
[null,"\u008b","Mine Health and Safety Regulations, [R-125-95]"]
[]
[null,"\u008b","Mine Health and Safety Regulations, amendment, Nu. Reg. 016-2003"]
[]
[null,"\u008b","Safety Act, [R.S.N.W.T. 1988, c. S-1]"]
[]
[null,"\u008b","Work Site Hazardous Materials Information System Regulations, [R.R.N.W.T. 1990 c. S-2]"]
[]
[null,"\u008b","Transportation of Dangerous Goods Act, [R.S.N.W.T. 1988, c. 81 (Supp.)]"]
[]
[null,"\u008b","Transportation of Dangerous Goods Regulations, [1991, N.W.T. Reg. 095-91]"]
[]
[null,"\u008b","Public Health Act,  [R.S.N.W.T. (Nu.) 1988 c. P.12]"]
[]
["Guidelines and Policies"]
[]
[null,"\u008b","CCME – Environmental Code of Practice for Aboveground and Underground Storage Tank Systems containing Petroleum and Allied Petroleum Products (2003);"]
[]
[null,"\u008b","CCME – Canadian Environmental Quality Guidelines Guidelines (CEQG) and Canadian Water Quality Guidelines for the Protection of Aquatic Life;"]
[]
[null,"\u008b","CCME – Canada-Wide Standards for Dioxins and Furans (2001);"]
[]
[null,"\u008b","CCME – Canada-Wide Standards for Mercury Emissions (2000);"]
[]
[null,"\u008b","DFO – Freshwater Intake End-of-Pipe Fish Screen Guideline (1995);"]
[]
[null,"\u008b","DFO – Guidelines for the Use of Explosives In or Near Canadian Fisheries Waters (1998);\n\n"]
[]
[null,"\u008b","DFO – Policy for the Management of Fish Habitat (2001);"]
[]
[null,"\u008b","DFO – Operational Statements;"]
[]
[null,"\u008b","DFO – Other documents are available from the DFO's website at http://www.dfo-mpo.gc.ca/habitat/habitat-eng.htm;"]
[]
[null,"\u008b","EC – Guidelines for the Preparation of Hazardous Material Spill Contingency Plans (1990);"]
[]
[null,"\u008b","EC – Metal Mining Guidance Document for Aquatic Effects Monitoring (2002);"]
[]
[null,"\u008b","EC – Guidelines for the Assessment of Alternatives for Tailings Storage for Metal Mining Projects Proposing to use Natural, Fish-bearing Water Bodies as Tailings Impoundment Areas (Draft July 4, 2008);"]
[]
[null,"\u008b","GN – Spill Contingency Planning and Spill Reporting in Nunavut. A Guide to the New Regulations."]
[]
[null,"\u008b","GN – Environmental Guideline for Contaminated Site Remediation (2002);"]
[]
[null,"\u008b","GN – Environmental Guideline for General Management of Hazardous Waste in Nunavut (2002);"]
[]
[null,"\u008b","GN - Environmental Guideline for Ozone Depleting Substances (2002);"]
[]
[null,"\u008b","GN - Environmental Guideline for Waste Antifreeze (2002);"]
[]
[null,"\u008b","GN - Environmental Guideline for Waste Asbestos (2002);"]
[]
[null,"\u008b","GN - Environmental Guideline for Waste Batteries (2002);"]
[]
[null,"\u008b","GN - Environmental Guideline for Waste Paint (2002);"]
[]
[null,"\u008b","GN - Environmental Guideline for Waste Solvent (2002);"]
[]
[null,"\u008b","GN - Guideline for the Management of Waste Lead and Lead Paint (2001);"]
[]
[null,"\u008b","GN - Municipal Solid Wastes Suitable for Open Burning;"]
[]
[null,"\u008b","GN - Disposal Guidelines for Fluorescent Lamp Tubes;"]
[]
[null,"\u008b","GN – Occupational Health &Safety Guidelines (2006);"]
[]
[null,"\u008b","GNWT - Guidelines for the Discharge of Treated Municipal Wastewater in the Northwest Territories, (1992)"]
[]
[null,"\u008b","GNWT – A Field Guide to Ice Construction Safety (2007);"]
[]
[null,"\u008b","Guidelines for the Preparation of an Operations and Maintenance Manual for Sewage and Solid Waste Disposal Facilities in the Northwest Territories, Duong and Kent, 1996"]
[]
[null,"\u008b","INAC - Mine Site Reclamation Policy for Nunavut (2002);"]
[]
[null,"\u008b","INAC – Guidelines for Spill Contingency Planning (2007);"]
[]
[null,"\u008b","INAC - Quality Assurance (QA), Quality Control (QC) Guidelines for Use by Class \"B\" Licensees in Collecting Representative Water Samples in the Field and for Submission of a QA/QC Plan (1996);"]
[]
[null,"\u008b","INAC - Quality Assurance (QA), Quality Control (QC) Guidelines for Use by Class \"A\" Licensees in meeting SNP requirements and for submission of a QA/QC Plan (1996);"]
[]
[null,"\u008b","INAC - Mine Site Reclamation Guidelines for the Northwest Territories (2007);"]
[]
[null,"\u008b","INAC – A Policy Respecting the Prohibition of Bulk Water Removal from Major River Basins in Nunavut (2003);"]
[]
[null,"\u008b","The Mining Association of Canada “A Guide to the Management of Tailings Facilities” (1998), (Referenced within the guidelines as GMTF);"]
[]
[null,"\u008b","Mining Association of Canada, \"Developing an Operation, Maintenance and Surveillance Manual for Tailings and Water Management Facilities\""]
[]
[null,"\u008b","The proponent where applicable should consider the application of the Canadian Dam Association “Dam Safety Guidelines” (January 1999) in the design, construction, operation, monitoring, decommission and closure of dam infrastructure. (Referenced within the guidelines as CDA);"]
[]
[null,"\u008b","Workplace Hazardous Materials Information System (WHMIS); "]
[]
["The NWB maintains a folder on its FTP site containing electronic copies of reference documents.  Federal legislation may be found on the Department of Justice Canada website at http://laws.justice.gc.ca/. Territorial Legislation may be found on the Canadian Legal Information Institute's website at http://www.canlii.org/.  The applicant is encouraged to consult with government agencies on technical issues and to obtain the most up to date copy of reference documents."]
[]
["It is the applicant’s responsibility to ensure that all relevant standards and guidelines are considered in the water licence application and to incorporate proper footnotes and references."]

{"sheet":"Appendix B","index":15,"n_rows":87,"n_cols":3,"rows_kept":87,"cut":false,"hidden":true,"merged":[[5,2,5,9],[6,2,6,9],[7,2,7,9],[8,2,8,9],[0,0,0,9],[2,2,2,9],[3,2,3,9],[4,2,4,9],[13,2,13,9],[14,2,14,9],[15,2,15,9],[16,2,16,9],[9,2,9,9],[10,2,10,9],[11,2,11,9],[12,2,12,9],[21,2,21,9],[22,2,22,9],[23,2,23,9],[24,2,24,9],[17,2,17,9],[18,2,18,9],[19,2,19,9],[20,2,20,9],[29,2,29,9],[30,2,30,9],[31,2,31,9],[32,2,32,9],[25,2,25,9],[26,2,26,9],[27,2,27,9],[28,2,28,9],[37,2,37,9],[38,2,38,9],[39,2,39,9],[40,2,40,9],[33,2,33,9],[34,2,34,9],[35,2,35,9],[36,2,36,9],[45,2,45,9],[46,2,46,9],[47,2,47,9],[48,2,48,9],[41,2,41,9],[42,2,42,9],[43,2,43,9],[44,2,44,9],[53,2,53,9],[54,2,54,9],[55,2,55,9],[56,2,56,9],[49,2,49,9],[50,2,50,9],[51,2,51,9],[52,2,52,9],[61,2,61,9],[62,2,62,9],[63,2,63,9],[64,2,64,9],[57,2,57,9],[58,2,58,9],[59,2,59,9],[60,2,60,9],[69,2,69,9],[70,2,70,9],[71,2,71,9],[72,2,72,9],[65,2,65,9],[66,2,66,9],[67,2,67,9],[68,2,68,9],[77,2,77,9],[78,2,78,9],[79,2,79,9],[80,2,80,9],[73,2,73,9],[74,2,74,9],[75,2,75,9],[76,2,76,9],[85,2,85,9],[86,2,86,9],[81,2,81,9],[82,2,82,9],[83,2,83,9],[84,2,84,9]]}
["APPENDIX B:   COMMONLY USED ACRONYMS"]
[]
[null,"AA","Authorizing Agency"]
[null,"ABA","Acid Base Accounting"]
[null,"AMD","Acid Mine Drainage"]
[null,"AP","Acid Potential"]
[null,"A&R","Abandonment and Restoration"]
[null,"ARD","Acid Rock Drainage"]
[null,"ANFO","Ammonium Nitrate and Fuel Oil"]
[null,"BOD","Biological Oxygen Demand"]
[null,"BTEX","Benzene, Toluene, Ethyl-benzene and Xylene"]
[null,"CBOD","Carbonaceous Biological Oxygen Demand"]
[null,"CEA","Cumulative Environmental Assessment"]
[null,"CCME","Canadian Council Ministry of the Environment"]
[null,"CFU","Colony Forming Units"]
[null,"COD","Chemical Oxygen Demand"]
[null,"CWQS","Canadian Water Quality Standards"]
[null,"DFO","Department of Fisheries and Oceans"]
[null,"DIO","Designated Inuit Organization"]
[null,"DO","Dissolved Oxygen"]
[null,"DSG","Dam Safety Guidelines"]
[null,"DSI","Dam Safety Inspection"]
[null,"DSR","Dam Safety Review"]
[null,"EC","Environment Canada"]
[null,"EA","Environmental Assessment"]
[null,"EIS","Environmental Impact Statement"]
[null,"EPA","Environmental Protection Agency"]
[null,"EPP","Emergency Preparedness Plan"]
[null,"ERSCP","Emergency Response Spill Contingency Plan"]
[null,"GN-DoE","Government Nunavut – Department of Environment"]
[null,"GN-CGS","Government Nunavut – Department of Community Government Service"]
[null,"GN-CLEY","Government of Nunavut - Department of Culture, Language, Elders and Youth"]
[null,"HDPE","High Density Polyethylene"]
[null,"FTP","File Transfer Protocol"]
[null,"IIBA","Inuit Impact Benefit Agreement"]
[null,"INAC","Indian and Northern Affairs Canada (also known as DIAND)"]
[null,"IOL","Inuit Owned Lands"]
[null,"IQ","Inuit Qaujimajatuqangit"]
[null,"IR","Information Request"]
[null,"LPA","Local Project Area"]
[null,"MSDS","Material Safety Data Sheet"]
[null,"MAC","Maximum Acceptable Concentration"]
[null,"MCE","Maximum Credible Earthquake"]
[null,"MDE","Maximum Design Earthquake"]
[null,"MMER","Metal Mining Effluent Regulations"]
[null,"NLCA","Nunavut Land Claims Agreement"]
[null,"NP","Neutralization Potential"]
[null,"NNP","Net Neutralization Potential"]
[null,"NPR","Neutralization Potential Ratio"]
[null,"NIRB","Nunavut Impact Review Board"]
[null,"NLCA","Nunavut Land Claims Agreement"]
[null,"NPC","Nunavut Planning Commission"]
[null,"NSA","Nunavut Settlement Area"]
[null,"NTI","Nunavut Tunngavik Incorporated"]
[null,"NTU","Nephelometric Turbidity Unit"]
[null,"NTWR","Northwest Territories Waters Regulations"]
[null,"NWB","Nunavut Water Board"]
[null,"NWNSRTA","Nunavut Waters Nunavut Surface Rights Tribunal Act"]
[null,"NWPP","Navigable Waters Protection Program"]
[null,"O&M","Operations and Maintenance"]
[null,"PAH","Polycyclic Aromatic Hydrocarbons"]
[null,"PC","Project Certificate"]
[null,"PCB","Poly-Chlorinated Biphenyl "]
[null,"PMF","Probable Maximum Flood"]
[null,"PMP","Probable Maximum Precipitation"]
[null,"POP","Persistent Organic Pollutant"]
[null,"PSIR","Project Specific Information Requirement"]
[null,"PVC","Polyvinyl Chloride"]
[null,"QA","Quality Assurance"]
[null,"QC","Quality Control"]
[null,"RBC","Rotating Biological Contactor"]
[null,"RPA","Regional Project Area"]
[null,"SIG","Supplemental Information Guidelines"]
[null,"SS","Suspended Solids"]
[null,"TDS","Total Dissolved Solids "]
[null,"TKN","Total Kjeldahl Nitrogen"]
[null,"TOC","Total Organic Carbon"]
[null,"TOD","Total Oxygen Demand"]
[null,"TS","Total Solids"]
[null,"TSP","Total Suspended Particulates"]
[null,"TSS","Total Suspended Solids"]
[null,"TK","Traditional Knowledge"]
[null,"UTM","Univeral Transverse Mercator"]
[null,"UV","Ultraviolet Light"]
[null,"VOC","Volatile Organic Compound"]
[null,"VEC","Valued Ecosystem Component"]
[null,"WHMIS","Workplace Hazardous Material Information System"]